Workbook

Sheet 原 (2) (hidden)
A1: 价格分
A2: 包号：1
A3: 序号 | B3: 投标人 | C3: 报价合计 | D3: 价格扣除 | E3: 扣除后报价 | F3: 价格分 | G3: 价格扣除 （修正） | H3: 扣除后报价 （修正） | I3: 价格分基准 | J3: 价格分 （修正）
A4: 1 | B4: 徐州中坚物资贸易有限公司 | C4: 175 | D4: 0.3 | E4: 122.5 | F4: 100 | G4: =D4-20% -> 0.1 | H4: =C4-(C4*G4) -> 157.5 | I4: =MIN($H$4:$H$30) -> 157.5 | J4: =I4/H4*100 -> 100
A5: 2 | B5: 广东天章信息纸品有限公司 | C5: 190 | D5: 0.35 | E5: 123.5 | F5: 99.19 | G5: 0.15 | H5: 161.5 | I5: 157.5 | J5: 97.52321981
A6: 3 | B6: 珠海格之格数码科技有限公司 | C6: 192 | D6: 0.35 | E6: 124.8 | F6: 98.16 | G6: 0.15 | H6: 163.2 | I6: 157.5 | J6: 96.50735294
A7: 4 | B7: 东莞市纸上繁华实业有限公司 | C7: 188 | D7: 0.3 | E7: 131.6 | F7: 93.09 | G7: 0.1 | H7: 169.2 | I7: 157.5 | J7: 93.08510638
A8: 5 | B8: 天津安妮纸业销售有限公司 | C8: 190 | D8: 0.3 | E8: 133 | F8: 92.11 | G8: 0.1 | H8: 171 | I8: 157.5 | J8: 92.10526316
A9: 6 | B9: 北京美瑞思诺科技有限公司 | C9: 210 | D9: 0.35 | E9: 136.5 | F9: 89.74 | G9: 0.15 | H9: 178.5 | I9: 157.5 | J9: 88.23529412
A10: 7 | B10: 深圳齐心集团股份有限公司 | C10: 182 | D10: 0.25 | E10: 136.5 | F10: 89.74 | G10: 0.05 | H10: 172.9 | I10: 157.5 | J10: 91.09311741
A11: 8 | B11: 北京洁简天兴商贸有限责任公司 | C11: 186 | D11: 0.25 | E11: 139.5 | F11: 87.81 | G11: 0.05 | H11: 176.7 | I11: 157.5 | J11: 89.13412564
A12: 9 | B12: 芬欧汇川（中国）有限公司 | C12: 188 | D12: 0.25 | E12: 141 | F12: 86.88 | G12: 0.05 | H12: 178.6 | I12: 157.5 | J12: 88.18589026
A13: 10 | B13: 山东太阳纸业股份有限公司 | C13: 189 | D13: 0.25 | E13: 141.75 | F13: 86.42 | G13: 0.05 | H13: 179.55 | I13: 157.5 | J13: 87.71929825
A14: 11 | B14: 湖南省鑫湘锐纸品有限公司 | C14: 220 | D14: 0.35 | E14: 143 | F14: 85.66 | G14: 0.15 | H14: 187 | I14: 157.5 | J14: 84.22459893
A15: 12 | B15: 北京奥特永盛科技有限公司 | C15: 220 | D15: 0.35 | E15: 143 | F15: 85.66 | G15: 0.15 | H15: 187 | I15: 157.5 | J15: 84.22459893
A16: 13 | B16: 多林多(天津)电子商务有限公司 | C16: 220 | D16: 0.35 | E16: 143 | F16: 85.66 | G16: 0.15 | H16: 187 | I16: 157.5 | J16: 84.22459893
A17: 14 | B17: 金鑫（清远）纸业有限公司 | C17: 187.2 | D17: 0.2 | E17: 149.76 | F17: 81.8 | G17: 0 | H17: 187.2 | I17: 157.5 | J17: 84.13461538
A18: 15 | B18: 北京瑞志林丰商贸有限公司 | C18: 190 | D18: 0.2 | E18: 152 | F18: 80.59 | G18: 0 | H18: 190 | I18: 157.5 | J18: 82.89473684
A19: 16 | B19: 苏州领先睿采科技有限公司 | C19: 218 | D19: 0.3 | E19: 152.6 | F19: 80.28 | G19: 0.1 | H19: 196.2 | I19: 157.5 | J19: 80.27522936
A20: 17 | B20: 三木高科科技（北京）有限公司 | C20: 220 | D20: 0.3 | E20: 154 | F20: 79.55 | G20: 0.1 | H20: 198 | I20: 157.5 | J20: 79.54545455
A21: 18 | B21: 新元同创（北京）科技有限公司 | C21: 222 | D21: 0.3 | E21: 155.4 | F21: 78.83 | G21: 0.1 | H21: 199.8 | I21: 157.5 | J21: 78.82882883
A22: 19 | B22: 得力集团有限公司 | C22: 211 | D22: 0.25 | E22: 158.25 | F22: 77.41 | G22: 0.05 | H22: 200.45 | I22: 157.5 | J22: 78.57321028
A23: 20 | B23: 苏州盛大供应链有限责任公司 | C23: 200 | D23: 0.2 | E23: 160 | F23: 76.56 | G23: 0 | H23: 200 | I23: 157.5 | J23: 78.75
A24: 21 | B24: 北京永辉正兴文化用品有限公司 | C24: 230 | D24: 0.3 | E24: 161 | F24: 76.09 | G24: 0.1 | H24: 207 | I24: 157.5 | J24: 76.08695652
A25: 22 | B25: 武汉永安图商贸有限公司 | C25: 218 | D25: 0.25 | E25: 163.5 | F25: 74.92 | G25: 0.05 | H25: 207.1 | I25: 157.5 | J25: 76.05021729
A26: 23 | B26: 山西华诺纸业有限公司 | C26: 236 | D26: 0.3 | E26: 165.2 | F26: 74.15 | G26: 0.1 | H26: 212.4 | I26: 157.5 | J26: 74.15254237
A27: 24 | B27: 北京智诚金源办公设备有限公司 | C27: 236 | D27: 0.3 | E27: 165.2 | F27: 74.15 | G27: 0.1 | H27: 212.4 | I27: 157.5 | J27: 74.15254237
A28: 25 | B28: 润天恒业科技集团有限公司 | C28: 236.6 | D28: 0.3 | E28: 165.62 | F28: 73.96 | G28: 0.1 | H28: 212.94 | I28: 157.5 | J28: 73.96449704
A29: 26 | B29: 广州市达远智能办公设备有限公司 | C29: 260 | D29: 0.35 | E29: 169 | F29: 72.49 | G29: 0.15 | H29: 221 | I29: 157.5 | J29: 71.26696833
A30: 27 | B30: 北京光印嘉业科技有限公司 | C30: 245 | D30: 0.3 | E30: 171.5 | F30: 71.43 | G30: 0.1 | H30: 220.5 | I30: 157.5 | J30: 71.42857143
A31: 分包号：2
A32: 序号 | B32: 投标人 | C32: 报价合计 | D32: 价格扣除 | E32: 扣除后报价 | F32: 价格分 | G32: 价格扣除 （修正） | H32: 扣除后报价 （修正） | I32: 价格分 基准 | J32: 价格分 （修正）
A33: 1 | B33: 徐州中坚物资贸易有限公司 | C33: 195 | D33: 0.3 | E33: 136.5 | F33: 100 | G33: =D33-20% -> 0.1 | H33: =C33-(C33*G33) -> 175.5 | I33: =MIN($H$33:$H$68) -> 175.5 | J33: =I33/H33*100 -> 100
A34: 2 | B34: 彩虹鸟（北京）科贸有限公司 | C34: 196 | D34: 0.3 | E34: 137.2 | F34: 99.49 | G34: 0.1 | H34: 176.4 | I34: 175.5 | J34: 99.48979592
A35: 3 | B35: 广东天章信息纸品有限公司 | C35: 221 | D35: 0.35 | E35: 143.65 | F35: 95.02 | G35: 0.15 | H35: 187.85 | I35: 175.5 | J35: 93.42560554
A36: 4 | B36: 东莞市纸上繁华实业有限公司 | C36: 220 | D36: 0.3 | E36: 154 | F36: 88.64 | G36: 0.1 | H36: 198 | I36: 175.5 | J36: 88.63636364
A37: 5 | B37: 北京美瑞思诺科技有限公司 | C37: 238 | D37: 0.35 | E37: 154.7 | F37: 88.24 | G37: 0.15 | H37: 202.3 | I37: 175.5 | J37: 86.752348
A38: 6 | B38: 北京外文誉成纸业有限公司 | C38: 195 | D38: 0.2 | E38: 156 | F38: 87.5 | G38: 0 | H38: 195 | I38: 175.5 | J38: 90
A39: 7 | B39: 山东太阳纸业股份有限公司 | C39: 209 | D39: 0.25 | E39: 156.75 | F39: 87.08 | G39: 0.05 | H39: 198.55 | I39: 175.5 | J39: 88.39083354
A40: 8 | B40: 北京金华盛林纸业有限公司 | C40: 226 | D40: 0.3 | E40: 158.2 | F40: 86.28 | G40: 0.1 | H40: 203.4 | I40: 175.5 | J40: 86.28318584
A41: 9 | B41: 乾程理想（北京）科技发展有限公司 | C41: 244.8 | D41: 0.35 | E41: 159.12 | F41: 85.78 | G41: 0.15 | H41: 208.08 | I41: 175.5 | J41: 84.34256055
A42: 10 | B42: 湖南省鑫湘锐纸品有限公司 | C42: 245 | D42: 0.35 | E42: 159.25 | F42: 85.71 | G42: 0.15 | H42: 208.25 | I42: 175.5 | J42: 84.27370948
A43: 11 | B43: 北京奥特永盛科技有限公司 | C43: 245 | D43: 0.35 | E43: 159.25 | F43: 85.71 | G43: 0.15 | H43: 208.25 | I43: 175.5 | J43: 84.27370948
A44: 12 | B44: 天津安妮纸业销售有限公司 | C44: 230 | D44: 0.3 | E44: 161 | F44: 84.78 | G44: 0.1 | H44: 207 | I44: 175.5 | J44: 84.7826087
A45: 13 | B45: 宁波市利宏信息系统工程有限公司 | C45: 249 | D45: 0.35 | E45: 161.85 | F45: 84.34 | G45: 0.15 | H45: 211.65 | I45: 175.5 | J45: 82.91991495
A46: 14 | B46: 新元同创（北京）科技有限公司 | C46: 232 | D46: 0.3 | E46: 162.4 | F46: 84.05 | G46: 0.1 | H46: 208.8 | I46: 175.5 | J46: 84.05172414
A47: 15 | B47: 北京兆雄薪火科技有限公司 | C47: 232 | D47: 0.3 | E47: 162.4 | F47: 84.05 | G47: 0.1 | H47: 208.8 | I47: 175.5 | J47: 84.05172414
A48: 16 | B48: 北京中盛宏达科技有限公司 | C48: 232 | D48: 0.3 | E48: 162.4 | F48: 84.05 | G48: 0.1 | H48: 208.8 | I48: 175.5 | J48: 84.05172414
A49: 17 | B49: 理想（中国）科学工业有限公司 | C49: 250.7 | D49: 0.35 | E49: 162.955 | F49: 83.77 | G49: 0.15 | H49: 213.095 | I49: 175.5 | J49: 82.35763392
A50: 18 | B50: 芬欧汇川（中国）有限公司 | C50: 220 | D50: 0.25 | E50: 165 | F50: 82.73 | G50: 0.05 | H50: 209 | I50: 175.5 | J50: 83.97129187
A51: 19 | B51: 北京品欢科技发展有限公司 | C51: 236 | D51: 0.3 | E51: 165.2 | F51: 82.63 | G51: 0.1 | H51: 212.4 | I51: 175.5 | J51: 82.62711864
A52: 20 | B52: 北京英菲豪科技有限公司 | C52: 238.8 | D52: 0.3 | E52: 167.16 | F52: 81.66 | G52: 0.1 | H52: 214.92 | I52: 175.5 | J52: 81.65829146
A53: 21 | B53: 山西华诺纸业有限公司 | C53: 240 | D53: 0.3 | E53: 168 | F53: 81.25 | G53: 0.1 | H53: 216 | I53: 175.5 | J53: 81.25
A54: 22 | B54: 北京紫旭炫东文化用品有限公司 | C54: 210 | D54: 0.2 | E54: 168 | F54: 81.25 | G54: 0 | H54: 210 | I54: 175.5 | J54: 83.57142857
A55: 23 | B55: 北京智诚金源办公设备有限公司 | C55: 240 | D55: 0.3 | E55: 168 | F55: 81.25 | G55: 0.1 | H55: 216 | I55: 175.5 | J55: 81.25
A56: 24 | B56: 多林多(天津)电子商务有限公司 | C56: 240 | D56: 0.3 | E56: 168 | F56: 81.25 | G56: 0.1 | H56: 216 | I56: 175.5 | J56: 81.25
A57: 25 | B57: 北京齐心易购电子商务有限公司 | C57: 241 | D57: 0.3 | E57: 168.7 | F57: 80.91 | G57: 0.1 | H57: 216.9 | I57: 175.5 | J57: 80.91286307
A58: 26 | B58: 北京洁简天兴商贸有限责任公司 | C58: 225 | D58: 0.25 | E58: 168.75 | F58: 80.89 | G58: 0.05 | H58: 213.75 | I58: 175.5 | J58: 82.10526316
A59: 27 | B59: 北京依文裕福商贸有限公司 | C59: 242 | D59: 0.3 | E59: 169.4 | F59: 80.58 | G59: 0.1 | H59: 217.8 | I59: 175.5 | J59: 80.5785124
A60: 28 | B60: 金鑫（清远）纸业有限公司 | C60: 212.6 | D60: 0.2 | E60: 170.08 | F60: 80.26 | G60: 0 | H60: 212.6 | I60: 175.5 | J60: 82.54938852
A61: 29 | B61: 北京广捷富源科贸有限公司 | C61: 245 | D61: 0.3 | E61: 171.5 | F61: 79.59 | G61: 0.1 | H61: 220.5 | I61: 175.5 | J61: 79.59183673
A62: 30 | B62: 北京飞博宏达商贸有限公司 | C62: 245 | D62: 0.3 | E62: 171.5 | F62: 79.59 | G62: 0.1 | H62: 220.5 | I62: 175.5 | J62: 79.59183673
A63: 31 | B63: 优士创新商业集团有限公司 | C63: 263.9 | D63: 0.35 | E63: 171.535 | F63: 79.58 | G63: 0.15 | H63: 224.315 | I63: 175.5 | J63: 78.23819183
A64: 32 | B64: 北京首科红兴商贸有限公司 | C64: 246 | D64: 0.3 | E64: 172.2 | F64: 79.27 | G64: 0.1 | H64: 221.4 | I64: 175.5 | J64: 79.26829268
A65: 33 | B65: 北京瑞志林丰商贸有限公司 | C65: 216 | D65: 0.2 | E65: 172.8 | F65: 78.99 | G65: 0 | H65: 216 | I65: 175.5 | J65: 81.25
A66: 34 | B66: 得力集团有限公司 | C66: 237.5 | D66: 0.25 | E66: 178.125 | F66: 76.63 | G66: 0.05 | H66: 225.625 | I66: 175.5 | J66: 77.78393352
A67: 35 | B67: 武汉永安图商贸有限公司 | C67: 256 | D67: 0.3 | E67: 179.2 | F67: 76.17 | G67: 0.1 | H67: 230.4 | I67: 175.5 | J67: 76.171875
A68: 36 | B68: 上海联夏贸易有限公司 | C68: 225 | D68: 0.2 | E68: 180 | F68: 75.83 | G68: 0 | H68: 225 | I68: 175.5 | J68: 78
A69: 分包号：3
A70: 序号 | B70: 投标人 | C70: 报价合计 | D70: 价格扣除 | E70: 扣除后报价 | F70: 价格分 | G70: 价格扣除 （修正） | H70: 扣除后报价 （修正） | I70: 价格分 基准 | J70: 价格分 （修正）
A71: 1 | B71: 广东天章信息纸品有限公司 | C71: 230 | D71: 0.35 | E71: 149.5 | F71: 100 | G71: =D71-20% -> 0.15 | H71: =C71-(C71*G71) -> 195.5 | I71: =MIN(H71:H92) -> 195.5 | J71: =I71/H71*100 -> 100
A72: 2 | B72: 深圳齐心集团股份有限公司 | C72: 214 | D72: 0.25 | E72: 160.5 | F72: 93.15 | G72: 0.05 | H72: 203.3 | I72: =I71 -> 195.5 | J72: 96.16330546
A73: 3 | B73: 北京美瑞思诺科技有限公司 | C73: 248 | D73: 0.35 | E73: 161.2 | F73: 92.74 | G73: 0.15 | H73: 210.8 | I73: 195.5 | J73: 92.74193548
A74: 4 | B74: 北京金华盛林纸业有限公司 | C74: 232 | D74: 0.3 | E74: 162.4 | F74: 92.06 | G74: 0.1 | H74: 208.8 | I74: 195.5 | J74: 93.6302682
A75: 5 | B75: 湖南省鑫湘锐纸品有限公司 | C75: 255 | D75: 0.35 | E75: 165.75 | F75: 90.2 | G75: 0.15 | H75: 216.75 | I75: 195.5 | J75: 90.19607843
A76: 6 | B76: 北京天和志业科技发展有限公司 | C76: 240 | D76: 0.3 | E76: 168 | F76: 88.99 | G76: 0.1 | H76: 216 | I76: 195.5 | J76: 90.50925926
A77: 7 | B77: 北京康乐欣文化用品有限公司 | C77: 244 | D77: 0.3 | E77: 170.8 | F77: 87.53 | G77: 0.1 | H77: 219.6 | I77: 195.5 | J77: 89.02550091
A78: 8 | B78: 天津荣来印刷材料商贸有限公司 | C78: 245 | D78: 0.3 | E78: 171.5 | F78: 87.17 | G78: 0.1 | H78: 220.5 | I78: 195.5 | J78: 88.66213152
A79: 9 | B79: 北京齐心易购电子商务有限公司 | C79: 245 | D79: 0.3 | E79: 171.5 | F79: 87.17 | G79: 0.1 | H79: 220.5 | I79: 195.5 | J79: 88.66213152
A80: 10 | B80: 山东太阳纸业股份有限公司 | C80: 229 | D80: 0.25 | E80: 171.75 | F80: 87.05 | G80: 0.05 | H80: 217.55 | I80: 195.5 | J80: 89.86439899
A81: 11 | B81: 多林多(天津)电子商务有限公司 | C81: 265 | D81: 0.35 | E81: 172.25 | F81: 86.79 | G81: 0.15 | H81: 225.25 | I81: 195.5 | J81: 86.79245283
A82: 12 | B82: 芬欧汇川（中国）有限公司 | C82: 230 | D82: 0.25 | E82: 172.5 | F82: 86.67 | G82: 0.05 | H82: 218.5 | I82: 195.5 | J82: 89.47368421
A83: 13 | B83: 北京日益升网络科技有限公司 | C83: 246.5 | D83: 0.3 | E83: 172.55 | F83: 86.64 | G83: 0.1 | H83: 221.85 | I83: 195.5 | J83: 88.12260536
A84: 14 | B84: 北京市骅远商贸有限公司 | C84: 248 | D84: 0.3 | E84: 173.6 | F84: 86.12 | G84: 0.1 | H84: 223.2 | I84: 195.5 | J84: 87.58960573
A85: 15 | B85: 北京瑞志林丰商贸有限公司 | C85: 220 | D85: 0.2 | E85: 176 | F85: 84.94 | G85: 0 | H85: 220 | I85: 195.5 | J85: 88.86363636
A86: 16 | B86: 北京紫旭炫东文化用品有限公司 | C86: 221 | D86: 0.2 | E86: 176.8 | F86: 84.56 | G86: 0 | H86: 221 | I86: 195.5 | J86: 88.46153846
A87: 17 | B87: 北京洁简天兴商贸有限责任公司 | C87: 237 | D87: 0.25 | E87: 177.75 | F87: 84.11 | G87: 0.05 | H87: 225.15 | I87: 195.5 | J87: 86.83100155
A88: 18 | B88: 天津汇通融合网络科技有限公司 | C88: 255 | D88: 0.3 | E88: 178.5 | F88: 83.75 | G88: 0.1 | H88: 229.5 | I88: 195.5 | J88: 85.18518519
A89: 19 | B89: 北京依文裕福商贸有限公司 | C89: 256 | D89: 0.3 | E89: 179.2 | F89: 83.43 | G89: 0.1 | H89: 230.4 | I89: 195.5 | J89: 84.85243056
A90: 20 | B90: 北京洪烽信达科技有限公司 | C90: 256 | D90: 0.3 | E90: 179.2 | F90: 83.43 | G90: 0.1 | H90: 230.4 | I90: 195.5 | J90: 84.85243056
A91: 21 | B91: 北京华腾鑫业科技有限公司 | C91: 258 | D91: 0.3 | E91: 180.6 | F91: 82.78 | G91: 0.1 | H91: 232.2 | I91: 195.5 | J91: 84.19465978
A92: 22 | B92: 金鑫（清远）纸业有限公司 | C92: 226.6 | D92: 0.2 | E92: 181.28 | F92: 82.47 | G92: 0 | H92: 226.6 | I92: 195.5 | J92: 86.27537511
A93: 分包号：4
A94: 序号 | B94: 投标人 | C94: 报价合计 | D94: 价格扣除 | E94: 扣除后报价 | F94: 价格分 | G94: 价格扣除 （修正） | H94: 扣除后报价 （修正） | I94: 价格分 基准 | J94: 价格分 （修正）
A95: 1 | B95: 徐州中坚物资贸易有限公司 | C95: 195 | D95: 0.35 | E95: 126.75 | F95: 100 | G95: =D95-20% -> 0.15 | H95: =C95-(C95*G95) -> 165.75 | I95: =MIN(H95:H107) -> 165.75 | J95: =I95/H95*100 -> 100
A96: 2 | B96: 天津荣来印刷材料商贸有限公司 | C96: 230 | D96: 0.3 | E96: 161 | F96: 78.73 | G96: 0.1 | H96: 207 | I96: =I95 -> 165.75 | J96: 80.07246377
A97: 3 | B97: 湖南省鑫湘锐纸品有限公司 | C97: 255 | D97: 0.35 | E97: 165.75 | F97: 76.47 | G97: 0.15 | H97: 216.75 | I97: 165.75 | J97: 76.47058824
A98: 4 | B98: 北京紫旭炫东文化用品有限公司 | C98: 208 | D98: 0.2 | E98: 166.4 | F98: 76.17 | G98: 0 | H98: 208 | I98: 165.75 | J98: 79.6875
A99: 5 | B99: 深圳齐心集团股份有限公司 | C99: 222 | D99: 0.25 | E99: 166.5 | F99: 76.13 | G99: 0.05 | H99: 210.9 | I99: 165.75 | J99: 78.59174964
A100: 6 | B100: 北京英菲豪科技有限公司 | C100: 241 | D100: 0.3 | E100: 168.7 | F100: 75.13 | G100: 0.1 | H100: 216.9 | I100: 165.75 | J100: 76.41770401
A101: 7 | B101: 芬欧汇川（中国）有限公司 | C101: 226 | D101: 0.25 | E101: 169.5 | F101: 74.78 | G101: 0.05 | H101: 214.7 | I101: 165.75 | J101: 77.20074523
A102: 8 | B102: 北京洁简天兴商贸有限责任公司 | C102: 227 | D102: 0.25 | E102: 170.25 | F102: 74.45 | G102: 0.05 | H102: 215.65 | I102: 165.75 | J102: 76.86065384
A103: 9 | B103: 山东太阳纸业股份有限公司 | C103: 229 | D103: 0.25 | E103: 171.75 | F103: 73.8 | G103: 0.05 | H103: 217.55 | I103: 165.75 | J103: 76.18938175
A104: 10 | B104: 金鑫（清远）纸业有限公司 | C104: 221 | D104: 0.2 | E104: 176.8 | F104: 71.69 | G104: 0 | H104: 221 | I104: 165.75 | J104: 75
A105: 11 | B105: 北京洪烽信达科技有限公司 | C105: 258 | D105: 0.3 | E105: 180.6 | F105: 70.18 | G105: 0.1 | H105: 232.2 | I105: 165.75 | J105: 71.38242894
A106: 12 | B106: 理想（中国）科学工业有限公司 | C106: 280 | D106: 0.35 | E106: 182 | F106: 69.64 | G106: 0.15 | H106: 238 | I106: 165.75 | J106: 69.64285714
A107: 13 | B107: 武汉永安图商贸有限公司 | C107: 262 | D107: 0.3 | E107: 183.4 | F107: 69.11 | G107: 0.1 | H107: 235.8 | I107: 165.75 | J107: 70.29262087
A108: 分包号：5
A109: 序号 | B109: 投标人 | C109: 报价合计 | D109: 价格扣除 | E109: 扣除后报价 | F109: 价格分 | G109: 价格扣除 （修正） | H109: 扣除后报价 （修正） | I109: 价格分 基准 | J109: 价格分 （修正）
A110: 1 | B110: 珠海格之格数码科技有限公司 | C110: 200 | D110: 0.35 | E110: 130 | F110: 100 | G110: =D110-20% -> 0.15 | H110: =C110-(C110*G110) -> 170 | I110: =MIN(H110:H128) -> 170 | J110: =I110/H110*100 -> 100
A111: 2 | B111: 徐州中坚物资贸易有限公司 | C111: 210 | D111: 0.35 | E111: 136.5 | F111: 95.24 | G111: 0.15 | H111: 178.5 | I111: =I110 -> 170 | J111: 95.23809524
A112: 3 | B112: 深圳齐心集团股份有限公司 | C112: 205 | D112: 0.25 | E112: 153.75 | F112: 84.55 | G112: 0.05 | H112: 194.75 | I112: 170 | J112: 87.29139923
A113: 4 | B113: 广东天章信息纸品有限公司 | C113: 242 | D113: 0.35 | E113: 157.3 | F113: 82.64 | G113: 0.15 | H113: 205.7 | I113: 170 | J113: 82.6446281
A114: 5 | B114: 东莞市纸上繁华实业有限公司 | C114: 228 | D114: 0.3 | E114: 159.6 | F114: 81.45 | G114: 0.1 | H114: 205.2 | I114: 170 | J114: 82.8460039
A115: 6 | B115: 山东太阳纸业股份有限公司 | C115: 213 | D115: 0.25 | E115: 159.75 | F115: 81.38 | G115: 0.05 | H115: 202.35 | I115: 170 | J115: 84.01284902
A116: 7 | B116: 多林多(天津)电子商务有限公司 | C116: 249.9 | D116: 0.35 | E116: 162.435 | F116: 80.03 | G116: 0.15 | H116: 212.415 | I116: 170 | J116: 80.03201281
A117: 8 | B117: 北京奥特永盛科技有限公司 | C117: 252 | D117: 0.35 | E117: 163.8 | F117: 79.37 | G117: 0.15 | H117: 214.2 | I117: 170 | J117: 79.36507937
A118: 9 | B118: 上海晨光文具股份有限公司 | C118: 220 | D118: 0.25 | E118: 165 | F118: 78.79 | G118: 0.05 | H118: 209 | I118: 170 | J118: 81.33971292
A119: 10 | B119: 北京洁简天兴商贸有限责任公司 | C119: 229 | D119: 0.25 | E119: 171.75 | F119: 75.69 | G119: 0.05 | H119: 217.55 | I119: 170 | J119: 78.14295564
A120: 11 | B120: 湖南省鑫湘锐纸品有限公司 | C120: 265 | D120: 0.35 | E120: 172.25 | F120: 75.47 | G120: 0.15 | H120: 225.25 | I120: 170 | J120: 75.47169811
A121: 12 | B121: 芬欧汇川（中国）有限公司 | C121: 230 | D121: 0.25 | E121: 172.5 | F121: 75.36 | G121: 0.05 | H121: 218.5 | I121: 170 | J121: 77.80320366
A122: 13 | B122: 金鑫（清远）纸业有限公司 | C122: 228 | D122: 0.2 | E122: 182.4 | F122: 71.27 | G122: 0 | H122: 228 | I122: 170 | J122: 74.56140351
A123: 14 | B123: 北京瑞志林丰商贸有限公司 | C123: 230 | D123: 0.2 | E123: 184 | F123: 70.65 | G123: 0 | H123: 230 | I123: 170 | J123: 73.91304348
A124: 15 | B124: 上海联夏贸易有限公司 | C124: 235 | D124: 0.2 | E124: 188 | F124: 69.15 | G124: 0 | H124: 235 | I124: 170 | J124: 72.34042553
A125: 16 | B125: 山西华诺纸业有限公司 | C125: 270 | D125: 0.3 | E125: 189 | F125: 68.78 | G125: 0.1 | H125: 243 | I125: 170 | J125: 69.95884774
A126: 17 | B126: 北京智诚金源办公设备有限公司 | C126: 270 | D126: 0.3 | E126: 189 | F126: 68.78 | G126: 0.1 | H126: 243 | I126: 170 | J126: 69.95884774
A127: 18 | B127: 得力集团有限公司 | C127: 264 | D127: 0.25 | E127: 198 | F127: 65.66 | G127: 0.05 | H127: 250.8 | I127: 170 | J127: 67.7830941
A128: 19 | B128: 北京光印嘉业科技有限公司 | C128: 300 | D128: 0.3 | E128: 210 | F128: 61.9 | G128: 0.1 | H128: 270 | I128: 170 | J128: 62.96296296
A129: 分包号：6
A130: 序号 | B130: 投标人 | C130: 报价合计 | D130: 价格扣除 | E130: 扣除后报价 | F130: 价格分 | G130: 价格扣除 （修正） | H130: 扣除后报价 （修正） | I130: 价格分 基准 | J130: 价格分 （修正）
A131: 1 | B131: 徐州中坚物资贸易有限公司 | C131: 220 | D131: 0.3 | E131: 154 | F131: 100 | G131: =D131-20% -> 0.1 | H131: =C131-(C131*G131) -> 198 | I131: =MIN(H131:H170) -> 198 | J131: =I131/H131*100 -> 100
A132: 2 | B132: 北京美瑞思诺科技有限公司 | C132: 252 | D132: 0.35 | E132: 163.8 | F132: 94.02 | G132: 0.15 | H132: 214.2 | I132: =I131 -> 198 | J132: 92.43697479
A133: 3 | B133: 广东天章信息纸品有限公司 | C133: 253 | D133: 0.35 | E133: 164.45 | F133: 93.65 | G133: 0.15 | H133: 215.05 | I133: 198 | J133: 92.07161125
A134: 4 | B134: 苏州盛大供应链有限责任公司 | C134: 210 | D134: 0.2 | E134: 168 | F134: 91.67 | G134: 0 | H134: 210 | I134: 198 | J134: 94.28571429
A135: 5 | B135: 三木高科科技（北京）有限公司 | C135: 245 | D135: 0.3 | E135: 171.5 | F135: 89.8 | G135: 0.1 | H135: 220.5 | I135: 198 | J135: 89.79591837
A136: 6 | B136: 东莞市纸上繁华实业有限公司 | C136: 248 | D136: 0.3 | E136: 173.6 | F136: 88.71 | G136: 0.1 | H136: 223.2 | I136: 198 | J136: 88.70967742
A137: 7 | B137: 山东太阳纸业股份有限公司 | C137: 233 | D137: 0.25 | E137: 174.75 | F137: 88.13 | G137: 0.05 | H137: 221.35 | I137: 198 | J137: 89.45109555
A138: 8 | B138: 北京外文誉成纸业有限公司 | C138: 219 | D138: 0.2 | E138: 175.2 | F138: 87.9 | G138: 0 | H138: 219 | I138: 198 | J138: 90.4109589
A139: 9 | B139: 苏州领先睿采科技有限公司 | C139: 254.6 | D139: 0.3 | E139: 178.22 | F139: 86.41 | G139: 0.1 | H139: 229.14 | I139: 198 | J139: 86.41005499
A140: 10 | B140: 湖南省鑫湘锐纸品有限公司 | C140: 275 | D140: 0.35 | E140: 178.75 | F140: 86.15 | G140: 0.15 | H140: 233.75 | I140: 198 | J140: 84.70588235
A141: 11 | B141: 北京品欢科技发展有限公司 | C141: 256 | D141: 0.3 | E141: 179.2 | F141: 85.94 | G141: 0.1 | H141: 230.4 | I141: 198 | J141: 85.9375
A142: 12 | B142: 深圳齐心集团股份有限公司 | C142: 240 | D142: 0.25 | E142: 180 | F142: 85.56 | G142: 0.05 | H142: 228 | I142: 198 | J142: 86.84210526
A143: 13 | B143: 乾程理想（北京）科技发展有限公司 | C143: 279.8 | D143: 0.35 | E143: 181.87 | F143: 84.68 | G143: 0.15 | H143: 237.83 | I143: 198 | J143: 83.25274356
A144: 14 | B144: 天津安妮纸业销售有限公司 | C144: 260 | D144: 0.3 | E144: 182 | F144: 84.62 | G144: 0.1 | H144: 234 | I144: 198 | J144: 84.61538462
A145: 15 | B145: 北京金华盛林纸业有限公司 | C145: 260 | D145: 0.3 | E145: 182 | F145: 84.62 | G145: 0.1 | H145: 234 | I145: 198 | J145: 84.61538462
A146: 16 | B146: 北京英菲豪科技有限公司 | C146: 264 | D146: 0.3 | E146: 184.8 | F146: 83.33 | G146: 0.1 | H146: 237.6 | I146: 198 | J146: 83.33333333
A147: 17 | B147: 理想（中国）科学工业有限公司 | C147: 286.5 | D147: 0.35 | E147: 186.225 | F147: 82.7 | G147: 0.15 | H147: 243.525 | I147: 198 | J147: 81.30582076
A148: 18 | B148: 芬欧汇川（中国）有限公司 | C148: 249 | D148: 0.25 | E148: 186.75 | F148: 82.46 | G148: 0.05 | H148: 236.55 | I148: 198 | J148: 83.70323399
A149: 19 | B149: 宁波市利宏信息系统工程有限公司 | C149: 288 | D149: 0.35 | E149: 187.2 | F149: 82.26 | G149: 0.15 | H149: 244.8 | I149: 198 | J149: 80.88235294
A150: 20 | B150: 北京齐心易购电子商务有限公司 | C150: 268 | D150: 0.3 | E150: 187.6 | F150: 82.09 | G150: 0.1 | H150: 241.2 | I150: 198 | J150: 82.08955224
A151: 21 | B151: 北京洁简天兴商贸有限责任公司 | C151: 251 | D151: 0.25 | E151: 188.25 | F151: 81.81 | G151: 0.05 | H151: 238.45 | I151: 198 | J151: 83.03627595
A152: 22 | B152: 北京奥特永盛科技有限公司 | C152: 290 | D152: 0.35 | E152: 188.5 | F152: 81.7 | G152: 0.15 | H152: 246.5 | I152: 198 | J152: 80.32454361
A153: 23 | B153: 多林多(天津)电子商务有限公司 | C153: 270 | D153: 0.3 | E153: 189 | F153: 81.48 | G153: 0.1 | H153: 243 | I153: 198 | J153: 81.48148148
A154: 24 | B154: 北京兆雄薪火科技有限公司 | C154: 272 | D154: 0.3 | E154: 190.4 | F154: 80.88 | G154: 0.1 | H154: 244.8 | I154: 198 | J154: 80.88235294
A155: 25 | B155: 北京中盛宏达科技有限公司 | C155: 272 | D155: 0.3 | E155: 190.4 | F155: 80.88 | G155: 0.1 | H155: 244.8 | I155: 198 | J155: 80.88235294
A156: 26 | B156: 山西华诺纸业有限公司 | C156: 274 | D156: 0.3 | E156: 191.8 | F156: 80.29 | G156: 0.1 | H156: 246.6 | I156: 198 | J156: 80.2919708
A157: 27 | B157: 北京智诚金源办公设备有限公司 | C157: 274 | D157: 0.3 | E157: 191.8 | F157: 80.29 | G157: 0.1 | H157: 246.6 | I157: 198 | J157: 80.2919708
A158: 28 | B158: 北京紫旭炫东文化用品有限公司 | C158: 240 | D158: 0.2 | E158: 192 | F158: 80.21 | G158: 0 | H158: 240 | I158: 198 | J158: 82.5
A159: 29 | B159: 北京瑞志林丰商贸有限公司 | C159: 240 | D159: 0.2 | E159: 192 | F159: 80.21 | G159: 0 | H159: 240 | I159: 198 | J159: 82.5
A160: 30 | B160: 北京首科红兴商贸有限公司 | C160: 280 | D160: 0.3 | E160: 196 | F160: 78.57 | G160: 0.1 | H160: 252 | I160: 198 | J160: 78.57142857
A161: 31 | B161: 北京依文裕福商贸有限公司 | C161: 280 | D161: 0.3 | E161: 196 | F161: 78.57 | G161: 0.1 | H161: 252 | I161: 198 | J161: 78.57142857
A162: 32 | B162: 北京广捷富源科贸有限公司 | C162: 280 | D162: 0.3 | E162: 196 | F162: 78.57 | G162: 0.1 | H162: 252 | I162: 198 | J162: 78.57142857
A163: 33 | B163: 北京飞博宏达商贸有限公司 | C163: 280 | D163: 0.3 | E163: 196 | F163: 78.57 | G163: 0.1 | H163: 252 | I163: 198 | J163: 78.57142857
A164: 34 | B164: 金鑫（清远）纸业有限公司 | C164: 246 | D164: 0.2 | E164: 196.8 | F164: 78.25 | G164: 0 | H164: 246 | I164: 198 | J164: 80.48780488
A165: 35 | B165: 北京永辉正兴文化用品有限公司 | C165: 290 | D165: 0.3 | E165: 203 | F165: 75.86 | G165: 0.1 | H165: 261 | I165: 198 | J165: 75.86206897
A166: 36 | B166: 优士创新商业集团有限公司 | C166: 312.8 | D166: 0.35 | E166: 203.32 | F166: 75.74 | G166: 0.15 | H166: 265.88 | I166: 198 | J166: 74.46968557
A167: 37 | B167: 上海联夏贸易有限公司 | C167: 258 | D167: 0.2 | E167: 206.4 | F167: 74.61 | G167: 0 | H167: 258 | I167: 198 | J167: 76.74418605
A168: 38 | B168: 得力集团有限公司 | C168: 281.5 | D168: 0.25 | E168: 211.125 | F168: 72.94 | G168: 0.05 | H168: 267.425 | I168: 198 | J168: 74.03945031
A169: 39 | B169: 广州市达远智能办公设备有限公司 | C169: 340 | D169: 0.35 | E169: 221 | F169: 69.68 | G169: 0.15 | H169: 289 | I169: 198 | J169: 68.51211073
A170: 40 | B170: 润天恒业科技集团有限公司 | C170: 338 | D170: 0.3 | E170: 236.6 | F170: 65.09 | G170: 0.1 | H170: 304.2 | I170: 198 | J170: 65.0887574
A171: 分包号：7
A172: 序号 | B172: 投标人 | C172: 报价合计 | D172: 价格扣除 | E172: 扣除后报价 | F172: 价格分 | G172: 价格扣除 （修正） | H172: 扣除后报价 （修正） | I172: 价格分 基准 | J172: 价格分 （修正）
A173: 1 | B173: 广东天章信息纸品有限公司 | C173: 265 | D173: 0.35 | E173: 172.25 | F173: 100 | G173: =D173-20% -> 0.15 | H173: =C173-(C173*G173) -> 225.25 | I173: =MIN(H173:H191) -> 225.25 | J173: =I173/H173*100 -> 100
A174: 2 | B174: 北京美瑞思诺科技有限公司 | C174: 278 | D174: 0.35 | E174: 180.7 | F174: 95.32 | G174: 0.15 | H174: 236.3 | I174: =I173 -> 225.25 | J174: 95.32374101
A175: 3 | B175: 北京金华盛林纸业有限公司 | C175: 266 | D175: 0.3 | E175: 186.2 | F175: 92.51 | G175: 0.1 | H175: 239.4 | I175: 225.25 | J175: 94.08939014
A176: 4 | B176: 多林多(天津)电子商务有限公司 | C176: 290 | D176: 0.35 | E176: 188.5 | F176: 91.38 | G176: 0.15 | H176: 246.5 | I176: 225.25 | J176: 91.37931034
A177: 5 | B177: 天津荣来印刷材料商贸有限公司 | C177: 270 | D177: 0.3 | E177: 189 | F177: 91.14 | G177: 0.1 | H177: 243 | I177: 225.25 | J177: 92.69547325
A178: 6 | B178: 山东太阳纸业股份有限公司 | C178: 253 | D178: 0.25 | E178: 189.75 | F178: 90.78 | G178: 0.05 | H178: 240.35 | I178: 225.25 | J178: 93.71749532
A179: 7 | B179: 北京日益升网络科技有限公司 | C179: 272 | D179: 0.3 | E179: 190.4 | F179: 90.47 | G179: 0.1 | H179: 244.8 | I179: 225.25 | J179: 92.01388889
A180: 8 | B180: 北京市骅远商贸有限公司 | C180: 274 | D180: 0.3 | E180: 191.8 | F180: 89.81 | G180: 0.1 | H180: 246.6 | I180: 225.25 | J180: 91.34225466
A181: 9 | B181: 北京洪烽信达科技有限公司 | C181: 278.5 | D181: 0.3 | E181: 194.95 | F181: 88.36 | G181: 0.1 | H181: 250.65 | I181: 225.25 | J181: 89.8663475
A182: 10 | B182: 芬欧汇川（中国）有限公司 | C182: 260 | D182: 0.25 | E182: 195 | F182: 88.33 | G182: 0.05 | H182: 247 | I182: 225.25 | J182: 91.19433198
A183: 11 | B183: 北京洁简天兴商贸有限责任公司 | C183: 260 | D183: 0.25 | E183: 195 | F183: 88.33 | G183: 0.05 | H183: 247 | I183: 225.25 | J183: 91.19433198
A184: 12 | B184: 北京紫旭炫东文化用品有限公司 | C184: 244 | D184: 0.2 | E184: 195.2 | F184: 88.24 | G184: 0 | H184: 244 | I184: 225.25 | J184: 92.31557377
A185: 13 | B185: 天津汇通融合网络科技有限公司 | C185: 279 | D185: 0.3 | E185: 195.3 | F185: 88.2 | G185: 0.1 | H185: 251.1 | I185: 225.25 | J185: 89.70529669
A186: 14 | B186: 北京天和志业科技发展有限公司 | C186: 280 | D186: 0.3 | E186: 196 | F186: 87.88 | G186: 0.1 | H186: 252 | I186: 225.25 | J186: 89.38492063
A187: 15 | B187: 北京华腾鑫业科技有限公司 | C187: 282 | D187: 0.3 | E187: 197.4 | F187: 87.26 | G187: 0.1 | H187: 253.8 | I187: 225.25 | J187: 88.75098503
A188: 16 | B188: 北京齐心易购电子商务有限公司 | C188: 285 | D188: 0.3 | E188: 199.5 | F188: 86.34 | G188: 0.1 | H188: 256.5 | I188: 225.25 | J188: 87.81676413
A189: 17 | B189: 北京瑞志林丰商贸有限公司 | C189: 255 | D189: 0.2 | E189: 204 | F189: 84.44 | G189: 0 | H189: 255 | I189: 225.25 | J189: 88.33333333
A190: 18 | B190: 金鑫（清远）纸业有限公司 | C190: 258 | D190: 0.2 | E190: 206.4 | F190: 83.45 | G190: 0 | H190: 258 | I190: 225.25 | J190: 87.30620155
A191: 19 | B191: 北京依文裕福商贸有限公司 | C191: 297 | D191: 0.3 | E191: 207.9 | F191: 82.85 | G191: 0.1 | H191: 267.3 | I191: 225.25 | J191: 84.26861205
A192: 分包号：8
A193: 序号 | B193: 投标人 | C193: 报价合计 | D193: 价格扣除 | E193: 扣除后报价 | F193: 价格分 | G193: 价格扣除 （修正） | H193: 扣除后报价 （修正） | I193: 价格分 基准 | J193: 价格分 （修正）
A194: 1 | B194: 徐州中坚物资贸易有限公司 | C194: 225 | D194: 0.3 | E194: 157.5 | F194: 100 | G194: =D194-20% -> 0.1 | H194: =C194-(C194*G194) -> 202.5 | I194: =MIN(H194:H202) -> 202.5 | J194: =I194/H194*100 -> 100
A195: 2 | B195: 东莞市纸上繁华实业有限公司 | C195: 252 | D195: 0.3 | E195: 176.4 | F195: 89.29 | G195: 0.1 | H195: 226.8 | I195: =I194 -> 202.5 | J195: 89.28571429
A196: 3 | B196: 芬欧汇川（中国）有限公司 | C196: 260 | D196: 0.25 | E196: 195 | F196: 80.77 | G196: 0.05 | H196: 247 | I196: 202.5 | J196: 81.98380567
A197: 4 | B197: 北京洁简天兴商贸有限责任公司 | C197: 260 | D197: 0.25 | E197: 195 | F197: 80.77 | G197: 0.05 | H197: 247 | I197: 202.5 | J197: 81.98380567
A198: 5 | B198: 深圳齐心集团股份有限公司 | C198: 260 | D198: 0.25 | E198: 195 | F198: 80.77 | G198: 0.05 | H198: 247 | I198: 202.5 | J198: 81.98380567
A199: 6 | B199: 湖南省鑫湘锐纸品有限公司 | C199: 280 | D199: 0.3 | E199: 196 | F199: 80.36 | G199: 0.1 | H199: 252 | I199: 202.5 | J199: 80.35714286
A200: 7 | B200: 北京紫旭炫东文化用品有限公司 | C200: 246 | D200: 0.2 | E200: 196.8 | F200: 80.03 | G200: 0 | H200: 246 | I200: 202.5 | J200: 82.31707317
... 399 more rows

Sheet 原 (hidden)
A1: 价格分
A2: 包号：1
A3: 序号 | B3: 供应商名称 | C3: 入围产品(配件)型号或规格 | D3: 报价 | E3: 评审价格 | F3: 加权评审价格 | G3: 排名 | H3: 是否入围 | I3: 评审价格 （修正） | J3: 排名(修正) | K3: 是否入围(修正)
A4: 1 | B4: 徐州中坚物资贸易有限公司 | C4: 中坚红延ZJ7717静电复印纸A370克500张/包5包/箱 | D4: 175.00元 | E4: 122.5元 | F4: 70gA3-★:122.5元 | G4: 1 | H4: 是 | I4: 157.5
A5: 2 | B5: 广东天章信息纸品有限公司 | C5: 新绿天章复印纸A370g500张/包5包/箱白⾊ | D5: 190元 | E5: 123.5元 | F5: 70gA3-★:123.5元 | G5: 2 | H5: 是 | I5: 161.5
A6: 3 | B6: 珠海格之格数码科技有限公司 | C6: 格之格复印纸-嫦娥系列A3-70G-5 | D6: 192元 | E6: 124.8元 | F6: 70gA3-★:124.8元 | G6: 3 | H6: 是 | I6: 163.2
A7: 4 | B7: 东莞市纸上繁华实业有限公司 | C7: 纸上繁华经典装70克A3 | D7: 188元 | E7: 131.6元 | F7: 70gA3-★:131.6元 | G7: 4 | H7: 是 | I7: 169.2
A8: 5 | B8: 天津安妮纸业销售有限公司 | C8: 热带鱼复印纸70gA3 | D8: 190元 | E8: 133元 | F8: 70gA3-★:133元 | G8: 5 | H8: 是 | I8: 171
A9: 6 | B9: 北京美瑞思诺科技有限公司 | C9: 全聚得绿色森林A370克复印纸5包/箱 | D9: 210元 | E9: 136.5元 | F9: 70gA3-★:136.5元 | G9: 6 | H9: 是 | I9: 178.5
A10: 7 | B10: 深圳齐心集团股份有限公司 | C10: 齐心A3-70克 | D10: 182元 | E10: 136.5元 | F10: 70gA3-★:136.5元 | G10: 7 | H10: 是 | I10: 172.9
A11: 8 | B11: 北京洁简天兴商贸有限责任公司 | C11: 印爽70gA3全木浆中性静电复印纸500张/包5包/箱 | D11: 186元 | E11: 139.5元 | F11: 70gA3-★:139.5元 | G11: 8 | H11: 是 | I11: 176.7
A12: 9 | B12: 芬欧汇川（中国）有限公司 | C12: 锦语70gA3复印纸5包/箱 | D12: 188元 | E12: 141元 | F12: 70gA3-★:141元 | G12: 9 | H12: 是 | I12: 178.6
A13: 10 | B13: 山东太阳纸业股份有限公司 | C13: 天阳70gA3复印纸5包/箱 | D13: 189元 | E13: 141.75元 | F13: 70gA3-★:141.75元 | G13: 10 | H13: 是 | I13: 179.55
A14: 11 | B14: 湖南省鑫湘锐纸品有限公司 | C14: 银甲复印纸70gA35包/箱 | D14: 220元 | E14: 143元 | F14: 70gA3-★:143元 | G14: 11 | H14: 是 | I14: 187
A15: 12 | B15: 多林多(天津)电子商务有限公司 | C15: 未来鸟多功能静电复印纸70gA3500张/包5包/箱 | D15: 220元 | E15: 143元 | F15: 70gA3-★:143元 | G15: 12 | H15: 是 | I15: 187
A16: 13 | B16: 北京奥特永盛科技有限公司 | C16: 伊莉娜多功能复印纸70gA3-5包 | D16: 220元 | E16: 143元 | F16: 70gA3-★:143元 | G16: 13 | H16: 是 | I16: 187
A17: 14 | B17: 金鑫（清远）纸业有限公司 | C17: 金光APP星旗舰复印纸70G/A35包/箱 | D17: 187.2元 | E17: 149.76元 | F17: 70gA3-★:149.76元 | G17: 14 | H17: 是 | I17: 187.2
A18: 15 | B18: 北京瑞志林丰商贸有限公司 | C18: 感动常在（畅打）70克A3 | D18: 190元 | E18: 152元 | F18: 70gA3-★:152元 | G18: 15 | H18: 是 | I18: 190
A19: 16 | B19: 苏州领先睿采科技有限公司 | C19: 未来兴70gA3白色复印纸500张/包5包/箱计价单位:箱 | D19: 218元 | E19: 152.6元 | F19: 70gA3-★:152.6元 | G19: 16 | H19: 是 | I19: 196.2
A20: 17 | B20: 三木高科科技（北京）有限公司 | C20: 品墨格/PINMOGEA3/70g精品复印纸 | D20: 220.00元 | E20: 154元 | F20: 70gA3-★:154元 | G20: 17 | H20: 是 | I20: 198
A21: 18 | B21: 新元同创（北京）科技有限公司 | C21: 新元同创复印纸70克A3-5包装 | D21: 222元 | E21: 155.4元 | F21: 70gA3-★:155.4元 | G21: 18 | H21: 是 | I21: 199.8
A22: 19 | B22: 得力集团有限公司 | C22: 得力A3-70G复印纸7373 | D22: 211元 | E22: 158.25元 | F22: 70gA3-★:158.25元 | G22: 19 | H22: 是 | I22: 200.45
A23: 20 | B23: 苏州盛大供应链有限责任公司 | C23: 大崔70gA3多功能复印纸/打印纸 | D23: 200元 | E23: 160元 | F23: 70gA3-★:160元 | G23: 20 | H23: 是 | I23: 200
A24: 21 | B24: 北京永辉正兴文化用品有限公司 | C24: 蓝图复印纸70gA3 | D24: 230.00元 | E24: 161元 | F24: 70gA3-★:161元 | G24: 21 | H24: 是 | I24: 207
A25: 22 | B25: 武汉永安图商贸有限公司 | C25: 白海豚A3打印纸70g复印纸白纸A3-70g | D25: 218元 | E25: 163.5元 | F25: 70gA3-★:163.5元 | G25: - | H25: 否 | I25: 207.1
A26: 23 | B26: 山西华诺纸业有限公司 | C26: 兴茂天成（青花）70gA3复印纸5包装 | D26: 236元 | E26: 165.2元 | F26: 70gA3-★:165.2元 | G26: - | H26: 否 | I26: 212.4
A27: 24 | B27: 北京智诚金源办公设备有限公司 | C27: 懂微70克A3复印纸5包装 | D27: 236.00元 | E27: 165.2元 | F27: 70gA3-★:165.2元 | G27: - | H27: 否 | I27: 212.4
A28: 25 | B28: 润天恒业科技集团有限公司 | C28: 润天壹号A370g复印纸整箱a3打印纸 | D28: 236.6元 | E28: 165.62元 | F28: 70gA3-★:165.62元 | G28: - | H28: 否 | I28: 212.94
A29: 26 | B29: 广州市达远智能办公设备有限公司 | C29: 科思特匠心复印纸A370g500张/包5包/箱 | D29: 260元 | E29: 169元 | F29: 70gA3-★:169元 | G29: - | H29: 否 | I29: 221
A30: 27 | B30: 北京光印嘉业科技有限公司 | C30: 印友佳70gA3多功能复印纸5包/箱 | D30: 245元 | E30: 171.5元 | F30: 70gA3-★:171.5元 | G30: - | H30: 否 | I30: 220.5
A31: 包号:2
A32: 序号 | B32: 供应商名称 | C32: 入围产品(配件)型号或规格 | D32: 报价 | E32: 评审价格 | F32: 加权评审价格 | G32: 排名 | H32: 是否入围 | I32: 评审价格 （修正） | J32: 排名(修正) | K32: 是否入围(修正)
A33: 1 | B33: 徐州中坚物资贸易有限公司 | C33: 中坚银河ZJ7618静电复印纸A370克500张/包5包/箱 | D33: 195元 | E33: 136.5元 | F33: 70gA3-★★★:136.5元 | G33: 1 | H33: 是 | I33: 175.5
A34: 2 | B34: 彩虹鸟（北京）科贸有限公司 | C34: 70gA3三星 | D34: 196元 | E34: 137.2元 | F34: 70gA3-★★★:137.2元 | G34: 2 | H34: 是 | I34: 176.4
A35: 3 | B35: 广东天章信息纸品有限公司 | C35: 世纪天章复印纸A370g500张/包5包/箱白色 | D35: 221元 | E35: 143.65元 | F35: 70gA3-★★★:143.65元 | G35: 3 | H35: 是 | I35: 187.85
A36: 4 | B36: 东莞市纸上繁华实业有限公司 | C36: 纸上繁华精品装70克A3 | D36: 220元 | E36: 154元 | F36: 70gA3-★★★:154元 | G36: 4 | H36: 是 | I36: 198
A37: 5 | B37: 北京美瑞思诺科技有限公司 | C37: 全聚得蓝银版A370克复印纸5包/箱 | D37: 238元 | E37: 154.7元 | F37: 70gA3-★★★:154.7元 | G37: 5 | H37: 是 | I37: 202.3
A38: 6 | B38: 北京外文誉成纸业有限公司 | C38: 70gA3外文誉成复印纸 | D38: 195元 | E38: 156元 | F38: 70gA3-★★★:156元 | G38: 6 | H38: 是 | I38: 195
A39: 7 | B39: 山东太阳纸业股份有限公司 | C39: 70gA3太阳佳 | D39: 209元 | E39: 156.75元 | F39: 70gA3-★★★:156.75元 | G39: 7 | H39: 是 | I39: 198.55
A40: 8 | B40: 北京金华盛林纸业有限公司 | C40: 印洁复印纸 | D40: 226元 | E40: 158.2元 | F40: 70gA3-★★★:158.2元 | G40: 8 | H40: 是 | I40: 203.4
A41: 9 | B41: 乾程理想（北京）科技发展有限公司 | C41: 理想人70gA3复印纸 | D41: 244.8元 | E41: 159.12元 | F41: 70gA3-★★★:159.12元 | G41: 9 | H41: 是 | I41: 208.08
A42: 10 | B42: 湖南省鑫湘锐纸品有限公司 | C42: 蓝鸟复印纸70gA35包/箱 | D42: 245元 | E42: 159.25元 | F42: 70gA3-★★★:159.25元 | G42: 10 | H42: 是 | I42: 208.25
A43: 11 | B43: 北京奥特永盛科技有限公司 | C43: 飞星鱼多功能复印纸70gA3-5包 | D43: 245元 | E43: 159.25元 | F43: 70gA3-★★★:159.25元 | G43: 11 | H43: 是 | I43: 208.25
A44: 12 | B44: 天津安妮纸业销售有限公司 | C44: 安妮复印纸70gA3 | D44: 230元 | E44: 161元 | F44: 70gA3-★★★:161元 | G44: 12 | H44: 是 | I44: 207
A45: 13 | B45: 宁波市利宏信息系统工程有限公司 | C45: 全球70gA3 | D45: 249元 | E45: 161.85元 | F45: 70gA3-★★★:161.85元 | G45: 13 | H45: 是 | I45: 211.65
A46: 14 | B46: 北京兆雄薪火科技有限公司 | C46: 默远复印纸70gA4-★★★ | D46: 232元 | E46: 162.4元 | F46: 70gA3-★★★:162.4元 | G46: 14 | H46: 是 | I46: 208.8
A47: 15 | B47: 新元同创（北京）科技有限公司 | C47: 网络时代复印纸70克A3-5包装 | D47: 232元 | E47: 162.4元 | F47: 70gA3-★★★:162.4元 | G47: 15 | H47: 是 | I47: 208.8
A48: 16 | B48: 北京中盛宏达科技有限公司 | C48: 戴姆勒复印纸70gA3500张/包5包/箱 | D48: 232元 | E48: 162.4元 | F48: 70gA3-★★★:162.4元 | G48: 16 | H48: 是 | I48: 208.8
A49: 17 | B49: 理想（中国）科学工业有限公司 | C49: 理想之星70gA3复印纸 | D49: 250.7元 | E49: 162.955元 | F49: 70gA3-★★★:162.955元 | G49: 17 | H49: 是 | I49: 213.095
A50: 18 | B50: 芬欧汇川（中国）有限公司 | C50: 佳印70gA3复印纸5包/箱 | D50: 220元 | E50: 165元 | F50: 70gA3-★★★:165元 | G50: 18 | H50: 是 | I50: 209
A51: 19 | B51: 北京品欢科技发展有限公司 | C51: 五星红鸟复印纸70gA3500张/包5包/箱 | D51: 236元 | E51: 165.2元 | F51: 70gA3-★★★:165.2元 | G51: 19 | H51: 是 | I51: 212.4
A52: 20 | B52: 北京英菲豪科技有限公司 | C52: 蓝纸象70gA3复印纸5包/箱 | D52: 238.8元 | E52: 167.16元 | F52: 70gA3-★★★:167.16元 | G52: 20 | H52: 是 | I52: 214.92
A53: 21 | B53: 多林多(天津)电子商务有限公司 | C53: QUAINT多功能静电复印纸70gA3500张/包5包/箱 | D53: 240元 | E53: 168元 | F53: 70gA3-★★★:168元 | G53: 21 | H53: 是 | I53: 216
A54: 22 | B54: 山西华诺纸业有限公司 | C54: 傲雪（雪人）70gA3复印纸5包装 | D54: 240元 | E54: 168元 | F54: 70gA3-★★★:168元 | G54: 22 | H54: 是 | I54: 210
A55: 23 | B55: 北京智诚金源办公设备有限公司 | C55: 乐鸟70克A3复印纸5包装 | D55: 240.00元 | E55: 168元 | F55: 70gA3-★★★:168元 | G55: 23 | H55: 是 | I55: 216
A56: 24 | B56: 北京紫旭炫东文化用品有限公司 | C56: 晨鸣70gA3复印纸复印纸5包/箱 | D56: 210元 | E56: 168元 | F56: 70gA3-★★★:168元 | G56: 24 | H56: 是 | I56: 216
A57: 25 | B57: 北京齐心易购电子商务有限公司 | C57: 百优复印纸70克A3 | D57: 241元 | E57: 168.7元 | F57: 70gA3-★★★:168.7元 | G57: 25 | H57: 是 | I57: 216.9
A58: 26 | B58: 北京洁简天兴商贸有限责任公司 | C58: 晶彩高品乐70gA3多功能复印纸（复印、打印、传真纸）5包/箱500张/包 | D58: 225元 | E58: 168.75元 | F58: 70gA3-★★★:168.75元 | G58: 26 | H58: 是 | I58: 213.75
A59: 27 | B59: 北京依文裕福商贸有限公司 | C59: 超速（绿色）70gA3复印纸 | D59: 242元 | E59: 169.4元 | F59: 70gA3-★★★:169.4元 | G59: 27 | H59: 是 | I59: 217.8
A60: 28 | B60: 金鑫（清远）纸业有限公司 | C60: 金光APP如佳复印纸70/A35包/箱 | D60: 212.6元 | E60: 170.08元 | F60: 70gA3-★★★:170.08元 | G60: 28 | H60: 是 | I60: 212.6
A61: 29 | B61: 北京广捷富源科贸有限公司 | C61: 二星蓝70克A3-5包复印纸 | D61: 245元 | E61: 171.5元 | F61: 70gA3-★★★:171.5元 | G61: - | H61: 否 | I61: 220.5
A62: 30 | B62: 北京飞博宏达商贸有限公司 | C62: 智印70gA3复印纸5包/箱 | D62: 245元 | E62: 171.5元 | F62: 70gA3-★★★:171.5元 | G62: - | H62: 否 | I62: 220.5
A63: 31 | B63: 优士创新商业集团有限公司 | C63: 颂道ZF170复印纸A3-70g(蓝色包装) | D63: 263.90元 | E63: 171.535元 | F63: 70gA3-★★★:171.535元 | G63: - | H63: 否 | I63: 224.315
A64: 32 | B64: 北京首科红兴商贸有限公司 | C64: 清图70gA3 | D64: 246元 | E64: 172.2元 | F64: 70gA3-★★★:172.2元 | G64: - | H64: 否 | I64: 221.4
A65: 33 | B65: 北京瑞志林丰商贸有限公司 | C65: 佳能70克A3 | D65: 216元 | E65: 172.8元 | F65: 70gA3-★★★:172.8元 | G65: - | H65: 否 | I65: 216
A66: 34 | B66: 得力集团有限公司 | C66: 得力A3-70g复印纸ZF3571 | D66: 237.5元 | E66: 178.125元 | F66: 70gA3-★★★:178.125元 | G66: - | H66: 否 | I66: 225.625
A67: 35 | B67: 武汉永安图商贸有限公司 | C67: 楚风A3打印纸70g500张单包复印纸 | D67: 256元 | E67: 179.2元 | F67: 70gA3-★★★:179.2元 | G67: - | H67: 否 | I67: 230.4
A68: 36 | B68: 上海联夏贸易有限公司 | C68: 采奕复印纸A370g | D68: 225元 | E68: 180元 | F68: 70gA3-★★★:180元 | G68: - | H68: 否 | I68: 225
A69: 包号:3
A70: 序号 | B70: 供应商名称 | C70: 入围产品(配件)型号或规格 | D70: 报价 | E70: 评审价格 | F70: 加权评审价格 | G70: 排名 | H70: 是否入围 | I70: 评审价格 （修正） | J70: 排名(修正) | K70: 是否入围(修正)
A71: 1 | B71: 广东天章信息纸品有限公司 | C71: 天章龙复印纸A370g500张/包5包/箱白色 | D71: 230元 | E71: 149.5元 | F71: 70gA3-★★★★:149.5元 | G71: 1 | H71: 是 | I71: 195.5
A72: 2 | B72: 深圳齐心集团股份有限公司 | C72: 齐心晶纯A3-70克 | D72: 214元 | E72: 160.5元 | F72: 70gA3-★★★★:160.5元 | G72: 2 | H72: 是 | I72: 203.3
A73: 3 | B73: 北京美瑞思诺科技有限公司 | C73: 全聚得红金版A370克复印纸5包/箱 | D73: 248元 | E73: 161.2元 | F73: 70gA3-★★★★:161.2元 | G73: 3 | H73: 是 | I73: 210.8
A74: 4 | B74: 北京金华盛林纸业有限公司 | C74: 红金球复印纸 | D74: 232元 | E74: 162.4元 | F74: 70gA3-★★★★:162.4元 | G74: 4 | H74: 是 | I74: 208.8
A75: 5 | B75: 湖南省鑫湘锐纸品有限公司 | C75: 欧芬小秘书复印纸70gA35包/箱 | D75: 255元 | E75: 165.75元 | F75: 70gA3-★★★★:165.75元 | G75: 5 | H75: 是 | I75: 216.75
A76: 6 | B76: 北京天和志业科技发展有限公司 | C76: 效润A3/70g优品多功能复印纸5包/箱 | D76: 240元 | E76: 168元 | F76: 70gA3-★★★★:168元 | G76: 6 | H76: 是 | I76: 216
A77: 7 | B77: 北京康乐欣文化用品有限公司 | C77: 亚美A370g多功能（复印纸、打印纸）5包/箱 | D77: 244元 | E77: 170.8元 | F77: 70gA3-★★★★:170.8元 | G77: 7 | H77: 是 | I77: 219.6
A78: 8 | B78: 北京齐心易购电子商务有限公司 | C78: 金铂林复印纸70克A3 | D78: 245元 | E78: 171.5元 | F78: 70gA3-★★★★:171.5元 | G78: 8 | H78: 是 | I78: 220.5
A79: 9 | B79: 天津荣来印刷材料商贸有限公司 | C79: 金铭洋70gA3复印纸 | D79: 245元 | E79: 171.5元 | F79: 70gA3-★★★★:171.5元 | G79: 9 | H79: 是 | I79: 220.5
A80: 10 | B80: 山东太阳纸业股份有限公司 | C80: 金太阳70gA3复印纸5包/箱 | D80: 229元 | E80: 171.75元 | F80: 70gA3-★★★★:171.75元 | G80: 10 | H80: 是 | I80: 217.55
A81: 11 | B81: 多林多(天津)电子商务有限公司 | C81: 创世纪多功能静电复印纸70gA3500张/包5包/箱 | D81: 265元 | E81: 172.25元 | F81: 70gA3-★★★★:172.25元 | G81: 11 | H81: 是 | I81: 225.25
A82: 12 | B82: 芬欧汇川（中国）有限公司 | C82: 超级佳印70gA3复印纸5包/箱 | D82: 230元 | E82: 172.5元 | F82: 70gA3-★★★★:172.5元 | G82: 12 | H82: 是 | I82: 218.5
A83: 13 | B83: 北京日益升网络科技有限公司 | C83: 吉祥鸟70克A3-5复印纸 | D83: 246.5元 | E83: 172.55元 | F83: 70gA3-★★★★:172.55元 | G83: 13 | H83: 是 | I83: 221.85
A84: 14 | B84: 北京市骅远商贸有限公司 | C84: 阿顺70克A3复印纸500张/包5包/箱 | D84: 248元 | E84: 173.6元 | F84: 70gA3-★★★★:173.6元 | G84: 14 | H84: 是 | I84: 223.2
A85: 15 | B85: 北京瑞志林丰商贸有限公司 | C85: 感动常在（铂金）70克A3 | D85: 220元 | E85: 176元 | F85: 70gA3-★★★★:176元 | G85: 15 | H85: 是 | I85: 220
A86: 16 | B86: 北京紫旭炫东文化用品有限公司 | C86: 金晨鸣70克A3复印纸5包/箱 | D86: 221元 | E86: 176.8元 | F86: 70gA3-★★★★:176.8元 | G86: 16 | H86: 是 | I86: 221
A87: 17 | B87: 北京洁简天兴商贸有限责任公司 | C87: 蓝百旺70gA3多功能复印纸（复印、打印、传真用纸）5包/箱500张/包 | D87: 237元 | E87: 177.75元 | F87: 70gA3-★★★★:177.75元 | G87: 17 | H87: 是 | I87: 225.15
A88: 18 | B88: 天津汇通融合网络科技有限公司 | C88: 亮剑70gA3复印纸5包/箱 | D88: 255元 | E88: 178.5元 | F88: 70gA3-★★★★:178.5元 | G88: - | H88: 否 | I88: 229.5
A89: 19 | B89: 北京依文裕福商贸有限公司 | C89: 超速70gA3 | D89: 256元 | E89: 179.2元 | F89: 70gA3-★★★★:179.2元 | G89: - | H89: 否 | I89: 230.4
A90: 20 | B90: 北京洪烽信达科技有限公司 | C90: 金色幻影70gA3多功能复印纸5包/箱 | D90: 256元 | E90: 179.2元 | F90: 70gA3-★★★★:179.2元 | G90: - | H90: 否 | I90: 230.4
A91: 21 | B91: 北京华腾鑫业科技有限公司 | C91: 柘印70gA3多功能办公复印纸（5包/箱） | D91: 258元 | E91: 180.6元 | F91: 70gA3-★★★★:180.6元 | G91: - | H91: 否 | I91: 232.2
A92: 22 | B92: 金鑫（清远）纸业有限公司 | C92: 金光APP金旗舰复印纸70G/A35包/箱 | D92: 226.6元 | E92: 181.28元 | F92: 70gA3-★★★★:181.28元 | G92: - | H92: 否 | I92: 226.6
A93: 包号:4
A94: 序号 | B94: 供应商名称 | C94: 入围产品(配件)型号或规格 | D94: 报价 | E94: 评审价格 | F94: 加权评审价格 | G94: 排名 | H94: 是否入围 | I94: 评审价格 （修正） | J94: 排名(修正) | K94: 是否入围(修正)
A95: 1 | B95: 徐州中坚物资贸易有限公司 | C95: 中坚绿洲ZJ7675静电复印纸A375克500张/包5包/箱 | D95: 195元 | E95: 126.75元 | F95: 75gA3-★★:126.75元 | G95: 1 | H95: 是 | I95: 165.75
A96: 2 | B96: 天津荣来印刷材料商贸有限公司 | C96: 铭洋75克A3复印纸 | D96: 230元 | E96: 161元 | F96: 75gA3-★★:161元 | G96: 2 | H96: 是 | I96: 207
A97: 3 | B97: 湖南省鑫湘锐纸品有限公司 | C97: 欧芬小秘书复印纸75gA35包/箱 | D97: 255元 | E97: 165.75元 | F97: 75gA3-★★:165.75元 | G97: 3 | H97: 是 | I97: 216.75
A98: 4 | B98: 北京紫旭炫东文化用品有限公司 | C98: 晨鸣75克A3复印纸5包/箱 | D98: 208元 | E98: 166.4元 | F98: 75gA3-★★:166.4元 | G98: 4 | H98: 是 | I98: 208
A99: 5 | B99: 深圳齐心集团股份有限公司 | C99: 齐心晶纯A3-75克 | D99: 222元 | E99: 166.5元 | F99: 75gA3-★★:166.5元 | G99: 5 | H99: 是 | I99: 210.9
A100: 6 | B100: 北京英菲豪科技有限公司 | C100: 锦跃75gA4复印纸 | D100: 241元 | E100: 168.7元 | F100: 75gA3-★★:168.7元 | G100: 6 | H100: 是 | I100: 216.9
A101: 7 | B101: 芬欧汇川（中国）有限公司 | C101: 卓越佳印75gA3复印纸5包/箱 | D101: 226元 | E101: 169.5元 | F101: 75gA3-★★:169.5元 | G101: 7 | H101: 是 | I101: 214.7
A102: 8 | B102: 北京洁简天兴商贸有限责任公司 | C102: 高品乐75gA3复印纸5包/箱 | D102: 227元 | E102: 170.25元 | F102: 75gA3-★★:170.25元 | G102: 8 | H102: 是 | I102: 215.65
A103: 9 | B103: 山东太阳纸业股份有限公司 | C103: 75gA3金太阳卓越商务 | D103: 229元 | E103: 171.75元 | F103: 75gA3-★★:171.75元 | G103: 9 | H103: 是 | I103: 217.55
A104: 10 | B104: 金鑫（清远）纸业有限公司 | C104: 金光APP钻石旗舰复印纸75G/A35包/箱 | D104: 221元 | E104: 176.8元 | F104: 75gA3-★★:176.8元 | G104: 10 | H104: 是 | I104: 221
A105: 11 | B105: 北京洪烽信达科技有限公司 | C105: 金色幻影75gA3多功能复印纸5包/箱 | D105: 258元 | E105: 180.6元 | F105: 75gA3-★★:180.6元 | G105: - | H105: 否 | I105: 232.2
A106: 12 | B106: 理想（中国）科学工业有限公司 | C106: 理想之星Hiplus75gA3复印纸 | D106: 280元 | E106: 182元 | F106: 75gA3-★★:182元 | G106: - | H106: 否 | I106: 238
A107: 13 | B107: 武汉永安图商贸有限公司 | C107: 楚风A3打印纸75g500张复印纸双面绘图纸手抄报画纸 | D107: 262元 | E107: 183.4元 | F107: 75gA3-★★:183.4元 | G107: - | H107: 否 | I107: 235.8
A108: 包号:5
A109: 序号 | B109: 供应商名称 | C109: 入围产品(配件)型号或规格 | D109: 报价 | E109: 评审价格 | F109: 加权评审价格 | G109: 排名 | H109: 是否入围 | I109: 评审价格 （修正） | J109: 排名(修正) | K109: 是否入围(修正)
A110: 1 | B110: 珠海格之格数码科技有限公司 | C110: 格之格复印纸-嫦娥系列A3-80G-5 | D110: 200.00元 | E110: 130元 | F110: 80gA3-★★:130元 | G110: 1 | H110: 是 | I110: 170
A111: 2 | B111: 徐州中坚物资贸易有限公司 | C111: 中坚绿洲ZJ7638静电复印纸A380克500张/包5包/箱 | D111: 210元 | E111: 136.5元 | F111: 80gA3-★★:136.5元 | G111: 2 | H111: 是 | I111: 178.5
A112: 3 | B112: 深圳齐心集团股份有限公司 | C112: 齐心A3-80克 | D112: 205元 | E112: 153.75元 | F112: 80gA3-★★:153.75元 | G112: 3 | H112: 是 | I112: 194.75
A113: 4 | B113: 广东天章信息纸品有限公司 | C113: 乐活天章复印纸A380g500张/包5包/箱白⾊ | D113: 242元 | E113: 157.3元 | F113: 80gA3-★★:157.3元 | G113: 4 | H113: 是 | I113: 205.7
A114: 5 | B114: 东莞市纸上繁华实业有限公司 | C114: 纸上繁华精品装80克A3 | D114: 228元 | E114: 159.6元 | F114: 80gA3-★★:159.6元 | G114: 5 | H114: 是 | I114: 205.2
A115: 6 | B115: 山东太阳纸业股份有限公司 | C115: 天阳80gA3复印纸5包/箱 | D115: 213元 | E115: 159.75元 | F115: 80gA3-★★:159.75元 | G115: 6 | H115: 是 | I115: 202.35
A116: 7 | B116: 多林多(天津)电子商务有限公司 | C116: 未来鸟多功能静电复印纸80gA3500张/包5包/箱 | D116: 249.9元 | E116: 162.435元 | F116: 80gA3-★★:162.435元 | G116: 7 | H116: 是 | I116: 212.415
A117: 8 | B117: 北京奥特永盛科技有限公司 | C117: 飞星鱼多功能复印纸80gA3-5包 | D117: 252元 | E117: 163.8元 | F117: 80gA3-★★:163.8元 | G117: 8 | H117: 是 | I117: 214.2
A118: 9 | B118: 上海晨光文具股份有限公司 | C118: 晨光复印纸蓝晨光80gA3-5包APYVRF46 | D118: 220元 | E118: 165元 | F118: 80gA3-★★:165元 | G118: 9 | H118: 是 | I118: 209
A119: 10 | B119: 北京洁简天兴商贸有限责任公司 | C119: 数据乐80gA3多功能复印纸（复印、打印、传真纸）5包/箱 | D119: 229元 | E119: 171.75元 | F119: 80gA3-★★:171.75元 | G119: 10 | H119: 是 | I119: 217.55
A120: 11 | B120: 湖南省鑫湘锐纸品有限公司 | C120: 蓝鸟复印纸80gA35包/箱 | D120: 265元 | E120: 172.25元 | F120: 80gA3-★★:172.25元 | G120: 11 | H120: 是 | I120: 225.25
A121: 12 | B121: 芬欧汇川（中国）有限公司 | C121: 益思80gA3复印纸5包/箱 | D121: 230元 | E121: 172.5元 | F121: 80gA3-★★:172.5元 | G121: 12 | H121: 是 | I121: 218.5
A122: 13 | B122: 金鑫（清远）纸业有限公司 | C122: 金光APP步卡止复印纸80G/A35包/箱 | D122: 228元 | E122: 182.4元 | F122: 80gA3-★★:182.4元 | G122: 13 | H122: 是 | I122: 228
A123: 14 | B123: 北京瑞志林丰商贸有限公司 | C123: 感动常在（畅打）80克A3 | D123: 230元 | E123: 184元 | F123: 80gA3-★★:184元 | G123: 14 | H123: 是 | I123: 230
A124: 15 | B124: 上海联夏贸易有限公司 | C124: 联夏复印纸A380g | D124: 235元 | E124: 188元 | F124: 80gA3-★★:188元 | G124: 15 | H124: 是 | I124: 235
A125: 16 | B125: 山西华诺纸业有限公司 | C125: 兴茂天成（青花）80gA35包装 | D125: 270元 | E125: 189元 | F125: 80gA3-★★:189元 | G125: - | H125: 否 | I125: 243
A126: 17 | B126: 北京智诚金源办公设备有限公司 | C126: 懂微80克A3复印纸5包装 | D126: 270.00元 | E126: 189元 | F126: 80gA3-★★:189元 | G126: - | H126: 否 | I126: 243
A127: 18 | B127: 得力集团有限公司 | C127: 得力A3-80g复印纸ZF7520 | D127: 264元 | E127: 198元 | F127: 80gA3-★★:198元 | G127: - | H127: 否 | I127: 250.8
A128: 19 | B128: 北京光印嘉业科技有限公司 | C128: 印友佳80gA3多功能复印纸5包/箱 | D128: 300元 | E128: 210元 | F128: 80gA3-★★:210元 | G128: - | H128: 否 | I128: 270
A129: 包号:6
A130: 序号 | B130: 供应商名称 | C130: 入围产品(配件)型号或规格 | D130: 报价 | E130: 评审价格 | F130: 加权评审价格 | G130: 排名 | H130: 是否入围 | I130: 评审价格 （修正） | J130: 排名(修正) | K130: 是否入围(修正)
A131: 1 | B131: 徐州中坚物资贸易有限公司 | C131: 中坚银河ZJ7673静电复印纸A380克500张/包5包/箱 | D131: 220元 | E131: 154元 | F131: 80gA3-★★★:154元 | G131: 1 | H131: 是 | I131: 198
A132: 2 | B132: 北京美瑞思诺科技有限公司 | C132: 全聚得绿色森林A380克复印纸5包/箱 | D132: 252元 | E132: 163.8元 | F132: 80gA3-★★★:163.8元 | G132: 2 | H132: 是 | I132: 214.2
A133: 3 | B133: 广东天章信息纸品有限公司 | C133: 世纪天章复印纸A380g500张/包5包/箱白色 | D133: 253元 | E133: 164.45元 | F133: 80gA3-★★★:164.45元 | G133: 3 | H133: 是 | I133: 215.05
A134: 4 | B134: 苏州盛大供应链有限责任公司 | C134: 大崔80gA3多功能复印纸/打印纸 | D134: 210元 | E134: 168元 | F134: 80gA3-★★★:168元 | G134: 4 | H134: 是 | I134: 210
A135: 5 | B135: 三木高科科技（北京）有限公司 | C135: 品墨格/PINMOGEA3/80g精品复印纸 | D135: 245.00元 | E135: 171.5元 | F135: 80gA3-★★★:171.5元 | G135: 5 | H135: 是 | I135: 220.5
A136: 6 | B136: 东莞市纸上繁华实业有限公司 | C136: 纸上繁华经典装80克A3 | D136: 248元 | E136: 173.6元 | F136: 80gA3-★★★:173.6元 | G136: 6 | H136: 是 | I136: 223.2
A137: 7 | B137: 山东太阳纸业股份有限公司 | C137: 80gA3复印纸 | D137: 233元 | E137: 174.75元 | F137: 80gA3-★★★:174.75元 | G137: 7 | H137: 是 | I137: 221.35
A138: 8 | B138: 北京外文誉成纸业有限公司 | C138: 80gA3外文誉成复印纸 | D138: 219元 | E138: 175.2元 | F138: 80gA3-★★★:175.2元 | G138: 8 | H138: 是 | I138: 219
A139: 9 | B139: 苏州领先睿采科技有限公司 | C139: 未来兴80gA3白色复印纸500张/包5包/箱计价单位:箱 | D139: 254.6元 | E139: 178.22元 | F139: 80gA3-★★★:178.22元 | G139: 9 | H139: 是 | I139: 229.14
A140: 10 | B140: 湖南省鑫湘锐纸品有限公司 | C140: 欧芬小秘书复印纸80gA35包/箱 | D140: 275元 | E140: 178.75元 | F140: 80gA3-★★★:178.75元 | G140: 10 | H140: 是 | I140: 233.75
A141: 11 | B141: 北京品欢科技发展有限公司 | C141: 五星红鸟复印纸80gA3500张/包5包/箱 | D141: 256元 | E141: 179.2元 | F141: 80gA3-★★★:179.2元 | G141: 11 | H141: 是 | I141: 230.4
A142: 12 | B142: 深圳齐心集团股份有限公司 | C142: 齐心晶纯A3-80克 | D142: 240元 | E142: 180元 | F142: 80gA3-★★★:180元 | G142: 12 | H142: 是 | I142: 228
A143: 13 | B143: 乾程理想（北京）科技发展有限公司 | C143: 理想人80gA3复印纸 | D143: 279.8元 | E143: 181.87元 | F143: 80gA3-★★★:181.87元 | G143: 13 | H143: 是 | I143: 237.83
A144: 14 | B144: 北京金华盛林纸业有限公司 | C144: 印洁多功能复印纸 | D144: 260元 | E144: 182元 | F144: 80gA3-★★★:182元 | G144: 14 | H144: 是 | I144: 234
A145: 15 | B145: 天津安妮纸业销售有限公司 | C145: 安妮复印纸80gA3 | D145: 260元 | E145: 182元 | F145: 80gA3-★★★:182元 | G145: 15 | H145: 是 | I145: 234
A146: 16 | B146: 北京英菲豪科技有限公司 | C146: 蓝纸象80gA3复印纸5包/箱 | D146: 264元 | E146: 184.8元 | F146: 80gA3-★★★:184.8元 | G146: 16 | H146: 是 | I146: 237.6
A147: 17 | B147: 理想（中国）科学工业有限公司 | C147: 理想之星80gA3复印纸 | D147: 286.5元 | E147: 186.225元 | F147: 80gA3-★★★:186.225元 | G147: 17 | H147: 是 | I147: 243.525
A148: 18 | B148: 芬欧汇川（中国）有限公司 | C148: 佳印80gA3复印纸5包/箱 | D148: 249元 | E148: 186.75元 | F148: 80gA3-★★★:186.75元 | G148: 18 | H148: 是 | I148: 236.55
A149: 19 | B149: 宁波市利宏信息系统工程有限公司 | C149: 全球80gA3 | D149: 288元 | E149: 187.2元 | F149: 80gA3-★★★:187.2元 | G149: 19 | H149: 是 | I149: 244.8
A150: 20 | B150: 北京齐心易购电子商务有限公司 | C150: 百优复印纸80克A3 | D150: 268元 | E150: 187.6元 | F150: 80gA3-★★★:187.6元 | G150: 20 | H150: 是 | I150: 241.2
A151: 21 | B151: 北京洁简天兴商贸有限责任公司 | C151: 晶彩高品乐80gA3（297*420）多功能复印纸（复印、打印、传真纸）5包/箱 | D151: 251元 | E151: 188.25元 | F151: 80gA3-★★★:188.25元 | G151: 21 | H151: 是 | I151: 238.45
A152: 22 | B152: 北京奥特永盛科技有限公司 | C152: 伊莉娜多功能复印纸80gA3-5包 | D152: 290元 | E152: 188.5元 | F152: 80gA3-★★★:188.5元 | G152: 22 | H152: 是 | I152: 246.5
A153: 23 | B153: 多林多(天津)电子商务有限公司 | C153: QUAINT多功能静电复印纸80gA3500张/包5包/箱 | D153: 270元 | E153: 189元 | F153: 80gA3-★★★:189元 | G153: 23 | H153: 是 | I153: 243
A154: 24 | B154: 北京兆雄薪火科技有限公司 | C154: 默远复印纸80gA3-★★★ | D154: 272元 | E154: 190.4元 | F154: 80gA3-★★★:190.4元 | G154: 24 | H154: 是 | I154: 244.8
A155: 25 | B155: 北京中盛宏达科技有限公司 | C155: 戴姆勒复印纸80gA3500张/包5包/箱 | D155: 272元 | E155: 190.4元 | F155: 80gA3-★★★:190.4元 | G155: 25 | H155: 是 | I155: 244.8
A156: 26 | B156: 山西华诺纸业有限公司 | C156: 傲雪（雪人）80gA3复印纸5包装 | D156: 274元 | E156: 191.8元 | F156: 80gA3-★★★:191.8元 | G156: 26 | H156: 是 | I156: 246.6
A157: 27 | B157: 北京智诚金源办公设备有限公司 | C157: 乐鸟80克A3复印纸5包装 | D157: 274.00元 | E157: 191.8元 | F157: 80gA3-★★★:191.8元 | G157: 27 | H157: 是 | I157: 246.6
A158: 28 | B158: 北京瑞志林丰商贸有限公司 | C158: 佳能80克A3 | D158: 240元 | E158: 192元 | F158: 80gA3-★★★:192元 | G158: 28 | H158: 是 | I158: 240
A159: 29 | B159: 北京紫旭炫东文化用品有限公司 | C159: 晨鸣80克A3复印纸5包/箱 | D159: 240元 | E159: 192元 | F159: 80gA3-★★★:192元 | G159: 29 | H159: 是 | I159: 240
A160: 30 | B160: 北京广捷富源科贸有限公司 | C160: 二星蓝80克A3-5包复印纸 | D160: 280元 | E160: 196元 | F160: 80gA3-★★★:196元 | G160: 30 | H160: 是 | I160: 252
A161: 31 | B161: 北京依文裕福商贸有限公司 | C161: 超速（绿色）A380g复印纸 | D161: 280元 | E161: 196元 | F161: 80gA3-★★★:196元 | G161: 31 | H161: 是 | I161: 252
A162: 32 | B162: 北京飞博宏达商贸有限公司 | C162: 智印80gA3复印纸5包/箱 | D162: 280元 | E162: 196元 | F162: 80gA3-★★★:196元 | G162: 32 | H162: 是 | I162: 252
A163: 33 | B163: 北京首科红兴商贸有限公司 | C163: 清图80gA3 | D163: 280元 | E163: 196元 | F163: 80gA3-★★★:196元 | G163: - | H163: 否 | I163: 252
A164: 34 | B164: 金鑫（清远）纸业有限公司 | C164: 金光APP如佳复印纸80/A35包/箱 | D164: 246元 | E164: 196.8元 | F164: 80gA3-★★★:196.8元 | G164: - | H164: 否 | I164: 246
A165: 35 | B165: 北京永辉正兴文化用品有限公司 | C165: 蓝图复印纸80gA3 | D165: 290.00元 | E165: 203元 | F165: 80gA3-★★★:203元 | G165: - | H165: 否 | I165: 261
A166: 36 | B166: 优士创新商业集团有限公司 | C166: 颂道ZF174复印纸A3-80g(蓝色包装) | D166: 312.80元 | E166: 203.32元 | F166: 80gA3-★★★:203.32元 | G166: - | H166: 否 | I166: 265.88
A167: 37 | B167: 上海联夏贸易有限公司 | C167: 采奕复印纸A380g | D167: 258元 | E167: 206.4元 | F167: 80gA3-★★★:206.4元 | G167: - | H167: 否 | I167: 258
A168: 38 | B168: 得力集团有限公司 | C168: 得力A3-80g复印纸ZF3581 | D168: 281.5元 | E168: 211.125元 | F168: 80gA3-★★★:211.125元 | G168: - | H168: 否 | I168: 267.425
A169: 39 | B169: 广州市达远智能办公设备有限公司 | C169: 科思特匠心复印纸A380g500张/包5包/箱 | D169: 340元 | E169: 221元 | F169: 80gA3-★★★:221元 | G169: - | H169: 否 | I169: 289
A170: 40 | B170: 润天恒业科技集团有限公司 | C170: 润天壹号A380g500张*5包/箱打印纸复印纸 | D170: 338元 | E170: 236.6元 | F170: 80gA3-★★★:236.6元 | G170: - | H170: 否 | I170: 304.2
A171: 包号:7
A172: 序号 | B172: 供应商名称 | C172: 入围产品(配件)型号或规格 | D172: 报价 | E172: 评审价格 | F172: 加权评审价格 | G172: 排名 | H172: 是否入围 | I172: 评审价格 （修正） | J172: 排名(修正) | K172: 是否入围(修正)
A173: 1 | B173: 广东天章信息纸品有限公司 | C173: 天章龙复印纸A380g500张/包5包/箱白色 | D173: 265元 | E173: 172.25元 | F173: 80gA3-★★★★:172.25元 | G173: 1 | H173: 是 | I173: 225.25
A174: 2 | B174: 北京美瑞思诺科技有限公司 | C174: 全聚得紫气东来A380克复印纸5包/箱 | D174: 278元 | E174: 180.7元 | F174: 80gA3-★★★★:180.7元 | G174: 2 | H174: 是 | I174: 236.3
A175: 3 | B175: 北京金华盛林纸业有限公司 | C175: 红金球复印纸 | D175: 266元 | E175: 186.2元 | F175: 80gA3-★★★★:186.2元 | G175: 3 | H175: 是 | I175: 239.4
A176: 4 | B176: 多林多(天津)电子商务有限公司 | C176: 创世纪多功能静电复印纸80gA3500张/包5包/箱 | D176: 290元 | E176: 188.5元 | F176: 80gA3-★★★★:188.5元 | G176: 4 | H176: 是 | I176: 246.5
A177: 5 | B177: 天津荣来印刷材料商贸有限公司 | C177: 金铭洋80gA3复印纸 | D177: 270元 | E177: 189元 | F177: 80gA3-★★★★:189元 | G177: 5 | H177: 是 | I177: 243
A178: 6 | B178: 山东太阳纸业股份有限公司 | C178: 金太阳80gA3多功能复印纸5包/箱 | D178: 253元 | E178: 189.75元 | F178: 80gA3-★★★★:189.75元 | G178: 6 | H178: 是 | I178: 240.35
A179: 7 | B179: 北京日益升网络科技有限公司 | C179: 吉祥鸟80克A3-5复印纸 | D179: 272元 | E179: 190.4元 | F179: 80gA3-★★★★:190.4元 | G179: 7 | H179: 是 | I179: 244.8
A180: 8 | B180: 北京市骅远商贸有限公司 | C180: 阿顺80克A3复印纸500张/包5包/箱 | D180: 274元 | E180: 191.8元 | F180: 80gA3-★★★★:191.8元 | G180: 8 | H180: 是 | I180: 246.6
A181: 9 | B181: 北京洪烽信达科技有限公司 | C181: 金色幻影80gA3多功能复印纸5包/箱 | D181: 278.5元 | E181: 194.95元 | F181: 80gA3-★★★★:194.95元 | G181: 9 | H181: 是 | I181: 250.65
A182: 10 | B182: 北京洁简天兴商贸有限责任公司 | C182: 百旺80gA3多功能复印纸（复印、打印、传真纸）500张/包，5包/箱 | D182: 260元 | E182: 195元 | F182: 80gA3-★★★★:195元 | G182: 10 | H182: 是 | I182: 247
A183: 11 | B183: 芬欧汇川（中国）有限公司 | C183: 超级佳印80gA3复印纸5包/箱 | D183: 260元 | E183: 195元 | F183: 80gA3-★★★★:195元 | G183: 11 | H183: 是 | I183: 247
A184: 12 | B184: 北京紫旭炫东文化用品有限公司 | C184: 金晨鸣80克A3复印纸5包/箱 | D184: 244元 | E184: 195.2元 | F184: 80gA3-★★★★:195.2元 | G184: 12 | H184: 是 | I184: 244
A185: 13 | B185: 天津汇通融合网络科技有限公司 | C185: 亮剑80gA3复印纸5包/箱 | D185: 279元 | E185: 195.3元 | F185: 80gA3-★★★★:195.3元 | G185: 13 | H185: 是 | I185: 251.1
A186: 14 | B186: 北京天和志业科技发展有限公司 | C186: 效润A3/80g优品多功能复印纸5包/箱 | D186: 280元 | E186: 196元 | F186: 80gA3-★★★★:196元 | G186: 14 | H186: 是 | I186: 252
A187: 15 | B187: 北京华腾鑫业科技有限公司 | C187: 柘印80gA3多功能办公复印纸（5包/箱） | D187: 282元 | E187: 197.4元 | F187: 80gA3-★★★★:197.4元 | G187: 15 | H187: 是 | I187: 253.8
A188: 16 | B188: 北京齐心易购电子商务有限公司 | C188: 金铂林复印纸80克A3 | D188: 285元 | E188: 199.5元 | F188: 80gA3-★★★★:199.5元 | G188: - | H188: 否 | I188: 256.5
A189: 17 | B189: 北京瑞志林丰商贸有限公司 | C189: 感动常在（铂金）80克A3 | D189: 255元 | E189: 204元 | F189: 80gA3-★★★★:204元 | G189: - | H189: 否 | I189: 255
A190: 18 | B190: 金鑫（清远）纸业有限公司 | C190: 金光APP金旗舰复印纸80G/A35包/箱 | D190: 258元 | E190: 206.4元 | F190: 80gA3-★★★★:206.4元 | G190: - | H190: 否 | I190: 258
A191: 19 | B191: 北京依文裕福商贸有限公司 | C191: 超速80gA3 | D191: 297元 | E191: 207.9元 | F191: 80gA3-★★★★:207.9元 | G191: - | H191: 否 | I191: 267.3
A192: 包号:8
A193: 序号 | B193: 供应商名称 | C193: 入围产品(配件)型号或规格 | D193: 报价 | E193: 评审价格 | F193: 加权评审价格 | G193: 排名 | H193: 是否入围 | I193: 评审价格 （修正） | J193: 排名(修正) | K193: 是否入围(修正)
A194: 1 | B194: 徐州中坚物资贸易有限公司 | C194: 中坚银河ZJ7785静电复印纸A385克500张/包5包/箱 | D194: 225元 | E194: 157.5元 | F194: 85gA3-★★:157.5元 | G194: 1 | H194: 是 | I194: 202.5
A195: 2 | B195: 东莞市纸上繁华实业有限公司 | C195: 添越85克A3 | D195: 252元 | E195: 176.4元 | F195: 85gA3-★★:176.4元 | G195: 2 | H195: 是 | I195: 226.8
A196: 3 | B196: 北京洁简天兴商贸有限责任公司 | C196: 百旺85gA3复印纸彩激纸（复印、打印、传真纸）5包/箱 | D196: 260元 | E196: 195元 | F196: 85gA3-★★:195元 | G196: 3 | H196: 是 | I196: 247
A197: 4 | B197: 深圳齐心集团股份有限公司 | C197: 齐心金齐心A3-85克 | D197: 260元 | E197: 195元 | F197: 85gA3-★★:195元 | G197: 4 | H197: 是 | I197: 247
A198: 5 | B198: 芬欧汇川（中国）有限公司 | C198: 卓越佳印85gA3复印纸5包/箱 | D198: 260元 | E198: 195元 | F198: 85gA3-★★:195元 | G198: 5 | H198: 是 | I198: 247
A199: 6 | B199: 湖南省鑫湘锐纸品有限公司 | C199: 欧芬小秘书复印纸85gA35包/箱 | D199: 280元 | E199: 196元 | F199: 85gA3-★★:196元 | G199: 6 | H199: 是 | I199: 252
A200: 7 | B200: 北京紫旭炫东文化用品有限公司 | C200: 晨鸣祥云85克A3复印纸5包/箱 | D200: 246元 | E200: 196.8元 | F200: 85gA3-★★:196.8元 | G200: 7 | H200: 是 | I200: 246
... 399 more rows

Sheet 1包
A1: 序号 | B1: 供应商名称 | C1: 地址 | D1: 联系方式 | E1: 产品名称 | F1: 品牌 | G1: 规格型号 | H1: 入围单价（元） | I1: 排序（评审排名）
A2: 1 | B2: 徐州中坚物资贸易有限公司 | C2: 徐州市铜山区棠张镇学庄村村委会东首 | D2: 13952204177 | E2: 70gA3-★ | F2: 中坚 | G2: ZJ7717 | H2: 175 | I2: 1
A3: 2 | B3: 广东天章信息纸品有限公司 | C3: 珠海市金湾区红旗镇双湖北路东侧 | D3: 13928098752 | E3: 70gA3-★ | F3: 新绿天章 | G3: A3 70g 500张/包 5包/箱 | H3: 190 | I3: 2
A4: 3 | B4: 珠海格之格数码科技有限公司 | C4: 珠海市珠海大道3883号1栋3楼东侧 | D4: 13132569813 | E4: 70gA3-★ | F4: 格之格 | G4: 复印纸-嫦娥系列A3-70G-5 | H4: 192 | I4: 3
A5: 4 | B5: 东莞市纸上繁华实业有限公司 | C5: 南城街道石鼓大龙路11号2栋101室 | D5: 13249910099 | E5: 70gA3-★ | F5: 纸上繁华 | G5: 纸上繁华经典装70克A3 | H5: 188 | I5: 4
A6: 5 | B6: 天津安妮纸业销售有限公司 | C6: 天津市西青区杨柳青镇金盛工业园南园b3-3 | D6: 15302085168 | E6: 70gA3-★ | F6: 热带鱼 | G6: 70gA3 | H6: 190 | I6: 5
A7: 6 | B7: 深圳齐心集团股份有限公司 | C7: 深圳市坪山区锦绣中路18号齐心科技园 | D7: 18927481225 | E7: 70gA3-★ | F7: 齐心 | G7: 齐心A3-70克 | H7: 182 | I7: 6
A8: 7 | B8: 北京洁简天兴商贸有限责任公司 | C8: 北京市怀柔区杨宋镇凤翔一园53号001室 | D8: 13671221315 | E8: 70gA3-★ | F8: 印爽 | G8: 70gA3 | H8: 186 | I8: 7
A9: 8 | B9: 北京美瑞思诺科技有限公司 | C9: 北京市通州区宋庄镇双埠头村委会西500米 | D9: 13381115506 | E9: 70gA3-★ | F9: 全聚得 | G9: AG3705 | H9: 210 | I9: 8
A10: 9 | B10: 芬欧汇川（中国）有限公司 | C10: 江苏省常熟市沿江经济开发区 | D10: 13801578786 | E10: 70gA3-★ | F10: 锦语 | G10: 70克 A3 5包/箱 500张/包 | H10: 188 | I10: 9
A11: 10 | B11: 山东太阳纸业股份有限公司 | C11: 山东省兖州市西关大街66号 | D11: 19953796716 | E11: 70gA3-★ | F11: 天阳 | G11: 天阳-70gA3 | H11: 189 | I11: 10
A12: 11 | B12: 湖南省鑫湘锐纸品有限公司 | C12: 湖南省长沙县江背镇江背村1101009幢湖南华欣印务有限公司内 | D12: 15200910590 | E12: 70gA3-★ | F12: 银甲 | G12: 70gA3 | H12: 220 | I12: 11
A13: 12 | B13: 多林多(天津)电子商务有限公司 | C13: 天津市武清开发区旺源道10号1号办公楼102室 | D13: 15810070718 | E13: 70gA3-★ | F13: 未来鸟 | G13: 70gA3 | H13: 220 | I13: 12
A14: 13 | B14: 北京奥特永盛科技有限公司 | C14: 北京市朝阳区八里庄西里100号6层西区607-09 | D14: 15699920137 | E14: 70gA3-★ | F14: 伊莉娜 | G14: 70gA3 | H14: 220 | I14: 13
A15: 14 | B15: 金鑫（清远）纸业有限公司 | C15: 广东省清远市高新技术产业开发区15号 | D15: 15050896011 | E15: 70gA3-★ | F15: 星旗舰 | G15: 70gA3 | H15: 187.2 | I15: 14
A16: 15 | B16: 北京瑞志林丰商贸有限公司 | C16: 北京市怀柔区雁栖经济开发区雁栖大街13号 | D16: 13911666872 | E16: 70gA3-★ | F16: 感动常在（畅打） | G16: 70克A3 | H16: 190 | I16: 15
A17: 16 | B17: 苏州领先睿采科技有限公司 | C17: 苏州高新区泰山路2号15幢B楼 | D17: 13718812647 | E17: 70gA3-★ | F17: 未来兴 | G17: 70gA3 | H17: 218 | I17: 16
A18: 17 | B18: 三木高科科技（北京）有限公司 | C18: 北京市北京经济技术开发区（大兴）亦庄镇工业园区内北京田源纺织有限责任公司院内3幢平房 | D18: 13901049128 | E18: 70gA3-★ | F18: 品墨格/PINMOGE | G18: A3/70g精品复印纸 | H18: 220 | I18: 17
A19: 18 | B19: 新元同创（北京）科技有限公司 | C19: 北京市平谷区山东庄镇府前路9号-2099 | D19: 18812161943 | E19: 70gA3-★ | F19: 新元同创 | G19: 70gA3-5 | H19: 222 | I19: 18
A20: 19 | B20: 苏州盛大供应链有限责任公司 | C20: 江苏省苏州市相城区高铁新城青龙港路60号港口大厦11层1126室 | D20: 18337009881 | E20: 70gA3-★ | F20: 大崔 | G20: 70gA3(D-010)-500张/包-5包/箱 | H20: 200 | I20: 19
A21: 20 | B21: 得力集团有限公司 | C21: 浙江省宁波市宁海县徐霞客大道302号 | D21: 18510831800 | E21: 70gA3-★ | F21: 得力/deli | G21: 7373 | H21: 211 | I21: 20
A22: 21 | B22: 北京永辉正兴文化用品有限公司 | C22: 北京市东城区永外东革新里40号院27号楼（40-1） | D22: 13691351120 | E22: 70gA3-★ | F22: 蓝图 | G22: 70gA3 | H22: 230 | I22: 21

Sheet 2包
A1: 序号 | B1: 供应商名称 | C1: 地址 | D1: 联系方式 | E1: 产品名称 | F1: 品牌 | G1: 规格型号 | H1: 入围单价（元） | I1: 排序（评审排名）
A2: 1 | B2: 徐州中坚物资贸易有限公司 | C2: 徐州市铜山区棠张镇学庄村村委会东首 | D2: 13952204177 | E2: 70gA3-★★★ | F2: 中坚 | G2: ZJ7618 | H2: 195 | I2: 1
A3: 2 | B3: 彩虹鸟（北京）科贸有限公司 | C3: 北京市海淀区明光村8号 | D3: 13901286308 | E3: 70gA3-★★★ | F3: 彩虹鸟 | G3: 70gA3-★★★ | H3: 196 | I3: 2
A4: 3 | B4: 广东天章信息纸品有限公司 | C4: 珠海市金湾区红旗镇双湖北路东侧 | D4: 13928098752 | E4: 70gA3-★★★ | F4: 世纪天章 | G4: A3 70g 500张/包 5包/箱 | H4: 221 | I4: 3
A5: 4 | B5: 北京外文誉成纸业有限公司 | C5: 北京市海淀区西三环北路89号中国外文大厦A座1206、1207、1208室 | D5: 18266606985 | E5: 70gA3-★★★ | F5: BPC外文誉成 | G5: 70gA3 | H5: 195 | I5: 4
A6: 5 | B6: 东莞市纸上繁华实业有限公司 | C6: 南城街道石鼓大龙路11号2栋101室 | D6: 13249910099 | E6: 70gA3-★★★ | F6: 纸上繁华 | G6: 纸上繁华精品装70克A3 | H6: 220 | I6: 5
A7: 6 | B7: 山东太阳纸业股份有限公司 | C7: 山东省兖州市西关大街66号 | D7: 19953796716 | E7: 70gA3-★★★ | F7: 太阳佳 | G7: 太阳佳-70gA3 | H7: 209 | I7: 6
A8: 7 | B8: 北京美瑞思诺科技有限公司 | C8: 北京市通州区宋庄镇双埠头村委会西500米 | D8: 13381115506 | E8: 70gA3-★★★ | F8: 全聚得 | G8: AB3705 | H8: 238 | I8: 7
A9: 8 | B9: 北京金华盛林纸业有限公司 | C9: 北京市朝阳区亮马桥琨莎中心1座1201室 | D9: 15810933043 | E9: 70gA3-★★★ | F9: 印洁 | G9: 70gA3 | H9: 226 | I9: 8
A10: 9 | B10: 天津安妮纸业销售有限公司 | C10: 天津市西青区杨柳青镇金盛工业园南园b3-3 | D10: 15302085168 | E10: 70gA3-★★★ | F10: 安妮 | G10: 70gA3 | H10: 230 | I10: 9
A11: 10 | B11: 乾程理想（北京）科技发展有限公司 | C11: 北京市朝阳区胜古中路2号院8号楼8层801室 | D11: 13701178790 | E11: 70gA3-★★★ | F11: 理想人 | G11: 70gA3 | H11: 244.8 | I11: 10
A12: 11 | B12: 湖南省鑫湘锐纸品有限公司 | C12: 湖南省长沙县江背镇江背村1101009幢湖南华欣印务有限公司内 | D12: 15200910590 | E12: 70gA3-★★★ | F12: 蓝鸟 | G12: 70gA3 | H12: 245 | I12: 11
A13: 12 | B13: 北京奥特永盛科技有限公司 | C13: 北京市朝阳区八里庄西里100号6层西区607-09 | D13: 15699920137 | E13: 70gA3-★★★ | F13: 飞星鱼 | G13: 70gA3 | H13: 245 | I13: 12
A14: 13 | B14: 北京兆雄薪火科技有限公司 | C14: 北京昌平区东小口镇天通中苑二区21号楼19层1906 010-53386663 | D14: 15633121725 | E14: 70gA3-★★★ | F14: 默远 | G14: 70gA3-★★★ | H14: 232 | I14: 13
A15: 14 | B15: 新元同创（北京）科技有限公司 | C15: 北京市平谷区山东庄镇府前路9号-2099 | D15: 18812161943 | E15: 70gA3-★★★ | F15: 网络时代 | G15: 70gA3-5 | H15: 232 | I15: 14
A16: 15 | B16: 北京中盛宏达科技有限公司 | C16: 北京市平谷区兴谷经济开发区6区305-211702 | D16: 13301266286 | E16: 70gA3-★★★ | F16: 戴姆勒复印纸 | G16: 70A3 | H16: 232 | I16: 15
A17: 16 | B17: 芬欧汇川（中国）有限公司 | C17: 江苏省常熟市沿江经济开发区 | D17: 13801578786 | E17: 70gA3-★★★ | F17: 佳印 | G17: 70克 A3 5包/箱 500张/包 | H17: 220 | I17: 16
A18: 17 | B18: 北京紫旭炫东文化用品有限公司 | C18: 北京市怀柔区杨宋镇凤翔东大街9号201室（集群注册） | D18: 13691595280 | E18: 70gA3-★★★ | F18: 晨鸣 | G18: 70gA3 | H18: 210 | I18: 17
A19: 18 | B19: 宁波市利宏信息系统工程有限公司 | C19: 海曙区翠柏路51号 | D19: 15957926677 | E19: 70gA3-★★★ | F19: 全球 | G19: 70gA3 | H19: 249 | I19: 18
A20: 19 | B20: 北京品欢科技发展有限公司 | C20: 北京市朝阳区枣营北里27号楼南侧(托儿所)二层205室 | D20: 15652605986 | E20: 70gA3-★★★ | F20: 五星红鸟 | G20: 70gA3 | H20: 236 | I20: 19
A21: 20 | B21: 金鑫（清远）纸业有限公司 | C21: 广东省清远市高新技术产业开发区15号 | D21: 15050896011 | E21: 70gA3-★★★ | F21: 如佳 | G21: 70gA3 | H21: 212.6 | I21: 20
A22: 21 | B22: 理想（中国）科学工业有限公司 | C22: 珠海市香洲区海滨南路52号中信南航国际广场3001、3002 | D22: 13501194099 | E22: 70gA3-★★★ | F22: 理想之星 | G22: 70gA3 | H22: 250.7 | I22: 21
A23: 22 | B23: 北京洁简天兴商贸有限责任公司 | C23: 北京市怀柔区杨宋镇凤翔一园53号001室 | D23: 13671221315 | E23: 70gA3-★★★ | F23: 高品乐 | G23: 70gA3 | H23: 225 | I23: 22
A24: 23 | B24: 北京英菲豪科技有限公司 | C24: 北京市海淀区上地信息路1号（北京实创高科技发展总公司1-1号）A栋6层136号 | D24: 13641219346 | E24: 70gA3-★★★ | F24: 蓝纸象 | G24: 70gA3 | H24: 238.8 | I24: 23
A25: 24 | B25: 多林多(天津)电子商务有限公司 | C25: 天津市武清开发区旺源道10号1号办公楼102室 | D25: 15810070718 | E25: 70gA3-★★★ | F25: QUAINT | G25: 70gA3 | H25: 240 | I25: 24
A26: 25 | B26: 北京智诚金源办公设备有限公司 | C26: 北京市通州区漷县镇纪各庄村4号 | D26: 18518557339 | E26: 70gA3-★★★ | F26: 乐鸟 | G26: 70gA3-5 | H26: 240 | I26: 25
A27: 26 | B27: 山西华诺纸业有限公司 | C27: 山西省运城市盐湖高新技术产业开发区振兴大道22号2号厂房 | D27: 18102182506 | E27: 70gA3-★★★ | F27: 傲雪 | G27: 70gA3-5 | H27: 240 | I27: 26
A28: 27 | B28: 北京瑞志林丰商贸有限公司 | C28: 北京市怀柔区雁栖经济开发区雁栖大街13号 | D28: 13911666872 | E28: 70gA3-★★★ | F28: 佳能 | G28: 70克A3 | H28: 216 | I28: 27
A29: 28 | B29: 北京齐心易购电子商务有限公司 | C29: 北京市东城区西革新里108-18 | D29: 13811588482 | E29: 70gA3-★★★ | F29: 百优 | G29: 70克A3-★★★ | H29: 241 | I29: 28

Sheet 3包
A1: 序号 | B1: 供应商名称 | C1: 地址 | D1: 联系方式 | E1: 产品名称 | F1: 品牌 | G1: 规格型号 | H1: 入围单价（元） | I1: 排序（评审排名）
A2: 1 | B2: 广东天章信息纸品有限公司 | C2: 珠海市金湾区红旗镇双湖北路东侧 | D2: 13928098752 | E2: 70gA3-★★★★ | F2: 天章龙 | G2: A3 70g 500张/包 5包/箱 | H2: 230 | I2: 1
A3: 2 | B3: 深圳齐心集团股份有限公司 | C3: 深圳市坪山区锦绣中路18号齐心科技园 | D3: 18927481225 | E3: 70gA3-★★★★ | F3: 晶纯 | G3: 齐心晶纯A3-70克 | H3: 214 | I3: 2
A4: 3 | B4: 北京金华盛林纸业有限公司 | C4: 北京市朝阳区亮马桥琨莎中心1座1201室 | D4: 15810933043 | E4: 70gA3-★★★★ | F4: 红金球 | G4: 70gA3 | H4: 232 | I4: 3
A5: 4 | B5: 北京美瑞思诺科技有限公司 | C5: 北京市通州区宋庄镇双埠头村委会西500米 | D5: 13381115506 | E5: 70gA3-★★★★ | F5: 全聚得 | G5: AH3705 | H5: 248 | I5: 4
A6: 5 | B6: 北京天和志业科技发展有限公司 | C6: 北京市海淀区后屯南路26号2层2-66 | D6: 13521280853 | E6: 70gA3-★★★★ | F6: 效润 | G6: 70gA3 | H6: 240 | I6: 5
A7: 6 | B7: 湖南省鑫湘锐纸品有限公司 | C7: 湖南省长沙县江背镇江背村1101009幢湖南华欣印务有限公司内 | D7: 15200910590 | E7: 70gA3-★★★★ | F7: 欧芬小秘书 | G7: 70gA3 | H7: 255 | I7: 6
A8: 7 | B8: 山东太阳纸业股份有限公司 | C8: 山东省兖州市西关大街66号 | D8: 19953796716 | E8: 70gA3-★★★★ | F8: 金太阳 | G8: 金太阳-70gA3 | H8: 229 | I8: 7
A9: 8 | B9: 芬欧汇川（中国）有限公司 | C9: 江苏省常熟市沿江经济开发区 | D9: 13801578786 | E9: 70gA3-★★★★ | F9: 超级佳印 | G9: 70克 A3 5包/箱 500张/包 | H9: 230 | I9: 8
A10: 9 | B10: 北京康乐欣文化用品有限公司 | C10: 永定门外大街西革新里108号院2号楼1层16号 | D10: 13601165873 | E10: 70gA3-★★★★ | F10: 亚美 | G10: 70gA3 | H10: 244 | I10: 9
A11: 10 | B11: 北京瑞志林丰商贸有限公司 | C11: 北京市怀柔区雁栖经济开发区雁栖大街13号 | D11: 13911666872 | E11: 70gA3-★★★★ | F11: 感动常在（铂金） | G11: 70克A3 | H11: 220 | I11: 10
A12: 11 | B12: 北京齐心易购电子商务有限公司 | C12: 北京市东城区西革新里108-18 | D12: 13811588482 | E12: 70gA3-★★★★ | F12: 金铂林 | G12: 70gA3-★★★★ | H12: 245 | I12: 11
A13: 12 | B13: 天津荣来印刷材料商贸有限公司 | C13: 蓟县中昌路（乡村公路办） | D13: 18266606912 | E13: 70gA3-★★★★ | F13: 金铭洋 | G13: 70gA3 | H13: 245 | I13: 12
A14: 13 | B14: 北京紫旭炫东文化用品有限公司 | C14: 北京市怀柔区杨宋镇凤翔东大街9号201室（集群注册） | D14: 13691595280 | E14: 70gA3-★★★★ | F14: 金晨鸣 | G14: 70gA3 | H14: 221 | I14: 13
A15: 14 | B15: 北京日益升网络科技有限公司 | C15: 北京市怀柔区雁西经济开发区雁栖路33号院1号楼103室 | D15: 18611171829 | E15: 70gA3-★★★★ | F15: 吉祥鸟 | G15: 吉祥鸟70克A3/5包/箱/500张/包 | H15: 246.5 | I15: 14
A16: 15 | B16: 北京市骅远商贸有限公司 | C16: 北京市通州区潞城镇武兴路7号A0874室 | D16: 13290466758 | E16: 70gA3-★★★★ | F16: 阿顺 | G16: 阿顺70克A3 | H16: 248 | I16: 15
A17: 16 | B17: 北京洁简天兴商贸有限责任公司 | C17: 北京市怀柔区杨宋镇凤翔一园53号001室 | D17: 13671221315 | E17: 70gA3-★★★★ | F17: 百旺 | G17: 70gA3 | H17: 237 | I17: 16
A18: 17 | B18: 多林多(天津)电子商务有限公司 | C18: 天津市武清开发区旺源道10号1号办公楼102室 | D18: 15810070718 | E18: 70gA3-★★★★ | F18: 创世纪 | G18: 70gA3 | H18: 265 | I18: 17

Sheet 4包
A1: 序号 | B1: 供应商名称 | C1: 地址 | D1: 联系方式 | E1: 产品名称 | F1: 品牌 | G1: 规格型号 | H1: 入围单价（元） | I1: 排序（评审排名）
A2: 1 | B2: 徐州中坚物资贸易有限公司 | C2: 徐州市铜山区棠张镇学庄村村委会东首 | D2: 13952204177 | E2: 75gA3-★★ | F2: 中坚 | G2: ZJ7675 | H2: 195 | I2: 1
A3: 2 | B3: 天津荣来印刷材料商贸有限公司 | C3: 蓟县中昌路（乡村公路办） | D3: 18266606912 | E3: 75gA3-★★ | F3: 铭洋 | G3: 75gA3 | H3: 230 | I3: 2
A4: 3 | B4: 北京紫旭炫东文化用品有限公司 | C4: 北京市怀柔区杨宋镇凤翔东大街9号201室（集群注册） | D4: 13691595280 | E4: 75gA3-★★ | F4: 晨鸣 | G4: 75gA3 | H4: 208 | I4: 3
A5: 4 | B5: 深圳齐心集团股份有限公司 | C5: 深圳市坪山区锦绣中路18号齐心科技园 | D5: 18927481225 | E5: 75gA3-★★ | F5: 晶纯 | G5: 齐心晶纯A3-75克 | H5: 222 | I5: 4
A6: 5 | B6: 芬欧汇川（中国）有限公司 | C6: 江苏省常熟市沿江经济开发区 | D6: 13801578786 | E6: 75gA3-★★ | F6: 卓越佳印 | G6: 75克 A3 5包/箱 500张/包 | H6: 226 | I6: 5
A7: 6 | B7: 北京洁简天兴商贸有限责任公司 | C7: 北京市怀柔区杨宋镇凤翔一园53号001室 | D7: 13671221315 | E7: 75gA3-★★ | F7: 高品乐 | G7: 75gA3 | H7: 227 | I7: 6
A8: 7 | B8: 湖南省鑫湘锐纸品有限公司 | C8: 湖南省长沙县江背镇江背村1101009幢湖南华欣印务有限公司内 | D8: 15200910590 | E8: 75gA3-★★ | F8: 欧芬小秘书 | G8: 75gA3 | H8: 255 | I8: 7
A9: 8 | B9: 北京英菲豪科技有限公司 | C9: 北京市海淀区上地信息路1号（北京实创高科技发展总公司1-1号）A栋6层136号 | D9: 13641219346 | E9: 75gA3-★★ | F9: 锦跃 | G9: 75gA3 | H9: 241 | I9: 8
A10: 9 | B10: 山东太阳纸业股份有限公司 | C10: 山东省兖州市西关大街66号 | D10: 19953796716 | E10: 75gA3-★★ | F10: 金太阳-卓越商务 | G10: 金太阳-卓越商务-75gA3 | H10: 229 | I10: 9
A11: 10 | B11: 金鑫（清远）纸业有限公司 | C11: 广东省清远市高新技术产业开发区15号 | D11: 15050896011 | E11: 75gA3-★★ | F11: 旗舰 | G11: 钻石旗舰75gA3 | H11: 221 | I11: 10

Sheet 5包
A1: 序号 | B1: 供应商名称 | C1: 地址 | D1: 联系方式 | E1: 产品名称 | F1: 品牌 | G1: 规格型号 | H1: 入围单价（元） | I1: 排序（评审排名）
A2: 1 | B2: 珠海格之格数码科技有限公司 | C2: 珠海市珠海大道3883号1栋3楼东侧 | D2: 13132569813 | E2: 80gA3-★★ | F2: 格之格 | G2: 复印纸-嫦娥系列A3-80G-5 | H2: 200 | I2: 1
A3: 2 | B3: 徐州中坚物资贸易有限公司 | C3: 徐州市铜山区棠张镇学庄村村委会东首 | D3: 13952204177 | E3: 80gA3-★★ | F3: 中坚 | G3: ZJ7638 | H3: 210 | I3: 2
A4: 3 | B4: 深圳齐心集团股份有限公司 | C4: 深圳市坪山区锦绣中路18号齐心科技园 | D4: 18927481225 | E4: 80gA3-★★ | F4: 齐心 | G4: 齐心A3-80克 | H4: 205 | I4: 3
A5: 4 | B5: 山东太阳纸业股份有限公司 | C5: 山东省兖州市西关大街66号 | D5: 19953796716 | E5: 80gA3-★★ | F5: 天阳 | G5: 天阳-80gA3 | H5: 213 | I5: 4
A6: 5 | B6: 东莞市纸上繁华实业有限公司 | C6: 南城街道石鼓大龙路11号2栋101室 | D6: 13249910099 | E6: 80gA3-★★ | F6: 纸上繁华 | G6: 纸上繁华精品装80克A3 | H6: 228 | I6: 5
A7: 6 | B7: 广东天章信息纸品有限公司 | C7: 珠海市金湾区红旗镇双湖北路东侧 | D7: 13928098752 | E7: 80gA3-★★ | F7: 乐活天章 | G7: A3 80g 500张/包 5包/箱 | H7: 242 | I7: 6
A8: 7 | B8: 上海晨光文具股份有限公司 | C8: 上海市奉贤区金钱公路3469号3号楼 | D8: 13163395727 | E8: 80gA3-★★ | F8: 晨光M&G | G8: APYVRF46 | H8: 220 | I8: 7
A9: 8 | B9: 多林多(天津)电子商务有限公司 | C9: 天津市武清开发区旺源道10号1号办公楼102室 | D9: 15810070718 | E9: 80gA3-★★ | F9: 未来鸟 | G9: 80gA3 | H9: 249.9 | I9: 8
A10: 9 | B10: 北京奥特永盛科技有限公司 | C10: 北京市朝阳区八里庄西里100号6层西区607-09 | D10: 15699920137 | E10: 80gA3-★★ | F10: 飞星鱼 | G10: 80gA3 | H10: 252 | I10: 9
A11: 10 | B11: 北京洁简天兴商贸有限责任公司 | C11: 北京市怀柔区杨宋镇凤翔一园53号001室 | D11: 13671221315 | E11: 80gA3-★★ | F11: 数据乐 | G11: 80gA3 | H11: 229 | I11: 10
A12: 11 | B12: 芬欧汇川（中国）有限公司 | C12: 江苏省常熟市沿江经济开发区 | D12: 13801578786 | E12: 80gA3-★★ | F12: 益思 | G12: 80克 A3 5包/箱 500张/包 | H12: 230 | I12: 11
A13: 12 | B13: 湖南省鑫湘锐纸品有限公司 | C13: 湖南省长沙县江背镇江背村1101009幢湖南华欣印务有限公司内 | D13: 15200910590 | E13: 80gA3-★★ | F13: 蓝鸟 | G13: 80gA3 | H13: 265 | I13: 12
A14: 13 | B14: 金鑫（清远）纸业有限公司 | C14: 广东省清远市高新技术产业开发区15号 | D14: 15050896011 | E14: 80gA3-★★ | F14: 步卡止 | G14: 80gA3 | H14: 228 | I14: 13
A15: 14 | B15: 北京瑞志林丰商贸有限公司 | C15: 北京市怀柔区雁栖经济开发区雁栖大街13号 | D15: 13911666872 | E15: 80gA3-★★ | F15: 感动常在（畅打） | G15: 80克A3 | H15: 230 | I15: 14
A16: 15 | B16: 上海联夏贸易有限公司 | C16: 上海市浦东新区钱仓路400号 | D16: 17621280310 | E16: 80gA3-★★ | F16: 联夏 | G16: A3 80g | H16: 235 | I16: 15

Sheet 6包
A1: 序号 | B1: 供应商名称 | C1: 地址 | D1: 联系方式 | E1: 产品名称 | F1: 品牌 | G1: 规格型号 | H1: 入围单价（元） | I1: 排序（评审排名）
A2: 1 | B2: 徐州中坚物资贸易有限公司 | C2: 徐州市铜山区棠张镇学庄村村委会东首 | D2: 13952204177 | E2: 80gA3-★★★ | F2: 中坚 | G2: ZJ7673 | H2: 220 | I2: 1
A3: 2 | B3: 苏州盛大供应链有限责任公司 | C3: 江苏省苏州市相城区高铁新城青龙港路60号港口大厦11层1126室 | D3: 18337009881 | E3: 80gA3-★★★ | F3: 大崔 | G3: 80gA3-D-003-500张/包-5包/箱 | H3: 210 | I3: 2
A4: 3 | B4: 北京美瑞思诺科技有限公司 | C4: 北京市通州区宋庄镇双埠头村委会西500米 | D4: 13381115506 | E4: 80gA3-★★★ | F4: 全聚得 | G4: AG3805 | H4: 252 | I4: 3
A5: 4 | B5: 广东天章信息纸品有限公司 | C5: 珠海市金湾区红旗镇双湖北路东侧 | D5: 13928098752 | E5: 80gA3-★★★ | F5: 世纪天章 | G5: A3 80g 500张/包 5包/箱 | H5: 253 | I5: 4
A6: 5 | B6: 北京外文誉成纸业有限公司 | C6: 北京市海淀区西三环北路89号中国外文大厦A座1206、1207、1208室 | D6: 18266606985 | E6: 80gA3-★★★ | F6: BPC外文誉成 | G6: 80gA3 | H6: 219 | I6: 5
A7: 6 | B7: 三木高科科技（北京）有限公司 | C7: 北京市北京经济技术开发区（大兴）亦庄镇工业园区内北京田源纺织有限责任公司院内3幢平房 | D7: 13901049128 | E7: 80gA3-★★★ | F7: 品墨格/PINMOGE | G7: A3/80g精品复印纸 | H7: 245 | I7: 6
A8: 7 | B8: 山东太阳纸业股份有限公司 | C8: 山东省兖州市西关大街66号 | D8: 19953796716 | E8: 80gA3-★★★ | F8: 太阳佳 | G8: 太阳佳-80gA3 | H8: 233 | I8: 7
A9: 8 | B9: 东莞市纸上繁华实业有限公司 | C9: 南城街道石鼓大龙路11号2栋101室 | D9: 13249910099 | E9: 80gA3-★★★ | F9: 纸上繁华 | G9: 纸上繁华经典装80克A3 | H9: 248 | I9: 8
A10: 9 | B10: 深圳齐心集团股份有限公司 | C10: 深圳市坪山区锦绣中路18号齐心科技园 | D10: 18927481225 | E10: 80gA3-★★★ | F10: 晶纯 | G10: 齐心晶纯A3-80克 | H10: 240 | I10: 9
A11: 10 | B11: 苏州领先睿采科技有限公司 | C11: 苏州高新区泰山路2号15幢B楼 | D11: 13718812647 | E11: 80gA3-★★★ | F11: 未来兴 | G11: 80gA3 | H11: 254.6 | I11: 10
A12: 11 | B12: 北京品欢科技发展有限公司 | C12: 北京市朝阳区枣营北里27号楼南侧(托儿所)二层205室 | D12: 15652605986 | E12: 80gA3-★★★ | F12: 五星红鸟 | G12: 80gA3 | H12: 256 | I12: 11
A13: 12 | B13: 湖南省鑫湘锐纸品有限公司 | C13: 湖南省长沙县江背镇江背村1101009幢湖南华欣印务有限公司内 | D13: 15200910590 | E13: 80gA3-★★★ | F13: 欧芬小秘书 | G13: 80gA3 | H13: 275 | I13: 12
A14: 13 | B14: 北京金华盛林纸业有限公司 | C14: 北京市朝阳区亮马桥琨莎中心1座1201室 | D14: 15810933043 | E14: 80gA3-★★★ | F14: 印洁 | G14: 80gA3 | H14: 260 | I14: 13
A15: 14 | B15: 天津安妮纸业销售有限公司 | C15: 天津市西青区杨柳青镇金盛工业园南园b3-3 | D15: 15302085168 | E15: 80gA3-★★★ | F15: 安妮 | G15: 80gA3 | H15: 260 | I15: 14
A16: 15 | B16: 芬欧汇川（中国）有限公司 | C16: 江苏省常熟市沿江经济开发区 | D16: 13801578786 | E16: 80gA3-★★★ | F16: 佳印 | G16: 80克 A3 5包/箱 500张/包 | H16: 249 | I16: 15
A17: 16 | B17: 北京英菲豪科技有限公司 | C17: 北京市海淀区上地信息路1号（北京实创高科技发展总公司1-1号）A栋6层136号 | D17: 13641219346 | E17: 80gA3-★★★ | F17: 蓝纸象 | G17: 80gA3 | H17: 264 | I17: 16
A18: 17 | B18: 乾程理想（北京）科技发展有限公司 | C18: 北京市朝阳区胜古中路2号院8号楼8层801室 | D18: 13701178790 | E18: 80gA3-★★★ | F18: 理想人 | G18: 80gA3 | H18: 279.8 | I18: 17
A19: 18 | B19: 北京洁简天兴商贸有限责任公司 | C19: 北京市怀柔区杨宋镇凤翔一园53号001室 | D19: 13671221315 | E19: 80gA3-★★★ | F19: 高品乐 | G19: 80gA3 | H19: 251 | I19: 18
A20: 19 | B20: 北京瑞志林丰商贸有限公司 | C20: 北京市怀柔区雁栖经济开发区雁栖大街13号 | D20: 13911666872 | E20: 80gA3-★★★ | F20: 佳能 | G20: 80克A3 | H20: 240 | I20: 19
A21: 20 | B21: 北京紫旭炫东文化用品有限公司 | C21: 北京市怀柔区杨宋镇凤翔东大街9号201室（集群注册） | D21: 13691595280 | E21: 80gA3-★★★ | F21: 晨鸣 | G21: 80gA3 | H21: 240 | I21: 20
A22: 21 | B22: 北京齐心易购电子商务有限公司 | C22: 北京市东城区西革新里108-18 | D22: 13811588482 | E22: 80gA3-★★★ | F22: 百优 | G22: 80gA3-★★★ | H22: 268 | I22: 21
A23: 22 | B23: 多林多(天津)电子商务有限公司 | C23: 天津市武清开发区旺源道10号1号办公楼102室 | D23: 15810070718 | E23: 80gA3-★★★ | F23: QUAINT | G23: 80gA3 | H23: 270 | I23: 22
A24: 23 | B24: 理想（中国）科学工业有限公司 | C24: 珠海市香洲区海滨南路52号中信南航国际广场3001、3002 | D24: 13501194099 | E24: 80gA3-★★★ | F24: 理想之星 | G24: 80gA3 | H24: 286.5 | I24: 23
A25: 24 | B25: 宁波市利宏信息系统工程有限公司 | C25: 海曙区翠柏路51号 | D25: 15957926677 | E25: 80gA3-★★★ | F25: 全球 | G25: 80gA3 | H25: 288 | I25: 24
A26: 25 | B26: 北京兆雄薪火科技有限公司 | C26: 北京昌平区东小口镇天通中苑二区21号楼19层1906 010-53386663 | D26: 15633121725 | E26: 80gA3-★★★ | F26: 默远 | G26: 80gA3-★★★ | H26: 272 | I26: 25
A27: 26 | B27: 北京中盛宏达科技有限公司 | C27: 北京市平谷区兴谷经济开发区6区305-211702 | D27: 13301266286 | E27: 80gA3-★★★ | F27: 戴姆勒复印纸 | G27: 80gA3 | H27: 272 | I27: 26
A28: 27 | B28: 金鑫（清远）纸业有限公司 | C28: 广东省清远市高新技术产业开发区15号 | D28: 15050896011 | E28: 80gA3-★★★ | F28: 如佳 | G28: 80/A3 | H28: 246 | I28: 27
A29: 28 | B29: 北京奥特永盛科技有限公司 | C29: 北京市朝阳区八里庄西里100号6层西区607-09 | D29: 15699920137 | E29: 80gA3-★★★ | F29: 伊莉娜 | G29: 80gA3 | H29: 290 | I29: 28
A30: 29 | B30: 山西华诺纸业有限公司 | C30: 山西省运城市盐湖高新技术产业开发区振兴大道22号2号厂房 | D30: 18102182506 | E30: 80gA3-★★★ | F30: 傲雪 | G30: 80gA3-5 | H30: 274 | I30: 29
A31: 30 | B31: 北京智诚金源办公设备有限公司 | C31: 北京市通州区漷县镇纪各庄村4号 | D31: 18518557339 | E31: 80gA3-★★★ | F31: 乐鸟 | G31: 80gA3-5 | H31: 274 | I31: 30
A32: 31 | B32: 北京广捷富源科贸有限公司 | C32: 东城区西革新里60号1-7-31号 | D32: 13501292445 | E32: 80gA3-★★★ | F32: 二星蓝 | G32: 80克A3 | H32: 280 | I32: 31
A33: 32 | B33: 北京依文裕福商贸有限公司 | C33: 北京市丰台区和义西里二区36号院1号楼1至5层101内5层B511 | D33: 13520052530 | E33: 80gA3-★★★ | F33: 超速（绿色） | G33: 80gA3 | H33: 280 | I33: 32

Sheet 7包
A1: 序号 | B1: 供应商名称 | C1: 地址 | D1: 联系方式 | E1: 产品名称 | F1: 品牌 | G1: 规格型号 | H1: 入围单价（元） | I1: 排序（评审排名）
A2: 1 | B2: 广东天章信息纸品有限公司 | C2: 珠海市金湾区红旗镇双湖北路东侧 | D2: 13928098752 | E2: 80gA3-★★★★ | F2: 天章龙 | G2: A3 80g 500张/包 5包/箱 | H2: 265 | I2: 1
A3: 2 | B3: 北京美瑞思诺科技有限公司 | C3: 北京市通州区宋庄镇双埠头村委会西500米 | D3: 13381115506 | E3: 80gA3-★★★★ | F3: 全聚得 | G3: AP3805 | H3: 278 | I3: 2
A4: 3 | B4: 北京金华盛林纸业有限公司 | C4: 北京市朝阳区亮马桥琨莎中心1座1201室 | D4: 15810933043 | E4: 80gA3-★★★★ | F4: 红金球 | G4: 80gA3 | H4: 266 | I4: 3
A5: 4 | B5: 山东太阳纸业股份有限公司 | C5: 山东省兖州市西关大街66号 | D5: 19953796716 | E5: 80gA3-★★★★ | F5: 金太阳 | G5: 金太阳-80gA3 | H5: 253 | I5: 4
A6: 5 | B6: 天津荣来印刷材料商贸有限公司 | C6: 蓟县中昌路（乡村公路办） | D6: 18266606912 | E6: 80gA3-★★★★ | F6: 金铭洋 | G6: 80gA3 | H6: 270 | I6: 5
A7: 6 | B7: 北京紫旭炫东文化用品有限公司 | C7: 北京市怀柔区杨宋镇凤翔东大街9号201室（集群注册） | D7: 13691595280 | E7: 80gA3-★★★★ | F7: 金晨鸣 | G7: 80gA3 | H7: 244 | I7: 6
A8: 7 | B8: 北京日益升网络科技有限公司 | C8: 北京市怀柔区雁西经济开发区雁栖路33号院1号楼103室 | D8: 18611171829 | E8: 80gA3-★★★★ | F8: 吉祥鸟 | G8: 吉祥鸟80克A3/5包/箱/500张/包 | H8: 272 | I8: 7
A9: 8 | B9: 多林多(天津)电子商务有限公司 | C9: 天津市武清开发区旺源道10号1号办公楼102室 | D9: 15810070718 | E9: 80gA3-★★★★ | F9: 创世纪 | G9: 80gA3 | H9: 290 | I9: 8
A10: 9 | B10: 北京市骅远商贸有限公司 | C10: 北京市通州区潞城镇武兴路7号A0874室 | D10: 13290466758 | E10: 80gA3-★★★★ | F10: 阿顺 | G10: 阿顺80克A3 | H10: 274 | I10: 9
A11: 10 | B11: 北京洁简天兴商贸有限责任公司 | C11: 北京市怀柔区杨宋镇凤翔一园53号001室 | D11: 13671221315 | E11: 80gA3-★★★★ | F11: 百旺 | G11: 80gA3 | H11: 260 | I11: 10
A12: 11 | B12: 芬欧汇川（中国）有限公司 | C12: 江苏省常熟市沿江经济开发区 | D12: 13801578786 | E12: 80gA3-★★★★ | F12: 超级佳印 | G12: 80克 A3 5包/箱 500张/包 | H12: 260 | I12: 11
A13: 12 | B13: 北京洪烽信达科技有限公司 | C13: 北京市平谷区中关村科技园区平谷园马坊工业园1区150号 | D13: 18610478867 | E13: 80gA3-★★★★ | F13: 金色幻影 | G13: 80gA3 | H13: 278.5 | I13: 12
A14: 13 | B14: 天津汇通融合网络科技有限公司 | C14: 天津市红桥区咸阳北路48号银泰大厦A座605-2、606室 | D14: 13821365442 | E14: 80gA3-★★★★ | F14: 亮剑 | G14: 80gA3 | H14: 279 | I14: 13
A15: 14 | B15: 北京天和志业科技发展有限公司 | C15: 北京市海淀区后屯南路26号2层2-66 | D15: 13521280853 | E15: 80gA3-★★★★ | F15: 效润 | G15: 80gA3 | H15: 280 | I15: 14
A16: 15 | B16: 北京华腾鑫业科技有限公司 | C16: 北京市海淀区知春路罗庄西里13号楼4层505室 | D16: 17801021282 | E16: 80gA3-★★★★ | F16: 柘印 | G16: 80gA3 | H16: 282 | I16: 15

Sheet 8包
A1: 序号 | B1: 供应商名称 | C1: 地址 | D1: 联系方式 | E1: 产品名称 | F1: 品牌 | G1: 规格型号 | H1: 入围单价（元） | I1: 排序（评审排名）
A2: 1 | B2: 徐州中坚物资贸易有限公司 | C2: 徐州市铜山区棠张镇学庄村村委会东首 | D2: 13952204177 | E2: 85gA3-★★ | F2: 中坚 | G2: ZJ7785 | H2: 225 | I2: 1
A3: 2 | B3: 东莞市纸上繁华实业有限公司 | C3: 南城街道石鼓大龙路11号2栋101室 | D3: 13249910099 | E3: 85gA3-★★ | F3: 添越 | G3: 添越85克A3 | H3: 252 | I3: 2
A4: 3 | B4: 北京紫旭炫东文化用品有限公司 | C4: 北京市怀柔区杨宋镇凤翔东大街9号201室（集群注册） | D4: 13691595280 | E4: 85gA3-★★ | F4: 晨鸣祥云 | G4: 85gA3 | H4: 246 | I4: 3
A5: 4 | B5: 北京洁简天兴商贸有限责任公司 | C5: 北京市怀柔区杨宋镇凤翔一园53号001室 | D5: 13671221315 | E5: 85gA3-★★ | F5: 百旺 | G5: 85gA3 | H5: 260 | I5: 4
A6: 5 | B6: 深圳齐心集团股份有限公司 | C6: 深圳市坪山区锦绣中路18号齐心科技园 | D6: 18927481225 | E6: 85gA3-★★ | F6: 金齐心 | G6: 齐心金齐心A3-85克 | H6: 260 | I6: 5
A7: 6 | B7: 芬欧汇川（中国）有限公司 | C7: 江苏省常熟市沿江经济开发区 | D7: 13801578786 | E7: 85gA3-★★ | F7: 卓越佳印 | G7: 85克 A3 5包/箱 500张/包 | H7: 260 | I7: 6
A8: 7 | B8: 湖南省鑫湘锐纸品有限公司 | C8: 湖南省长沙县江背镇江背村1101009幢湖南华欣印务有限公司内 | D8: 15200910590 | E8: 85gA3-★★ | F8: 欧芬小秘书 | G8: 85gA3 | H8: 280 | I8: 7

Sheet 9包
A1: 序号 | B1: 供应商名称 | C1: 地址 | D1: 联系方式 | E1: 产品名称 | F1: 品牌 | G1: 规格型号 | H1: 入围单价（元） | I1: 排序（评审排名）
A2: 1 | B2: 徐州中坚物资贸易有限公司 | C2: 徐州市铜山区棠张镇学庄村村委会东首 | D2: 13952204177 | E2: 70gA4-★ | F2: 中坚 | G2: ZJ7706 | H2: 87.5 | I2: 1
A3: 2 | B3: 广东天章信息纸品有限公司 | C3: 珠海市金湾区红旗镇双湖北路东侧 | D3: 13928098752 | E3: 70gA4-★ | F3: 新绿天章 | G3: A4 70g 500张/包 5包/箱 | H3: 94 | I3: 2
A4: 3 | B4: 山东太阳纸业股份有限公司 | C4: 山东省兖州市西关大街66号 | D4: 19953796716 | E4: 70gA4-★ | F4: 酷印 | G4: 酷印-70gA4 | H4: 84.5 | I4: 3
A5: 4 | B5: 珠海格之格数码科技有限公司 | C5: 珠海市珠海大道3883号1栋3楼东侧 | D5: 13132569813 | E5: 70gA4-★ | F5: 格之格 | G5: 复印纸-UFO系列A4-70G-5 | H5: 94.5 | I5: 4
A6: 5 | B6: 东莞市纸上繁华实业有限公司 | C6: 南城街道石鼓大龙路11号2栋101室 | D6: 13249910099 | E6: 70gA4-★ | F6: 纸上繁华 | G6: 纸上繁华经典装70克A4 | H6: 90 | I6: 5
A7: 6 | B7: 天津安妮纸业销售有限公司 | C7: 天津市西青区杨柳青镇金盛工业园南园b3-3 | D7: 15302085168 | E7: 70gA4-★ | F7: 小战神 | G7: 70gA4 | H7: 95 | I7: 6
A8: 7 | B8: 天津荣来印刷材料商贸有限公司 | C8: 蓟县中昌路（乡村公路办） | D8: 18266606912 | E8: 70gA4-★ | F8: A度 | G8: 70gA4 | H8: 95 | I8: 7
A9: 8 | B9: 北京紫旭炫东文化用品有限公司 | C9: 北京市怀柔区杨宋镇凤翔东大街9号201室（集群注册） | D9: 13691595280 | E9: 70gA4-★ | F9: 晨鸣丽星 | G9: 70gA4 | H9: 85.6 | I9: 8
A10: 9 | B10: 深圳齐心集团股份有限公司 | C10: 深圳市坪山区锦绣中路18号齐心科技园 | D10: 18927481225 | E10: 70gA4-★ | F10: COMIX | G10: 齐心COMIXA4-70克 | H10: 92 | I10: 9
A11: 10 | B11: 北京洁简天兴商贸有限责任公司 | C11: 北京市怀柔区杨宋镇凤翔一园53号001室 | D11: 13671221315 | E11: 70gA4-★ | F11: 印爽 | G11: 70gA4 | H11: 92.5 | I11: 10
A12: 11 | B12: 多林多(天津)电子商务有限公司 | C12: 天津市武清开发区旺源道10号1号办公楼102室 | D12: 15810070718 | E12: 70gA4-★ | F12: 未来鸟 | G12: 70gA4 | H12: 105 | I12: 11
A13: 12 | B13: 芬欧汇川（中国）有限公司 | C13: 江苏省常熟市沿江经济开发区 | D13: 13801578786 | E13: 70gA4-★ | F13: 锦语 | G13: 70克 A4 5包/箱 500张/包 | H13: 94 | I13: 12
A14: 13 | B14: 北京瑞志林丰商贸有限公司 | C14: 北京市怀柔区雁栖经济开发区雁栖大街13号 | D14: 13911666872 | E14: 70gA4-★ | F14: 感动常在（畅打） | G14: 70克A4 | H14: 90 | I14: 13
A15: 14 | B15: 上海晨光文具股份有限公司 | C15: 上海市奉贤区金钱公路3469号3号楼 | D15: 13163395727 | E15: 70gA4-★ | F15: 晨光/M&G | G15: APYVSF47 | H15: 95 | I15: 14
A16: 15 | B16: 优士创新商业集团有限公司 | C16: 朝阳区观音惠园1号楼3层302 | D16: 13521031283 | E16: 70gA4-★ | F16: 颂道 | G16: ZF180 | H16: 107.3 | I16: 15
A17: 16 | B17: 得力集团有限公司 | C17: 浙江省宁波市宁海县徐霞客大道302号 | D17: 18510831800 | E17: 70gA4-★ | F17: 得力/deli | G17: ZF803 | H17: 96.5 | I17: 16

Sheet 10包
A1: 序号 | B1: 供应商名称 | C1: 地址 | D1: 联系方式 | E1: 产品名称 | F1: 品牌 | G1: 规格型号 | H1: 入围单价（元） | I1: 排序（评审排名）
A2: 1 | B2: 徐州中坚物资贸易有限公司 | C2: 徐州市铜山区棠张镇学庄村村委会东首 | D2: 13952204177 | E2: 70gA4-★★ | F2: 中坚 | G2: ZJ7601 | H2: 92.5 | I2: 1
A3: 2 | B3: 彩虹鸟（北京）科贸有限公司 | C3: 北京市海淀区明光村8号 | D3: 13901286308 | E3: 70gA4-★★ | F3: 彩虹鸟 | G3: 70gA4-★★ | H3: 93 | I3: 2
A4: 3 | B4: 珠海格之格数码科技有限公司 | C4: 珠海市珠海大道3883号1栋3楼东侧 | D4: 13132569813 | E4: 70gA4-★★ | F4: 格之格 | G4: 复印纸-嫦娥系列A4-70G-5 | H4: 101.9 | I4: 3
A5: 4 | B5: 广东天章信息纸品有限公司 | C5: 珠海市金湾区红旗镇双湖北路东侧 | D5: 13928098752 | E5: 70gA4-★★ | F5: 乐活天章 | G5: A4 70g 500张/包 5包/箱 | H5: 105 | I5: 4
A6: 5 | B6: 山东太阳纸业股份有限公司 | C6: 山东省兖州市西关大街66号 | D6: 19953796716 | E6: 70gA4-★★ | F6: 天阳 | G6: 天阳-70gA4 | H6: 94.5 | I6: 5
A7: 6 | B7: 北京薪卓越科技发展有限公司 | C7: 北京市朝阳区豆各庄1号11幢1层104室 | D7: 18611144033 | E7: 70gA4-★★ | F7: 薪卓越 | G7: A4，70g/m² | H7: 100 | I7: 6
A8: 7 | B8: 东莞市纸上繁华实业有限公司 | C8: 南城街道石鼓大龙路11号2栋101室 | D8: 13249910099 | E8: 70gA4-★★ | F8: 纸上繁华 | G8: 纸上繁华精品装70克A4 | H8: 102 | I8: 7
A9: 8 | B9: 苏州盛大供应链有限责任公司 | C9: 江苏省苏州市相城区高铁新城青龙港路60号港口大厦11层1126室 | D9: 18337009881 | E9: 70gA4-★★ | F9: 大崔 | G9: 70gA4（D-001）500张/包，5包/箱 | H9: 92 | I9: 8
A10: 9 | B10: 深圳齐心集团股份有限公司 | C10: 深圳市坪山区锦绣中路18号齐心科技园 | D10: 18927481225 | E10: 70gA4-★★ | F10: 齐心 | G10: 齐心优品A4-70克 | H10: 98 | I10: 9
A11: 10 | B11: 北京美瑞思诺科技有限公司 | C11: 北京市通州区宋庄镇双埠头村委会西500米 | D11: 13381115506 | E11: 70gA4-★★ | F11: 全聚得 | G11: AG4705 | H11: 110 | I11: 10
A12: 11 | B12: 北京广捷富源科贸有限公司 | C12: 东城区西革新里60号1-7-31号 | D12: 13501292445 | E12: 70gA4-★★ | F12: 一星蓝 | G12: 70克A4 | H12: 105 | I12: 11
A13: 12 | B13: 天津荣来印刷材料商贸有限公司 | C13: 蓟县中昌路（乡村公路办） | D13: 18266606912 | E13: 70gA4-★★ | F13: 星际战舰 | G13: 70gA4 | H13: 105 | I13: 12
A14: 13 | B14: 天津安妮纸业销售有限公司 | C14: 天津市西青区杨柳青镇金盛工业园南园b3-3 | D14: 15302085168 | E14: 70gA4-★★ | F14: 热带鱼 | G14: 70gA4 | H14: 105 | I14: 13
A15: 14 | B15: 北京紫旭炫东文化用品有限公司 | C15: 北京市怀柔区杨宋镇凤翔东大街9号201室（集群注册） | D15: 13691595280 | E15: 70gA4-★★ | F15: 晨鸣共好 | G15: 70gA4 | H15: 94.6 | I15: 14
A16: 15 | B16: 上海晨光文具股份有限公司 | C16: 上海市奉贤区金钱公路3469号3号楼 | D16: 13163395727 | E16: 70gA4-★★ | F16: 晨光/M&G | G16: APYVS959 | H16: 100 | I16: 15
A17: 16 | B17: 芬欧汇川（中国）有限公司 | C17: 江苏省常熟市沿江经济开发区 | D17: 13801578786 | E17: 70gA4-★★ | F17: 益思 | G17: 70克 A4 5包/箱 500张/包 | H17: 101 | I17: 16
A18: 17 | B18: 北京洁简天兴商贸有限责任公司 | C18: 北京市怀柔区杨宋镇凤翔一园53号001室 | D18: 13671221315 | E18: 70gA4-★★ | F18: 数据乐 | G18: 70gA4 | H18: 102.5 | I18: 17
A19: 18 | B19: 湖南省鑫湘锐纸品有限公司 | C19: 湖南省长沙县江背镇江背村1101009幢湖南华欣印务有限公司内 | D19: 15200910590 | E19: 70gA4-★★ | F19: 银甲 | G19: 70gA4 | H19: 115 | I19: 18
A20: 19 | B20: 苏州领先睿采科技有限公司 | C20: 苏州高新区泰山路2号15幢B楼 | D20: 13718812647 | E20: 70gA4-★★ | F20: 未来兴 | G20: 70gA4 | H20: 110.7 | I20: 19
A21: 20 | B21: 新元同创（北京）科技有限公司 | C21: 北京市平谷区山东庄镇府前路9号-2099 | D21: 18812161943 | E21: 70gA4-★★ | F21: 新元同创 | G21: 70gA4-5 | H21: 111 | I21: 20
A22: 21 | B22: 北京瑞志林丰商贸有限公司 | C22: 北京市怀柔区雁栖经济开发区雁栖大街13号 | D22: 13911666872 | E22: 70gA4-★★ | F22: 感动常在（臻选） | G22: 70克A4 | H22: 100 | I22: 21
A23: 22 | B23: 金鑫（清远）纸业有限公司 | C23: 广东省清远市高新技术产业开发区15号 | D23: 15050896011 | E23: 70gA4-★★ | F23: 步卡止 | G23: 70gA4 | H23: 100 | I23: 22
A24: 23 | B24: 北京奥特永盛科技有限公司 | C24: 北京市朝阳区八里庄西里100号6层西区607-09 | D24: 15699920137 | E24: 70gA4-★★ | F24: 伊莉娜 | G24: 70gA4 | H24: 118 | I24: 23
A25: 24 | B25: 上海联夏贸易有限公司 | C25: 上海市浦东新区钱仓路400号 | D25: 17621280310 | E25: 70gA4-★★ | F25: 联夏 | G25: A4 70g | H25: 102.5 | I25: 24
A26: 25 | B26: 行丰银拓科技集团有限公司 | C26: 北京市大兴区北兴路（东段）2号院10号楼4层401室 | D26: 15726635835 | E26: 70gA4-★★ | F26: 行丰银拓/HFYT | G26: HFCP2470 | H26: 114 | I26: 25
A27: 26 | B27: 北京永辉正兴文化用品有限公司 | C27: 北京市东城区永外东革新里40号院27号楼（40-1） | D27: 13691351120 | E27: 70gA4-★★ | F27: 蓝图 | G27: 70gA4 | H27: 115 | I27: 26

Sheet 11包
A1: 序号 | B1: 供应商名称 | C1: 地址 | D1: 联系方式 | E1: 产品名称 | F1: 品牌 | G1: 规格型号 | H1: 入围单价（元） | I1: 排序（评审排名）
A2: 1 | B2: 欧菲思达科技集团有限公司 | C2: 北京市东城区管村12号院3号楼3层0307 | D2: 19817648361 | E2: 70gA4-★★★ | F2: 欧菲思达 | G2: 70gA4-★★★ | H2: 95 | I2: 1
A3: 2 | B3: 徐州中坚物资贸易有限公司 | C3: 徐州市铜山区棠张镇学庄村村委会东首 | D3: 13952204177 | E3: 70gA4-★★★ | F3: 中坚 | G3: ZJ7609 | H3: 97.5 | I3: 2
A4: 3 | B4: 北京外文誉成纸业有限公司 | C4: 北京市海淀区西三环北路89号中国外文大厦A座1206、1207、1208室 | D4: 18266606985 | E4: 70gA4-★★★ | F4: BPC外文誉成 | G4: 70gA4 | H4: 92.5 | I4: 3
A5: 4 | B5: 东莞市纸上繁华实业有限公司 | C5: 南城街道石鼓大龙路11号2栋101室 | D5: 13249910099 | E5: 70gA4-★★★ | F5: 纸上繁华 | G5: 纸上繁华白金装70克A4 | H5: 105 | I5: 4
A6: 5 | B6: 广东天章信息纸品有限公司 | C6: 珠海市金湾区红旗镇双湖北路东侧 | D6: 13928098752 | E6: 70gA4-★★★ | F6: 世纪天章 | G6: A4 70g 500张/包 5包/箱 | H6: 112 | I6: 5
A7: 6 | B7: 三木高科科技（北京）有限公司 | C7: 北京市北京经济技术开发区（大兴）亦庄镇工业园区内北京田源纺织有限责任公司院内3幢平房 | D7: 13901049128 | E7: 70gA4-★★★ | F7: 品墨格/PINMOGE | G7: A4/70g精品复印纸 | H7: 110 | I7: 6
A8: 7 | B8: 山东太阳纸业股份有限公司 | C8: 山东省兖州市西关大街66号 | D8: 19953796716 | E8: 70gA4-★★★ | F8: 太阳佳 | G8: 太阳佳-70gA4 | H8: 104.5 | I8: 7
A9: 8 | B9: 深圳齐心集团股份有限公司 | C9: 深圳市坪山区锦绣中路18号齐心科技园 | D9: 18927481225 | E9: 70gA4-★★★ | F9: 晶纯 | G9: 齐心晶纯A4-70克 | H9: 106 | I9: 8
A10: 9 | B10: 北京金华盛林纸业有限公司 | C10: 北京市朝阳区亮马桥琨莎中心1座1201室 | D10: 15810933043 | E10: 70gA4-★★★ | F10: 印洁 | G10: 70gA4 | H10: 113 | I10: 9
A11: 10 | B11: 北京美瑞思诺科技有限公司 | C11: 北京市通州区宋庄镇双埠头村委会西500米 | D11: 13381115506 | E11: 70gA4-★★★ | F11: 全聚得 | G11: AB4705 | H11: 120 | I11: 10
A12: 11 | B12: 湖南省鑫湘锐纸品有限公司 | C12: 湖南省长沙县江背镇江背村1101009幢湖南华欣印务有限公司内 | D12: 15200910590 | E12: 70gA4-★★★ | F12: 欧芬小秘书 | G12: 70gA4 | H12: 120 | I12: 11
A13: 12 | B13: 天津荣来印刷材料商贸有限公司 | C13: 蓟县中昌路（乡村公路办） | D13: 18266606912 | E13: 70gA4-★★★ | F13: 铭洋 | G13: 70gA4 | H13: 114 | I13: 12
A14: 13 | B14: 北京紫旭炫东文化用品有限公司 | C14: 北京市怀柔区杨宋镇凤翔东大街9号201室（集群注册） | D14: 13691595280 | E14: 70gA4-★★★ | F14: 晨鸣丽雅 | G14: 70gA4 | H14: 103 | I14: 13
A15: 14 | B15: 天津安妮纸业销售有限公司 | C15: 天津市西青区杨柳青镇金盛工业园南园b3-3 | D15: 15302085168 | E15: 70gA4-★★★ | F15: 安妮 | G15: 70gA4 | H15: 115 | I15: 14
A16: 15 | B16: 乾程理想（北京）科技发展有限公司 | C16: 北京市朝阳区胜古中路2号院8号楼8层801室 | D16: 13701178790 | E16: 70gA4-★★★ | F16: 理想人 | G16: 70gA4 | H16: 122.4 | I16: 15
A17: 16 | B17: 北京日益升网络科技有限公司 | C17: 北京市怀柔区雁西经济开发区雁栖路33号院1号楼103室 | D17: 18611171829 | E17: 70gA4-★★★ | F17: 崔可爱 | G17: 崔可爱70克A4/箱/5包/500张/包 | H17: 116 | I17: 16
A18: 17 | B18: 新元同创（北京）科技有限公司 | C18: 北京市平谷区山东庄镇府前路9号-2099 | D18: 18812161943 | E18: 70gA4-★★★ | F18: 网络时代 | G18: 70gA4-5 | H18: 116 | I18: 17
A19: 18 | B19: 上海晨光文具股份有限公司 | C19: 上海市奉贤区金钱公路3469号3号楼 | D19: 13163395727 | E19: 70gA4-★★★ | F19: 晨光M&G | G19: APYVS957 | H19: 110 | I19: 18
A20: 19 | B20: 芬欧汇川（中国）有限公司 | C20: 江苏省常熟市沿江经济开发区 | D20: 13801578786 | E20: 70gA4-★★★ | F20: 佳印 | G20: 70克 A4 5包/箱 500张/包 | H20: 110 | I20: 19
A21: 20 | B21: 北京奥特永盛科技有限公司 | C21: 北京市朝阳区八里庄西里100号6层西区607-09 | D21: 15699920137 | E21: 70gA4-★★★ | F21: 飞星鱼 | G21: 70gA4 | H21: 123 | I21: 20
A22: 21 | B22: 北京洁简天兴商贸有限责任公司 | C22: 北京市怀柔区杨宋镇凤翔一园53号001室 | D22: 13671221315 | E22: 70gA4-★★★ | F22: 高品乐 | G22: 70gA4 | H22: 111.6 | I22: 21
A23: 22 | B23: 北京品欢科技发展有限公司 | C23: 北京市朝阳区枣营北里27号楼南侧(托儿所)二层205室 | D23: 15652605986 | E23: 70gA4-★★★ | F23: 五星红鸟 | G23: 70gA4 | H23: 118 | I23: 22
A24: 23 | B24: 金鑫（清远）纸业有限公司 | C24: 广东省清远市高新技术产业开发区15号 | D24: 15050896011 | E24: 70gA4-★★★ | F24: 如佳 | G24: 70gA4 | H24: 106.3 | I24: 23
A25: 24 | B25: 理想（中国）科学工业有限公司 | C25: 珠海市香洲区海滨南路52号中信南航国际广场3001、3002 | D25: 13501194099 | E25: 70gA4-★★★ | F25: 理想之星 | G25: 70gA4 | H25: 125.35 | I25: 24
A26: 25 | B26: 北京卓品时代科技有限公司 | C26: 北京市朝阳区广渠路1号院内146幢平房146-4 | D26: 18911738819 | E26: 70gA4-★★★ | F26: 易路通 | G26: 德懿系列A4-70克 | H26: 119 | I26: 25
A27: 26 | B27: 北京新科华创商贸有限公司 | C27: 北京市丰台区百强大道10号楼12层2单元1215-245 | D27: 18101299099 | E27: 70gA4-★★★ | F27: 嘉图 | G27: A470g | H27: 120 | I27: 26
A28: 27 | B28: 北京兆雄薪火科技有限公司 | C28: 北京昌平区东小口镇天通中苑二区21号楼19层1906 010-53386663 | D28: 15633121725 | E28: 70gA4-★★★ | F28: 默远 | G28: 70gA4-★★★ | H28: 120 | I28: 27
A29: 28 | B29: 山西华诺纸业有限公司 | C29: 山西省运城市盐湖高新技术产业开发区振兴大道22号2号厂房 | D29: 18102182506 | E29: 70gA4-★★★ | F29: 傲雪 | G29: 70gA4 | H29: 120 | I29: 28
A30: 29 | B30: 北京中盛宏达科技有限公司 | C30: 北京市平谷区兴谷经济开发区6区305-211702 | D30: 13301266286 | E30: 70gA4-★★★ | F30: 戴姆勒复印纸 | G30: 70gA4 | H30: 120 | I30: 29
A31: 30 | B31: 北京智诚金源办公设备有限公司 | C31: 北京市通州区漷县镇纪各庄村4号 | D31: 18518557339 | E31: 70gA4-★★★ | F31: 乐鸟 | G31: 70gA4-5 | H31: 120 | I31: 30
A32: 31 | B32: 北京瑞志林丰商贸有限公司 | C32: 北京市怀柔区雁栖经济开发区雁栖大街13号 | D32: 13911666872 | E32: 70gA4-★★★ | F32: 佳能 | G32: 70克A4 | H32: 108 | I32: 31
A33: 32 | B33: 宁波市利宏信息系统工程有限公司 | C33: 海曙区翠柏路51号 | D33: 15957926677 | E33: 70gA4-★★★ | F33: 全球 | G33: 70gA4 | H33: 128 | I33: 32
A34: 33 | B34: 北京齐心易购电子商务有限公司 | C34: 北京市东城区西革新里108-18 | D34: 13811588482 | E34: 70gA4-★★★ | F34: 百优 | G34: 70gA4-★★★ | H34: 121 | I34: 33
A35: 34 | B35: 北京英菲豪科技有限公司 | C35: 北京市海淀区上地信息路1号（北京实创高科技发展总公司1-1号）A栋6层136号 | D35: 13641219346 | E35: 70gA4-★★★ | F35: 蓝纸象 | G35: 70gA4 | H35: 121 | I35: 34

Sheet 12包
A1: 序号 | B1: 供应商名称 | C1: 地址 | D1: 联系方式 | E1: 产品名称 | F1: 品牌 | G1: 规格型号 | H1: 入围单价（元） | I1: 排序（评审排名）
A2: 1 | B2: 彩虹鸟（北京）科贸有限公司 | C2: 北京市海淀区明光村8号 | D2: 13901286308 | E2: 70gA4-★★★★ | F2: 彩虹鸟 | G2: 70gA4-★★★★ | H2: 108 | I2: 1
A3: 2 | B3: 广东天章信息纸品有限公司 | C3: 珠海市金湾区红旗镇双湖北路东侧 | D3: 13928098752 | E3: 70gA4-★★★★ | F3: 天章龙 | G3: A4 70g 500张/包 5包/箱 | H3: 115 | I3: 2
A4: 3 | B4: 北京金华盛林纸业有限公司 | C4: 北京市朝阳区亮马桥琨莎中心1座1201室 | D4: 15810933043 | E4: 70gA4-★★★★ | F4: 红金球 | G4: 70gA4 | H4: 116 | I4: 3
A5: 4 | B5: 北京美瑞思诺科技有限公司 | C5: 北京市通州区宋庄镇双埠头村委会西500米 | D5: 13381115506 | E5: 70gA4-★★★★ | F5: 全聚得 | G5: AH4705 | H5: 126 | I5: 4
A6: 5 | B6: 石家庄美创商贸有限公司 | C6: 新华区新华路539号神兴小区2号楼2单元601 | D6: 18131159186 | E6: 70gA4-★★★★ | F6: 金光阿芙罗 | G6: A4-70克 | H6: 120 | I6: 5
A7: 6 | B7: 山东太阳纸业股份有限公司 | C7: 山东省兖州市西关大街66号 | D7: 19953796716 | E7: 70gA4-★★★★ | F7: 金太阳 | G7: 金太阳-70gA4 | H7: 114.5 | I7: 6
A8: 7 | B8: 北京康乐欣文化用品有限公司 | C8: 永定门外大街西革新里108号院2号楼1层16号 | D8: 13601165873 | E8: 70gA4-★★★★ | F8: 亚美 | G8: 70gA4 | H8: 122 | I8: 7
A9: 8 | B9: 芬欧汇川（中国）有限公司 | C9: 江苏省常熟市沿江经济开发区 | D9: 13801578786 | E9: 70gA4-★★★★ | F9: 超级佳印 | G9: 70克 A4 5包/箱 500张/包 | H9: 116 | I9: 8
A10: 9 | B10: 湖南省鑫湘锐纸品有限公司 | C10: 湖南省长沙县江背镇江背村1101009幢湖南华欣印务有限公司内 | D10: 15200910590 | E10: 70gA4-★★★★ | F10: 蓝鸟 | G10: 70gA4 | H10: 130 | I10: 9
A11: 10 | B11: 天津荣来印刷材料商贸有限公司 | C11: 蓟县中昌路（乡村公路办） | D11: 18266606912 | E11: 70gA4-★★★★ | F11: 金铭洋 | G11: 70gA4 | H11: 123 | I11: 10
A12: 11 | B12: 北京紫旭炫东文化用品有限公司 | C12: 北京市怀柔区杨宋镇凤翔东大街9号201室（集群注册） | D12: 13691595280 | E12: 70gA4-★★★★ | F12: 金晨鸣 | G12: 70gA4 | H12: 111 | I12: 11
A13: 12 | B13: 北京日益升网络科技有限公司 | C13: 北京市怀柔区雁西经济开发区雁栖路33号院1号楼103室 | D13: 18611171829 | E13: 70gA4-★★★★ | F13: 吉祥鸟 | G13: 吉祥鸟70克A4/箱/5包/500张/包 | H13: 124.5 | I13: 12
A14: 13 | B14: 北京洁简天兴商贸有限责任公司 | C14: 北京市怀柔区杨宋镇凤翔一园53号001室 | D14: 13671221315 | E14: 70gA4-★★★★ | F14: 百旺 | G14: 70gA4 | H14: 118 | I14: 13
A15: 14 | B15: 多林多(天津)电子商务有限公司 | C15: 天津市武清开发区旺源道10号1号办公楼102室 | D15: 15810070718 | E15: 70gA4-★★★★ | F15: 创世纪 | G15: 70gA4 | H15: 132.5 | I15: 14
A16: 15 | B16: 金鑫（清远）纸业有限公司 | C16: 广东省清远市高新技术产业开发区15号 | D16: 15050896011 | E16: 70gA4-★★★★ | F16: 金旗舰 | G16: 70G/A4 | H16: 113.3元 | I16: 15
A17: 16 | B17: 北京市骅远商贸有限公司 | C17: 北京市通州区潞城镇武兴路7号A0874室 | D17: 13290466758 | E17: 70gA4-★★★★ | F17: 阿顺 | G17: 阿顺70克A4 | H17: 126 | I17: 16
A18: 17 | B18: 北京天和志业科技发展有限公司 | C18: 北京市海淀区后屯南路26号2层2-66 | D18: 13521280853 | E18: 70gA4-★★★★ | F18: 效润 | G18: 70gA4 | H18: 126 | I18: 17
A19: 18 | B19: 北京卓品时代科技有限公司 | C19: 北京市朝阳区广渠路1号院内146幢平房146-4 | D19: 18911738819 | E19: 70gA4-★★★★ | F19: 易路通 | G19: 尊享系列A4-70克 | H19: 126 | I19: 18
A20: 19 | B20: 天津汇通融合网络科技有限公司 | C20: 天津市红桥区咸阳北路48号银泰大厦A座605-2、606室 | D20: 13821365442 | E20: 70gA4-★★★★ | F20: 亮剑 | G20: 70gA4 | H20: 127 | I20: 19

Sheet 13包
A1: 序号 | B1: 供应商名称 | C1: 地址 | D1: 联系方式 | E1: 产品名称 | F1: 品牌 | G1: 规格型号 | H1: 入围单价（元） | I1: 排序（评审排名）
A2: 1 | B2: 徐州中坚物资贸易有限公司 | C2: 徐州市铜山区棠张镇学庄村村委会东首 | D2: 13952204177 | E2: 75gA4-★★ | F2: 中坚 | G2: ZJ7772 | H2: 97.5 | I2: 1
A3: 2 | B3: 珠海格之格数码科技有限公司 | C3: 珠海市珠海大道3883号1栋3楼东侧 | D3: 13132569813 | E3: 75gA4-★★ | F3: 格之格 | G3: 复印纸-嫦娥系列A4-75G-5 | H3: 115 | I3: 2
A4: 3 | B4: 广东天章信息纸品有限公司 | C4: 珠海市金湾区红旗镇双湖北路东侧 | D4: 13928098752 | E4: 75gA4-★★ | F4: 天章龙 | G4: A4 75g 500张/包 5包/箱 | H4: 120 | I4: 3
A5: 4 | B5: 天津荣来印刷材料商贸有限公司 | C5: 蓟县中昌路（乡村公路办） | D5: 18266606912 | E5: 75gA4-★★ | F5: 铭洋 | G5: 75gA4 | H5: 116 | I5: 4
A6: 5 | B6: 北京紫旭炫东文化用品有限公司 | C6: 北京市怀柔区杨宋镇凤翔东大街9号201室（集群注册） | D6: 13691595280 | E6: 75gA4-★★ | F6: 晨鸣共好 | G6: 75gA4 | H6: 105 | I6: 5
A7: 6 | B7: 湖南省鑫湘锐纸品有限公司 | C7: 湖南省长沙县江背镇江背村1101009幢湖南华欣印务有限公司内 | D7: 15200910590 | E7: 75gA4-★★ | F7: 欧芬小秘书 | G7: 75gA4 | H7: 125 | I7: 6
A8: 7 | B8: 北京洁简天兴商贸有限责任公司 | C8: 北京市怀柔区杨宋镇凤翔一园53号001室 | D8: 13671221315 | E8: 75gA4-★★ | F8: 高品乐 | G8: 75gA4 | H8: 112.5 | I8: 7
A9: 8 | B9: 芬欧汇川（中国）有限公司 | C9: 江苏省常熟市沿江经济开发区 | D9: 13801578786 | E9: 75gA4-★★ | F9: 卓越佳印 | G9: 75克 A4 5包/箱 500张/包 | H9: 113 | I9: 8
A10: 9 | B10: 北京齐心易购电子商务有限公司 | C10: 北京市东城区西革新里108-18 | D10: 13811588482 | E10: 75gA4-★★ | F10: 百优 | G10: 75gA4-★★ | H10: 120 | I10: 9
A11: 10 | B11: 山东太阳纸业股份有限公司 | C11: 山东省兖州市西关大街66号 | D11: 19953796716 | E11: 75gA4-★★ | F11: 金太阳-卓越商务 | G11: 金太阳-卓越商务-75gA4 | H11: 114.5 | I11: 10
A12: 11 | B12: 深圳齐心集团股份有限公司 | C12: 深圳市坪山区锦绣中路18号齐心科技园 | D12: 18927481225 | E12: 75gA4-★★ | F12: 晶纯 | G12: 齐心晶纯A4-75克 | H12: 116 | I12: 11
A13: 12 | B13: 金鑫（清远）纸业有限公司 | C13: 广东省清远市高新技术产业开发区15号 | D13: 15050896011 | E13: 75gA4-★★ | F13: 旗舰 | G13: 钻石旗舰75gA4 | H13: 110.5 | I13: 12
A14: 13 | B14: 新元同创（北京）科技有限公司 | C14: 北京市平谷区山东庄镇府前路9号-2099 | D14: 18812161943 | E14: 75gA4-★★ | F14: 网络时代 | G14: 75gA4-5 | H14: 124 | I14: 13
A15: 14 | B15: 北京英菲豪科技有限公司 | C15: 北京市海淀区上地信息路1号（北京实创高科技发展总公司1-1号）A栋6层136号 | D15: 13641219346 | E15: 75gA4-★★ | F15: 锦跃 | G15: 75gA4 | H15: 125 | I15: 14
A16: 15 | B16: 多林多(天津)电子商务有限公司 | C16: 天津市武清开发区旺源道10号1号办公楼102室 | D16: 15810070718 | E16: 75gA4-★★ | F16: QUAINT | G16: 75gA4 | H16: 128 | I16: 15
A17: 16 | B17: 山西华诺纸业有限公司 | C17: 山西省运城市盐湖高新技术产业开发区振兴大道22号2号厂房 | D17: 18102182506 | E17: 75gA4-★★ | F17: 傲雪 | G17: 75gA4-5 | H17: 128 | I17: 16

Sheet 14包
A1: 序号 | B1: 供应商名称 | C1: 地址 | D1: 联系方式 | E1: 产品名称 | F1: 品牌 | G1: 规格型号 | H1: 入围单价（元） | I1: 排序（评审排名）
A2: 1 | B2: 徐州中坚物资贸易有限公司 | C2: 徐州市铜山区棠张镇学庄村村委会东首 | D2: 13952204177 | E2: 80gA4-★ | F2: 中坚 | G2: ZJ7707 | H2: 100 | I2: 1
A3: 2 | B3: 山东太阳纸业股份有限公司 | C3: 山东省兖州市西关大街66号 | D3: 19953796716 | E3: 80gA4-★ | F3: 酷印 | G3: 酷印-80gA4 | H3: 96.5 | I3: 2
A4: 3 | B4: 广东天章信息纸品有限公司 | C4: 珠海市金湾区红旗镇双湖北路东侧 | D4: 13928098752 | E4: 80gA4-★ | F4: 新绿天章 | G4: A4 80g 500张/包 5包/箱 | H4: 108 | I4: 3
A5: 4 | B5: 东莞市纸上繁华实业有限公司 | C5: 南城街道石鼓大龙路11号2栋101室 | D5: 13249910099 | E5: 80gA4-★ | F5: 纸上繁华 | G5: 纸上繁华经典装80克A4 | H5: 106 | I5: 4
A6: 5 | B6: 珠海格之格数码科技有限公司 | C6: 珠海市珠海大道3883号1栋3楼东侧 | D6: 13132569813 | E6: 80gA4-★ | F6: 格之格 | G6: 复印纸-UFO系列A4-80G-5 | H6: 114.9 | I6: 5
A7: 6 | B7: 天津荣来印刷材料商贸有限公司 | C7: 蓟县中昌路（乡村公路办） | D7: 18266606912 | E7: 80gA4-★ | F7: A度 | G7: 80gA4 | H7: 109 | I7: 6
A8: 7 | B8: 北京紫旭炫东文化用品有限公司 | C8: 北京市怀柔区杨宋镇凤翔东大街9号201室（集群注册） | D8: 13691595280 | E8: 80gA4-★ | F8: 晨鸣雪莲 | G8: 80gA4 | H8: 99 | I8: 7
A9: 8 | B9: 上海晨光文具股份有限公司 | C9: 上海市奉贤区金钱公路3469号3号楼 | D9: 13163395727 | E9: 80gA4-★ | F9: 晨光M&G | G9: APYVQF48 | H9: 105 | I9: 8
A10: 9 | B10: 北京瑞志林丰商贸有限公司 | C10: 北京市怀柔区雁栖经济开发区雁栖大街13号 | D10: 13911666872 | E10: 80gA4-★ | F10: 感动常在（畅打） | G10: 80克A4 | H10: 100 | I10: 9
A11: 10 | B11: 多林多(天津)电子商务有限公司 | C11: 天津市武清开发区旺源道10号1号办公楼102室 | D11: 15810070718 | E11: 80gA4-★ | F11: 未来鸟 | G11: 80gA4 | H11: 120 | I11: 10
A12: 11 | B12: 芬欧汇川（中国）有限公司 | C12: 江苏省常熟市沿江经济开发区 | D12: 13801578786 | E12: 80gA4-★ | F12: 尽彩 | G12: 80克 A4 5包/箱 500张/包 | H12: 108 | I12: 11
A13: 12 | B13: 北京洁简天兴商贸有限责任公司 | C13: 北京市怀柔区杨宋镇凤翔一园53号001室 | D13: 13671221315 | E13: 80gA4-★ | F13: 印爽 | G13: 80gA4 | H13: 109 | I13: 12
A14: 13 | B14: 深圳齐心集团股份有限公司 | C14: 深圳市坪山区锦绣中路18号齐心科技园 | D14: 18927481225 | E14: 80gA4-★ | F14: COMIX | G14: 齐心COMIXA4-80克 | H14: 110元 | I14: 13

Sheet 15包
A1: 序号 | B1: 供应商名称 | C1: 地址 | D1: 联系方式 | E1: 产品名称 | F1: 品牌 | G1: 规格型号 | H1: 入围单价（元） | I1: 排序（评审排名）
A2: 1 | B2: 徐州中坚物资贸易有限公司 | C2: 徐州市铜山区棠张镇学庄村村委会东首 | D2: 13952204177 | E2: 80gA4-★★ | F2: 中坚 | G2: ZJ7608 | H2: 105 | I2: 1
A3: 2 | B3: 东莞市纸上繁华实业有限公司 | C3: 南城街道石鼓大龙路11号2栋101室 | D3: 13249910099 | E3: 80gA4-★★ | F3: 纸上繁华 | G3: 纸上繁华精品装80克A4 | H3: 112 | I3: 2
A4: 3 | B4: 山东太阳纸业股份有限公司 | C4: 山东省兖州市西关大街66号 | D4: 19953796716 | E4: 80gA4-★★ | F4: 天阳 | G4: 天阳-80gA4 | H4: 106.5 | I4: 3
A5: 4 | B5: 广东天章信息纸品有限公司 | C5: 珠海市金湾区红旗镇双湖北路东侧 | D5: 13928098752 | E5: 80gA4-★★ | F5: 乐活天章 | G5: A4 80g 500张/包 5包/箱 | H5: 120 | I5: 4
A6: 5 | B6: 苏州盛大供应链有限责任公司 | C6: 江苏省苏州市相城区高铁新城青龙港路60号港口大厦11层1126室 | D6: 18337009881 | E6: 80gA4-★★ | F6: 大崔 | G6: 80gA4（D-004)-500张/包-5包/箱 | H6: 105 | I6: 5
A7: 6 | B7: 北京广捷富源科贸有限公司 | C7: 东城区西革新里60号1-7-31号 | D7: 13501292445 | E7: 80gA4-★★ | F7: 一星蓝 | G7: 80克A4 | H7: 120 | I7: 6
A8: 7 | B8: 天津荣来印刷材料商贸有限公司 | C8: 蓟县中昌路（乡村公路办） | D8: 18266606912 | E8: 80gA4-★★ | F8: 星际战舰 | G8: 80gA4 | H8: 120 | I8: 7
A9: 8 | B9: 深圳齐心集团股份有限公司 | C9: 深圳市坪山区锦绣中路18号齐心科技园 | D9: 18927481225 | E9: 80gA4-★★ | F9: 齐心 | G9: 齐心优品A4-80克 | H9: 114 | I9: 8
A10: 9 | B10: 珠海格之格数码科技有限公司 | C10: 珠海市珠海大道3883号1栋3楼东侧 | D10: 13132569813 | E10: 80gA4-★★ | F10: 格之格 | G10: 复印纸-嫦娥系列A4-80G-5 | H10: 127.8 | I10: 9
A11: 10 | B11: 北京卓品时代科技有限公司 | C11: 北京市朝阳区广渠路1号院内146幢平房146-4 | D11: 18911738819 | E11: 80gA4-★★ | F11: 易路通 | G11: 德懿系列A4-80克 | H11: 121 | I11: 10
A12: 11 | B12: 北京洁简天兴商贸有限责任公司 | C12: 北京市怀柔区杨宋镇凤翔一园53号001室 | D12: 13671221315 | E12: 80gA4-★★ | F12: 数据乐 | G12: 80gA4 | H12: 115 | I12: 11
A13: 12 | B13: 上海晨光文具股份有限公司 | C13: 上海市奉贤区金钱公路3469号3号楼 | D13: 13163395727 | E13: 80gA4-★★ | F13: 晨光M&G | G13: APYVQ961 | H13: 115 | I13: 12
A14: 13 | B14: 芬欧汇川（中国）有限公司 | C14: 江苏省常熟市沿江经济开发区 | D14: 13801578786 | E14: 80gA4-★★ | F14: 益思 | G14: 80克 A4 5包/箱 500张/包 | H14: 115 | I14: 13
A15: 14 | B15: 北京紫旭炫东文化用品有限公司 | C15: 北京市怀柔区杨宋镇凤翔东大街9号201室（集群注册） | D15: 13691595280 | E15: 80gA4-★★ | F15: 晨鸣共好 | G15: 80gA4 | H15: 110 | I15: 14
A16: 15 | B16: 北京奥特永盛科技有限公司 | C16: 北京市朝阳区八里庄西里100号6层西区607-09 | D16: 15699920137 | E16: 80gA4-★★ | F16: 飞星鱼 | G16: 80gA4 | H16: 130 | I16: 15
A17: 16 | B17: 天津安妮纸业销售有限公司 | C17: 天津市西青区杨柳青镇金盛工业园南园b3-3 | D17: 15302085168 | E17: 80gA4-★★ | F17: 热带鱼 | G17: 80gA4 | H17: 125 | I17: 16
A18: 17 | B18: 金鑫（清远）纸业有限公司 | C18: 广东省清远市高新技术产业开发区15号 | D18: 15050896011 | E18: 80gA4-★★ | F18: 步卡止 | G18: 80gA4 | H18: 114 | I18: 17
A19: 18 | B19: 湖南省鑫湘锐纸品有限公司 | C19: 湖南省长沙县江背镇江背村1101009幢湖南华欣印务有限公司内 | D19: 15200910590 | E19: 80gA4-★★ | F19: 蓝鸟 | G19: 80gA4 | H19: 135 | I19: 18
A20: 19 | B20: 北京瑞志林丰商贸有限公司 | C20: 北京市怀柔区雁栖经济开发区雁栖大街13号 | D20: 13911666872 | E20: 80gA4-★★ | F20: 感动常在（臻选） | G20: 80克A4 | H20: 115 | I20: 19
A21: 20 | B21: 上海联夏贸易有限公司 | C21: 上海市浦东新区钱仓路400号 | D21: 17621280310 | E21: 80gA4-★★ | F21: 联夏 | G21: A4 80g | H21: 117.5 | I21: 20
A22: 21 | B22: 多林多(天津)电子商务有限公司 | C22: 天津市武清开发区旺源道10号1号办公楼102室 | D22: 15810070718 | E22: 80gA4-★★ | F22: QUAINT | G22: 80gA4 | H22: 135 | I22: 21
A23: 22 | B23: 山西华诺纸业有限公司 | C23: 山西省运城市盐湖高新技术产业开发区振兴大道22号2号厂房 | D23: 18102182506 | E23: 80gA4-★★ | F23: 兴茂天成 | G23: 80gA4-5 | H23: 135 | I23: 22
A24: 23 | B24: 北京智诚金源办公设备有限公司 | C24: 北京市通州区漷县镇纪各庄村4号 | D24: 18518557339 | E24: 80gA4-★★ | F24: 懂微 | G24: 80gA4-5 | H24: 135 | I24: 23

Sheet 16包
A1: 序号 | B1: 供应商名称 | C1: 地址 | D1: 联系方式 | E1: 产品名称 | F1: 品牌 | G1: 规格型号 | H1: 入围单价（元） | I1: 排序（评审排名）
A2: 1 | B2: 欧菲思达科技集团有限公司 | C2: 北京市东城区管村12号院3号楼3层0307 | D2: 19817648361 | E2: 80gA4-★★★ | F2: 欧菲思达 | G2: 80gA4-★★★ | H2: 104 | I2: 1
A3: 2 | B3: 徐州中坚物资贸易有限公司 | C3: 徐州市铜山区棠张镇学庄村村委会东首 | D3: 13952204177 | E3: 80gA4-★★★ | F3: 中坚 | G3: ZJ7672 | H3: 110 | I3: 2
A4: 3 | B4: 贵昌集团有限公司 | C4: 北京市丰台区花乡六圈西路8号院新华双创园B座2层209室 | D4: 13810366381 | E4: 80gA4-★★★ | F4: 一叶扁舟 | G4: 80gA4 | H4: 115 | I4: 3
A5: 4 | B5: 广东天章信息纸品有限公司 | C5: 珠海市金湾区红旗镇双湖北路东侧 | D5: 13928098752 | E5: 80gA4-★★★ | F5: 世纪天章 | G5: A4 80g 500张/包 5包/箱 | H5: 125 | I5: 4
A6: 5 | B6: 北京外文誉成纸业有限公司 | C6: 北京市海淀区西三环北路89号中国外文大厦A座1206、1207、1208室 | D6: 18266606985 | E6: 80gA4-★★★ | F6: BPC外文誉成 | G6: 80gA4 | H6: 107 | I6: 5
A7: 6 | B7: 北京美瑞思诺科技有限公司 | C7: 北京市通州区宋庄镇双埠头村委会西500米 | D7: 13381115506 | E7: 80gA4-★★★ | F7: 全聚得 | G7: AG4805 | H7: 126 | I7: 6
A8: 7 | B8: 三木高科科技（北京）有限公司 | C8: 北京市北京经济技术开发区（大兴）亦庄镇工业园区内北京田源纺织有限责任公司院内3幢平房 | D8: 13901049128 | E8: 80gA4-★★★ | F8: 品墨格/PINMOGE | G8: A4/80g精品复印纸 | H8: 122 | I8: 7
A9: 8 | B9: 山东太阳纸业股份有限公司 | C9: 山东省兖州市西关大街66号 | D9: 19953796716 | E9: 80gA4-★★★ | F9: 太阳佳 | G9: 太阳佳-80gA4 | H9: 116.5 | I9: 8
A10: 9 | B10: 东莞市纸上繁华实业有限公司 | C10: 南城街道石鼓大龙路11号2栋101室 | D10: 13249910099 | E10: 80gA4-★★★ | F10: 纸上繁华 | G10: 纸上繁华白金装80克A4 | H10: 123 | I10: 9
A11: 10 | B11: 北京卓品时代科技有限公司 | C11: 北京市朝阳区广渠路1号院内146幢平房146-4 | D11: 18911738819 | E11: 80gA4-★★★ | F11: 易路通 | G11: 五彩燕系列A4-80克 | H11: 128 | I11: 10
A12: 11 | B12: 北京品欢科技发展有限公司 | C12: 北京市朝阳区枣营北里27号楼南侧(托儿所)二层205室 | D12: 15652605986 | E12: 80gA4-★★★ | F12: 五星红鸟 | G12: 80gA4 | H12: 128 | I12: 11
A13: 12 | B13: 深圳齐心集团股份有限公司 | C13: 深圳市坪山区锦绣中路18号齐心科技园 | D13: 18927481225 | E13: 80gA4-★★★ | F13: 晶纯 | G13: 齐心晶纯A4-80克 | H13: 122 | I13: 12
A14: 13 | B14: 北京金华盛林纸业有限公司 | C14: 北京市朝阳区亮马桥琨莎中心1座1201室 | D14: 15810933043 | E14: 80gA4-★★★ | F14: 印洁 | G14: 80gA4 | H14: 130 | I14: 13
A15: 14 | B15: 北京新科华创商贸有限公司 | C15: 北京市丰台区百强大道10号楼12层2单元1215-245 | D15: 18101299099 | E15: 80gA4-★★★ | F15: 嘉图 | G15: A480g | H15: 130 | I15: 14
A16: 15 | B16: 天津荣来印刷材料商贸有限公司 | C16: 蓟县中昌路（乡村公路办） | D16: 18266606912 | E16: 80gA4-★★★ | F16: 铭洋 | G16: 80gA4 | H16: 130 | I16: 15
A17: 16 | B17: 北京紫旭炫东文化用品有限公司 | C17: 北京市怀柔区杨宋镇凤翔东大街9号201室（集群注册） | D17: 13691595280 | E17: 80gA4-★★★ | F17: 晨鸣碧云天 | G17: 80gA4 | H17: 118 | I17: 16
A18: 17 | B18: 北京洁简天兴商贸有限责任公司 | C18: 北京市怀柔区杨宋镇凤翔一园53号001室 | D18: 13671221315 | E18: 80gA4-★★★ | F18: 高品乐 | G18: 80gA4 | H18: 125 | I18: 17
A19: 18 | B19: 上海晨光文具股份有限公司 | C19: 上海市奉贤区金钱公路3469号3号楼 | D19: 13163395727 | E19: 80gA4-★★★ | F19: 晨光M&G | G19: APYVQ958 | H19: 125 | I19: 18
A20: 19 | B20: 芬欧汇川（中国）有限公司 | C20: 江苏省常熟市沿江经济开发区 | D20: 13801578786 | E20: 80gA4-★★★ | F20: 佳印 | G20: 80克 A4 5包/箱 500张/包 | H20: 125 | I20: 19
A21: 20 | B21: 北京英菲豪科技有限公司 | C21: 北京市海淀区上地信息路1号（北京实创高科技发展总公司1-1号）A栋6层136号 | D21: 13641219346 | E21: 80gA4-★★★ | F21: 蓝纸象 | G21: 80gA4 | H21: 132 | I21: 20
A22: 21 | B22: 乾程理想（北京）科技发展有限公司 | C22: 北京市朝阳区胜古中路2号院8号楼8层801室 | D22: 13701178790 | E22: 80gA4-★★★ | F22: 理想人 | G22: 80gA4 | H22: 139.9 | I22: 21
A23: 22 | B23: 湖南省鑫湘锐纸品有限公司 | C23: 湖南省长沙县江背镇江背村1101009幢湖南华欣印务有限公司内 | D23: 15200910590 | E23: 80gA4-★★★ | F23: 欧芬小秘书 | G23: 80gA4 | H23: 140 | I23: 22
A24: 23 | B24: 北京奥特永盛科技有限公司 | C24: 北京市朝阳区八里庄西里100号6层西区607-09 | D24: 15699920137 | E24: 80gA4-★★★ | F24: 伊莉娜 | G24: 80gA4 | H24: 140 | I24: 23
A25: 24 | B25: 苏州领先睿采科技有限公司 | C25: 苏州高新区泰山路2号15幢B楼 | D25: 13718812647 | E25: 80gA4-★★★ | F25: 未来兴 | G25: 80gA4 | H25: 132.5 | I25: 24
A26: 25 | B26: 北京华腾鑫业科技有限公司 | C26: 北京市海淀区知春路罗庄西里13号楼4层505室 | D26: 17801021282 | E26: 80gA4-★★★ | F26: 三金 | G26: 80gA4 | H26: 133 | I26: 25
A27: 26 | B27: 北京日益升网络科技有限公司 | C27: 北京市怀柔区雁西经济开发区雁栖路33号院1号楼103室 | D27: 18611171829 | E27: 80gA4-★★★ | F27: 崔可爱 | G27: 崔可爱80克A4/箱/5包/500张/包 | H27: 133 | I27: 26
A28: 27 | B28: 北京瑞志林丰商贸有限公司 | C28: 北京市怀柔区雁栖经济开发区雁栖大街13号 | D28: 13911666872 | E28: 80gA4-★★★ | F28: 佳能 | G28: 80克A4 | H28: 120 | I28: 27
A29: 28 | B29: 北京齐心易购电子商务有限公司 | C29: 北京市东城区西革新里108-18 | D29: 13811588482 | E29: 80gA4-★★★ | F29: 百优 | G29: 80gA4-★★★ | H29: 135 | I29: 28
A30: 29 | B30: 天津安妮纸业销售有限公司 | C30: 天津市西青区杨柳青镇金盛工业园南园b3-3 | D30: 15302085168 | E30: 80gA4-★★★ | F30: 安妮 | G30: 80gA4 | H30: 135 | I30: 29
A31: 30 | B31: 理想（中国）科学工业有限公司 | C31: 珠海市香洲区海滨南路52号中信南航国际广场3001、3002 | D31: 13501194099 | E31: 80gA4-★★★ | F31: 理想之星 | G31: 80gA4 | H31: 143.25 | I31: 30
A32: 31 | B32: 宁波市利宏信息系统工程有限公司 | C32: 海曙区翠柏路51号 | D32: 15957926677 | E32: 80gA4-★★★ | F32: 全球 | G32: 80gA4 | H32: 144 | I32: 31
A33: 32 | B33: 北京兆雄薪火科技有限公司 | C33: 北京昌平区东小口镇天通中苑二区21号楼19层1906 010-53386663 | D33: 15633121725 | E33: 80gA4-★★★ | F33: 默远 | G33: 80gA4-★★★ | H33: 136 | I33: 32
A34: 33 | B34: 北京中盛宏达科技有限公司 | C34: 北京市平谷区兴谷经济开发区6区305-211702 | D34: 13301266286 | E34: 80gA4-★★★ | F34: 戴姆勒复印纸 | G34: 80gA4 | H34: 136 | I34: 33
A35: 34 | B35: 金鑫（清远）纸业有限公司 | C35: 广东省清远市高新技术产业开发区15号 | D35: 15050896011 | E35: 80gA4-★★★ | F35: 如佳 | G35: 80/A4 | H35: 123 | I35: 34
A36: 35 | B36: 北京智诚金源办公设备有限公司 | C36: 北京市通州区漷县镇纪各庄村4号 | D36: 18518557339 | E36: 80gA4-★★★ | F36: 乐鸟 | G36: 80gA4-5 | H36: 137 | I36: 35

Sheet 17包
A1: 序号 | B1: 供应商名称 | C1: 地址 | D1: 联系方式 | E1: 产品名称 | F1: 品牌 | G1: 规格型号 | H1: 入围单价（元） | I1: 排序（评审排名）
A2: 1 | B2: 广东天章信息纸品有限公司 | C2: 珠海市金湾区红旗镇双湖北路东侧 | D2: 13928098752 | E2: 80gA4-★★★★ | F2: 天章龙 | G2: A4 80g 500张/包 5包/箱 | H2: 132 | I2: 1
A3: 2 | B3: 北京美瑞思诺科技有限公司 | C3: 北京市通州区宋庄镇双埠头村委会西500米 | D3: 13381115506 | E3: 80gA4-★★★★ | F3: 全聚得 | G3: AP4805 | H3: 138 | I3: 2
A4: 3 | B4: 北京金华盛林纸业有限公司 | C4: 北京市朝阳区亮马桥琨莎中心1座1201室 | D4: 15810933043 | E4: 80gA4-★★★★ | F4: 红金球 | G4: 80gA4 | H4: 133 | I4: 3
A5: 4 | B5: 山东太阳纸业股份有限公司 | C5: 山东省兖州市西关大街66号 | D5: 19953796716 | E5: 80gA4-★★★★ | F5: 金太阳 | G5: 金太阳-80gA4 | H5: 126.5 | I5: 4
A6: 5 | B6: 彩虹鸟（北京）科贸有限公司 | C6: 北京市海淀区明光村8号 | D6: 13901286308 | E6: 80gA4-★★★★ | F6: 彩虹鸟 | G6: 80gA4-★★★★ | H6: 135 | I6: 5
A7: 6 | B7: 天津荣来印刷材料商贸有限公司 | C7: 蓟县中昌路（乡村公路办） | D7: 18266606912 | E7: 80gA4-★★★★ | F7: 金铭洋 | G7: 80gA4 | H7: 136 | I7: 6
A8: 7 | B8: 北京紫旭炫东文化用品有限公司 | C8: 北京市怀柔区杨宋镇凤翔东大街9号201室（集群注册） | D8: 13691595280 | E8: 80gA4-★★★★ | F8: 金晨鸣 | G8: 80gA4 | H8: 123 | I8: 7
A9: 8 | B9: 多林多(天津)电子商务有限公司 | C9: 天津市武清开发区旺源道10号1号办公楼102室 | D9: 15810070718 | E9: 80gA4-★★★★ | F9: 创世纪 | G9: 80gA4 | H9: 145 | I9: 8
A10: 9 | B10: 北京洁简天兴商贸有限责任公司 | C10: 北京市怀柔区杨宋镇凤翔一园53号001室 | D10: 13671221315 | E10: 80gA4-★★★★ | F10: 百旺 | G10: 80gA4 | H10: 130 | I10: 9
A11: 10 | B11: 芬欧汇川（中国）有限公司 | C11: 江苏省常熟市沿江经济开发区 | D11: 13801578786 | E11: 80gA4-★★★★ | F11: 超级佳印 | G11: 80克 A4 5包/箱 500张/包 | H11: 130 | I11: 10
A12: 11 | B12: 北京日益升网络科技有限公司 | C12: 北京市怀柔区雁西经济开发区雁栖路33号院1号楼103室 | D12: 18611171829 | E12: 80gA4-★★★★ | F12: 吉祥鸟 | G12: 吉祥鸟80克A4/5包/箱/500张/包 | H12: 138 | I12: 11
A13: 12 | B13: 北京洪烽信达科技有限公司 | C13: 北京市平谷区中关村科技园区平谷园马坊工业园1区150号 | D13: 18610478867 | E13: 80gA4-★★★★ | F13: 金色幻影 | G13: 80gA4 | H13: 139 | I13: 12
A14: 13 | B14: 北京天和志业科技发展有限公司 | C14: 北京市海淀区后屯南路26号2层2-66 | D14: 13521280853 | E14: 80gA4-★★★★ | F14: 效润 | G14: 80gA4 | H14: 139 | I14: 13
A15: 14 | B15: 天津汇通融合网络科技有限公司 | C15: 天津市红桥区咸阳北路48号银泰大厦A座605-2、606室 | D15: 13821365442 | E15: 80gA4-★★★★ | F15: 亮剑 | G15: 80gA4 | H15: 139.5 | I15: 14
A16: 15 | B16: 北京市骅远商贸有限公司 | C16: 北京市通州区潞城镇武兴路7号A0874室 | D16: 13290466758 | E16: 80gA4-★★★★ | F16: 阿顺 | G16: 阿顺80克A4 | H16: 140 | I16: 15
A17: 16 | B17: 北京华腾鑫业科技有限公司 | C17: 北京市海淀区知春路罗庄西里13号楼4层505室 | D17: 17801021282 | E17: 80gA4-★★★★ | F17: 柘印 | G17: 80gA4 | H17: 141 | I17: 16

Sheet 18包
A1: 序号 | B1: 供应商名称 | C1: 地址 | D1: 联系方式 | E1: 产品名称 | F1: 品牌 | G1: 规格型号 | H1: 入围单价（元） | I1: 排序（评审排名）
A2: 1 | B2: 徐州中坚物资贸易有限公司 | C2: 徐州市铜山区棠张镇学庄村村委会东首 | D2: 13952204177 | E2: 85gA4-★★ | F2: 中坚 | G2: ZJ7786 | H2: 108 | I2: 1
A3: 2 | B3: 东莞市纸上繁华实业有限公司 | C3: 南城街道石鼓大龙路11号2栋101室 | D3: 13249910099 | E3: 85gA4-★★ | F3: 添越 | G3: 添越85克A4 | H3: 126 | I3: 2
A4: 3 | B4: 苏州盛大供应链有限责任公司 | C4: 江苏省苏州市相城区高铁新城青龙港路60号港口大厦11层1126室 | D4: 18337009881 | E4: 85gA4-★★ | F4: 大崔 | G4: 85gA4（D-011）-500张/包-5包/箱 | H4: 120 | I4: 3
A5: 4 | B5: 北京紫旭炫东文化用品有限公司 | C5: 北京市怀柔区杨宋镇凤翔东大街9号201室（集群注册） | D5: 13691595280 | E5: 85gA4-★★ | F5: 晨鸣祥云 | G5: 85gA4 | H5: 123 | I5: 4
A6: 5 | B6: 北京洁简天兴商贸有限责任公司 | C6: 北京市怀柔区杨宋镇凤翔一园53号001室 | D6: 13671221315 | E6: 85gA4-★★ | F6: 百旺 | G6: 85gA4 | H6: 130 | I6: 5
A7: 6 | B7: 深圳齐心集团股份有限公司 | C7: 深圳市坪山区锦绣中路18号齐心科技园 | D7: 18927481225 | E7: 85gA4-★★ | F7: 金齐心 | G7: 齐心金齐心A4-85克 | H7: 130 | I7: 6
A8: 7 | B8: 芬欧汇川（中国）有限公司 | C8: 江苏省常熟市沿江经济开发区 | D8: 13801578786 | E8: 85gA4-★★ | F8: 卓越佳印 | G8: 85克 A4 5包/箱 500张/包 | H8: 130 | I8: 7
A9: 8 | B9: 湖南省鑫湘锐纸品有限公司 | C9: 湖南省长沙县江背镇江背村1101009幢湖南华欣印务有限公司内 | D9: 15200910590 | E9: 85gA4-★★ | F9: 欧芬小秘书 | G9: 85gA4 | H9: 140 | I9: 8
A10: 9 | B10: 天津安妮纸业销售有限公司 | C10: 天津市西青区杨柳青镇金盛工业园南园b3-3 | D10: 15302085168 | E10: 85gA4-★★ | F10: 安妮 | G10: 85gA4 | H10: 140 | I10: 9
A11: 10 | B11: 山东太阳纸业股份有限公司 | C11: 山东省兖州市西关大街66号 | D11: 19953796716 | E11: 85gA4-★★ | F11: 金太阳-卓越商务 | G11: 金太阳-卓越商务-85gA4 | H11: 126.5 | I11: 10
A12: 11 | B12: 金鑫（清远）纸业有限公司 | C12: 广东省清远市高新技术产业开发区15号 | D12: 15050896011 | E12: 85gA4-★★ | F12: 旗舰 | G12: 钻石旗舰85G/A4 | H12: 128.5 | I12: 11

Sheet 19包
A1: 序号 | B1: 供应商名称 | C1: 地址 | D1: 联系方式 | E1: 产品名称 | F1: 品牌 | G1: 规格型号 | H1: 入围单价（元） | I1: 排序（评审排名）
A2: 1 | B2: 徐州中坚物资贸易有限公司 | C2: 徐州市铜山区棠张镇学庄村村委会东首 | D2: 13952204177 | E2: 70gA5-★★ | F2: 中坚 | G2: ZJ7907 | H2: 94 | I2: 1
A3: 2 | B3: 彩虹鸟（北京）科贸有限公司 | C3: 北京市海淀区明光村8号 | D3: 13901286308 | E3: 70gA5-★★ | F3: 彩虹鸟 | G3: 70gA5-★★ | H3: 96 | I3: 2
A4: 3 | B4: 欧菲思达科技集团有限公司 | C4: 北京市东城区管村12号院3号楼3层0307 | D4: 19817648361 | E4: 70gA5-★★ | F4: 欧菲思达 | G4: 70gA5-★★ | H4: 98 | I4: 3
A5: 4 | B5: 珠海格之格数码科技有限公司 | C5: 珠海市珠海大道3883号1栋3楼东侧 | D5: 13132569813 | E5: 70gA5-★★ | F5: 格之格 | G5: 复印纸-嫦娥系列A5-70G-10 | H5: 105 | I5: 4
A6: 5 | B6: 北京外文誉成纸业有限公司 | C6: 北京市海淀区西三环北路89号中国外文大厦A座1206、1207、1208室 | D6: 18266606985 | E6: 70gA5-★★ | F6: BPC外文誉成 | G6: 70gA5 | H6: 90 | I6: 5
A7: 6 | B7: 广东天章信息纸品有限公司 | C7: 珠海市金湾区红旗镇双湖北路东侧 | D7: 13928098752 | E7: 70gA5-★★ | F7: 乐活天章 | G7: A5 70g 500张/包 10包/箱 | H7: 108 | I7: 6
A8: 7 | B8: 北京凰兴嘉利商贸有限责任公司 | C8: 北京市东城区永定门外大街86号4号楼一层102 | D8: 13901357669 | E8: 70gA5-★★ | F8: 晶品乐 | G8: 70gA5 | H8: 108 | I8: 7
A9: 8 | B9: 苏州盛大供应链有限责任公司 | C9: 江苏省苏州市相城区高铁新城青龙港路60号港口大厦11层1126室 | D9: 18337009881 | E9: 70gA5-★★ | F9: 大崔 | G9: 70gA5-500张/包-10包-箱 | H9: 100 | I9: 8
A10: 9 | B10: 上海晨光文具股份有限公司 | C10: 上海市奉贤区金钱公路3469号3号楼 | D10: 13163395727 | E10: 70gA5-★★ | F10: 晨光M&G | G10: APY61957 | H10: 107 | I10: 9
A11: 10 | B11: 苏州领先睿采科技有限公司 | C11: 苏州高新区泰山路2号15幢B楼 | D11: 13718812647 | E11: 70gA5-★★ | F11: 未来兴 | G11: 70gA5 | H11: 113 | I11: 10
A12: 11 | B12: 东莞市纸上繁华实业有限公司 | C12: 南城街道石鼓大龙路11号2栋101室 | D12: 13249910099 | E12: 70gA5-★★ | F12: 纸上繁华 | G12: 纸上繁华精品装70克A5 | H12: 113 | I12: 11
A13: 12 | B13: 湖南省鑫湘锐纸品有限公司 | C13: 湖南省长沙县江背镇江背村1101009幢湖南华欣印务有限公司内 | D13: 15200910590 | E13: 70gA5-★★ | F13: 欧芬小秘书 | G13: 70gA5 | H13: 120 | I13: 12
A14: 13 | B14: 天津安妮纸业销售有限公司 | C14: 天津市西青区杨柳青镇金盛工业园南园b3-3 | D14: 15302085168 | E14: 70gA5-★★ | F14: 安妮 | G14: 70gA5 | H14: 115 | I14: 13
A15: 14 | B15: 北京美瑞思诺科技有限公司 | C15: 北京市通州区宋庄镇双埠头村委会西500米 | D15: 13381115506 | E15: 70gA5-★★ | F15: 全聚得 | G15: AB5710 | H15: 122 | I15: 14
A16: 15 | B16: 北京金华盛林纸业有限公司 | C16: 北京市朝阳区亮马桥琨莎中心1座1201室 | D16: 15810933043 | E16: 70gA5-★★ | F16: 红金球 | G16: 70gA5 | H16: 116 | I16: 15
A17: 16 | B17: 芬欧汇川（中国）有限公司 | C17: 江苏省常熟市沿江经济开发区 | D17: 13801578786 | E17: 70gA5-★★ | F17: UPM | G17: 70克 A5 10包/箱 500张/包 | H17: 110 | I17: 16
A18: 17 | B18: 北京奥特永盛科技有限公司 | C18: 北京市朝阳区八里庄西里100号6层西区607-09 | D18: 15699920137 | E18: 70gA5-★★ | F18: 飞星鱼 | G18: 70gA5 | H18: 123 | I18: 17
A19: 18 | B19: 北京依文裕福商贸有限公司 | C19: 北京市丰台区和义西里二区36号院1号楼1至5层101内5层B511 | D19: 13520052530 | E19: 70gA5-★★ | F19: 超速 | G19: 70gA5 | H19: 117 | I19: 18
A20: 19 | B20: 北京康乐欣文化用品有限公司 | C20: 永定门外大街西革新里108号院2号楼1层16号 | D20: 13601165873 | E20: 70gA5-★★ | F20: 亚美 | G20: 70gA5 | H20: 117 | I20: 19
A21: 20 | B21: 多林多(天津)电子商务有限公司 | C21: 天津市武清开发区旺源道10号1号办公楼102室 | D21: 15810070718 | E21: 70gA5-★★ | F21: 创世纪 | G21: 70gA5 | H21: 125 | I21: 20
A22: 21 | B22: 山东太阳纸业股份有限公司 | C22: 山东省兖州市西关大街66号 | D22: 19953796716 | E22: 70gA5-★★ | F22: 金太阳 | G22: 金太阳-70gA5 | H22: 112 | I22: 21
A23: 22 | B23: 北京广捷富源科贸有限公司 | C23: 东城区西革新里60号1-7-31号 | D23: 13501292445 | E23: 70gA5-★★ | F23: 二星蓝 | G23: 70克A5 | H23: 120 | I23: 22
A24: 23 | B24: 北京卓品时代科技有限公司 | C24: 北京市朝阳区广渠路1号院内146幢平房146-4 | D24: 18911738819 | E24: 70gA5-★★ | F24: 易路通 | G24: 德懿系列A5-70克 | H24: 120 | I24: 23
A25: 24 | B25: 北京兆雄薪火科技有限公司 | C25: 北京昌平区东小口镇天通中苑二区21号楼19层1906 010-53386663 | D25: 15633121725 | E25: 70gA5-★★ | F25: 默远 | G25: 70gA5-★★ | H25: 120 | I25: 24
A26: 25 | B26: 山西华诺纸业有限公司 | C26: 山西省运城市盐湖高新技术产业开发区振兴大道22号2号厂房 | D26: 18102182506 | E26: 70gA5-★★ | F26: 傲雪 | G26: 70gA5-10 | H26: 120 | I26: 25
A27: 26 | B27: 北京品欢科技发展有限公司 | C27: 北京市朝阳区枣营北里27号楼南侧(托儿所)二层205室 | D27: 15652605986 | E27: 70gA5-★★ | F27: 五星红鸟 | G27: 70gA5 | H27: 120 | I27: 26
A28: 27 | B28: 北京永辉正兴文化用品有限公司 | C28: 北京市东城区永外东革新里40号院27号楼（40-1） | D28: 13691351120 | E28: 70gA5-★★ | F28: 蓝图 | G28: 70gA5 | H28: 120 | I28: 27
A29: 28 | B29: 北京智诚金源办公设备有限公司 | C29: 北京市通州区漷县镇纪各庄村4号 | D29: 18518557339 | E29: 70gA5-★★ | F29: 懂微 | G29: 70gA5-10 | H29: 120 | I29: 28
A30: 29 | B30: 北京中盛宏达科技有限公司 | C30: 北京市平谷区兴谷经济开发区6区305-211702 | D30: 13301266286 | E30: 70gA5-★★ | F30: 戴姆勒复印纸 | G30: 70gA5 | H30: 120 | I30: 29
A31: 30 | B31: 北京瑞志林丰商贸有限公司 | C31: 北京市怀柔区雁栖经济开发区雁栖大街13号 | D31: 13911666872 | E31: 70gA5-★★ | F31: 感动常在（臻选） | G31: 70克A5 | H31: 108 | I31: 30
A32: 31 | B32: 金鑫（清远）纸业有限公司 | C32: 广东省清远市高新技术产业开发区15号 | D32: 15050896011 | E32: 70gA5-★★ | F32: APP | G32: APP晴空蓝70gA5 | H32: 108 | I32: 31
A33: 32 | B33: 宁波市利宏信息系统工程有限公司 | C33: 海曙区翠柏路51号 | D33: 15957926677 | E33: 70gA5-★★ | F33: 全球 | G33: 70gA5 | H33: 128 | I33: 32
A34: 33 | B34: 北京齐心易购电子商务有限公司 | C34: 北京市东城区西革新里108-18 | D34: 13811588482 | E34: 70gA5-★★ | F34: 百优 | G34: 70gA5-★★ | H34: 121 | I34: 33
A35: 34 | B35: 优士创新商业集团有限公司 | C35: 朝阳区观音惠园1号楼3层302 | D35: 13521031283 | E35: 70gA5-★★ | F35: 颂道 | G35: ZF160 | H35: 130 | I35: 34
A36: 35 | B36: 北京飞博宏达商贸有限公司 | C36: 石龙经济开发区永安路20号3幢B1-2805 | D36: 13521235372 | E36: 70gA5-★★ | F36: 智印 | G36: 70gA5 | H36: 123 | I36: 35
A37: 36 | B37: 得力集团有限公司 | C37: 浙江省宁波市宁海县徐霞客大道302号 | D37: 18510831800 | E37: 70gA5-★★ | F37: 得力/deli | G37: Z7124 | H37: 117 | I37: 36

Sheet 20包
A1: 序号 | B1: 供应商名称 | C1: 地址 | D1: 联系方式 | E1: 产品名称 | F1: 品牌 | G1: 规格型号 | H1: 入围单价（元） | I1: 排序（评审排名）
A2: 1 | B2: 徐州中坚物资贸易有限公司 | C2: 徐州市铜山区棠张镇学庄村村委会东首 | D2: 13952204177 | E2: 70gB4-★★ | F2: 中坚 | G2: ZJ7681 | H2: 108 | I2: 1
A3: 2 | B3: 珠海格之格数码科技有限公司 | C3: 珠海市珠海大道3883号1栋3楼东侧 | D3: 13132569813 | E3: 70gB4-★★ | F3: 格之格 | G3: 复印纸-UFO系列B4-70G-4 | H3: 120 | I3: 2
A4: 3 | B4: 北京依文裕福商贸有限公司 | C4: 北京市丰台区和义西里二区36号院1号楼1至5层101内5层B511 | D4: 13520052530 | E4: 70gB4-★★ | F4: 超速 | G4: 70gB4 | H4: 114 | I4: 3
A5: 4 | B5: 广东天章信息纸品有限公司 | C5: 珠海市金湾区红旗镇双湖北路东侧 | D5: 13928098752 | E5: 70gB4-★★ | F5: 乐活天章 | G5: B4 70g 500张/包 4包/箱 | H5: 126 | I5: 4
A6: 5 | B6: 东莞市纸上繁华实业有限公司 | C6: 南城街道石鼓大龙路11号2栋101室 | D6: 13249910099 | E6: 70gB4-★★ | F6: 纸上繁华 | G6: 纸上繁华精品装70克B4 | H6: 130 | I6: 5
A7: 6 | B7: 上海晨光文具股份有限公司 | C7: 上海市奉贤区金钱公路3469号3号楼 | D7: 13163395727 | E7: 70gB4-★★ | F7: 晨光M&G | G7: APYK3F45 | H7: 124 | I7: 6
A8: 7 | B8: 北京金华盛林纸业有限公司 | C8: 北京市朝阳区亮马桥琨莎中心1座1201室 | D8: 15810933043 | E8: 70gB4-★★ | F8: 红金球 | G8: 70gB4 | H8: 132 | I8: 7
A9: 8 | B9: 北京奥特永盛科技有限公司 | C9: 北京市朝阳区八里庄西里100号6层西区607-09 | D9: 15699920137 | E9: 70gB4-★★ | F9: 飞星鱼 | G9: 70gB4 | H9: 140 | I9: 8
A10: 9 | B10: 北京紫旭炫东文化用品有限公司 | C10: 北京市怀柔区杨宋镇凤翔东大街9号201室（集群注册） | D10: 13691595280 | E10: 70gB4-★★ | F10: 晨鸣 | G10: 70gB4 | H10: 121 | I10: 9
A11: 10 | B11: 北京日益升网络科技有限公司 | C11: 北京市怀柔区雁西经济开发区雁栖路33号院1号楼103室 | D11: 18611171829 | E11: 70gB4-★★ | F11: 吉祥鸟 | G11: 吉祥鸟70克B4/箱/4包/500张/包 | H11: 135 | I11: 10
A12: 11 | B12: 北京品欢科技发展有限公司 | C12: 北京市朝阳区枣营北里27号楼南侧(托儿所)二层205室 | D12: 15652605986 | E12: 70gB4-★★ | F12: 五星红鸟 | G12: 70gB4 | H12: 136 | I12: 11
A13: 12 | B13: 金鑫（清远）纸业有限公司 | C13: 广东省清远市高新技术产业开发区15号 | D13: 15050896011 | E13: 70gB4-★★ | F13: APP | G13: APP晴空蓝70gB4 | H13: 122.7 | I13: 12
A14: 13 | B14: 多林多(天津)电子商务有限公司 | C14: 天津市武清开发区旺源道10号1号办公楼102室 | D14: 15810070718 | E14: 70gB4-★★ | F14: 创世纪 | G14: 70gB4 | H14: 145 | I14: 13
A15: 14 | B15: 北京洁简天兴商贸有限责任公司 | C15: 北京市怀柔区杨宋镇凤翔一园53号001室 | D15: 13671221315 | E15: 70gB4-★★ | F15: 高品乐 | G15: 70gB4 | H15: 130 | I15: 14
A16: 15 | B16: 芬欧汇川（中国）有限公司 | C16: 江苏省常熟市沿江经济开发区 | D16: 13801578786 | E16: 70gB4-★★ | F16: UPM | G16: 70克 B4 4包/箱 500张/包 | H16: 130 | I16: 15
A17: 16 | B17: 北京洪烽信达科技有限公司 | C17: 北京市平谷区中关村科技园区平谷园马坊工业园1区150号 | D17: 18610478867 | E17: 70gB4-★★ | F17: 金色幻影 | G17: 70gB4 | H17: 137.5 | I17: 16
A18: 17 | B18: 天津汇通融合网络科技有限公司 | C18: 天津市红桥区咸阳北路48号银泰大厦A座605-2、606室 | D18: 13821365442 | E18: 70gB4-★★ | F18: 亮剑 | G18: 70gB4 | H18: 139 | I18: 17
A19: 18 | B19: 湖南省鑫湘锐纸品有限公司 | C19: 湖南省长沙县江背镇江背村1101009幢湖南华欣印务有限公司内 | D19: 15200910590 | E19: 70gB4-★★ | F19: 欧芬小秘书 | G19: 70gB4 | H19: 140 | I19: 18
A20: 19 | B20: 天津安妮纸业销售有限公司 | C20: 天津市西青区杨柳青镇金盛工业园南园b3-3 | D20: 15302085168 | E20: 70gB4-★★ | F20: 安妮 | G20: 70gB4 | H20: 140 | I20: 19
A21: 20 | B21: 山西华诺纸业有限公司 | C21: 山西省运城市盐湖高新技术产业开发区振兴大道22号2号厂房 | D21: 18102182506 | E21: 70gB4-★★ | F21: 傲雪 | G21: 70gB4-4 | H21: 140 | I21: 20
A22: 21 | B22: 北京智诚金源办公设备有限公司 | C22: 北京市通州区漷县镇纪各庄村4号 | D22: 18518557339 | E22: 70gB4-★★ | F22: 懂微 | G22: 70gB4-4 | H22: 140 | I22: 21
A23: 22 | B23: 北京华腾鑫业科技有限公司 | C23: 北京市海淀区知春路罗庄西里13号楼4层505室 | D23: 17801021282 | E23: 70gB4-★★ | F23: 柘印 | G23: 70gB4 | H23: 141 | I23: 22
A24: 23 | B24: 北京兆雄薪火科技有限公司 | C24: 北京昌平区东小口镇天通中苑二区21号楼19层1906 010-53386663 | D24: 15633121725 | E24: 70gB4-★★ | F24: 默远 | G24: 70gB4-★★ | H24: 144 | I24: 23
A25: 24 | B25: 北京康乐欣文化用品有限公司 | C25: 永定门外大街西革新里108号院2号楼1层16号 | D25: 13601165873 | E25: 70gB4-★★ | F25: 亚美 | G25: 70gB4 | H25: 144 | I25: 24
A26: 25 | B26: 北京中盛宏达科技有限公司 | C26: 北京市平谷区兴谷经济开发区6区305-211702 | D26: 13301266286 | E26: 70gB4-★★ | F26: 戴姆勒复印纸 | G26: 70gB4 | H26: 144 | I26: 25

Sheet 21包
A1: 序号 | B1: 供应商名称 | C1: 地址 | D1: 联系方式 | E1: 产品名称 | F1: 品牌 | G1: 规格型号 | H1: 入围单价（元） | I1: 排序（评审排名）
A2: 1 | B2: 徐州中坚物资贸易有限公司 | C2: 徐州市铜山区棠张镇学庄村村委会东首 | D2: 13952204177 | E2: 70gB5-★★ | F2: 中坚 | G2: ZJ7682 | H2: 108 | I2: 1
A3: 2 | B3: 北京依文裕福商贸有限公司 | C3: 北京市丰台区和义西里二区36号院1号楼1至5层101内5层B511 | D3: 13520052530 | E3: 70gB5-★★ | F3: 超速 | G3: 70gB5 | H3: 114 | I3: 2
A4: 3 | B4: 广东天章信息纸品有限公司 | C4: 珠海市金湾区红旗镇双湖北路东侧 | D4: 13928098752 | E4: 70gB5-★★ | F4: 乐活天章 | G4: B5 70g 500张/包 8包/箱 | H4: 126 | I4: 3
A5: 4 | B5: 上海晨光文具股份有限公司 | C5: 上海市奉贤区金钱公路3469号3号楼 | D5: 13163395727 | E5: 70gB5-★★ | F5: 晨光M&G | G5: APYK5F45 | H5: 124 | I5: 4
A6: 5 | B6: 北京金华盛林纸业有限公司 | C6: 北京市朝阳区亮马桥琨莎中心1座1201室 | D6: 15810933043 | E6: 70gB5-★★ | F6: 红金球 | G6: 70gB5 | H6: 132 | I6: 5
A7: 6 | B7: 北京奥特永盛科技有限公司 | C7: 北京市朝阳区八里庄西里100号6层西区607-09 | D7: 15699920137 | E7: 70gB5-★★ | F7: 飞星鱼 | G7: 70gB5 | H7: 140 | I7: 6
A8: 7 | B8: 北京紫旭炫东文化用品有限公司 | C8: 北京市怀柔区杨宋镇凤翔东大街9号201室（集群注册） | D8: 13691595280 | E8: 70gB5-★★ | F8: 晨鸣 | G8: 70gB5 | H8: 121 | I8: 7
A9: 8 | B9: 北京日益升网络科技有限公司 | C9: 北京市怀柔区雁西经济开发区雁栖路33号院1号楼103室 | D9: 18611171829 | E9: 70gB5-★★ | F9: 吉祥鸟 | G9: 吉祥鸟70克B5/箱/8包/500张/包 | H9: 136 | I9: 8
A10: 9 | B10: 北京品欢科技发展有限公司 | C10: 北京市朝阳区枣营北里27号楼南侧(托儿所)二层205室 | D10: 15652605986 | E10: 70gB5-★★ | F10: 五星红鸟 | G10: 70gB5 | H10: 136 | I10: 9
A11: 10 | B11: 金鑫（清远）纸业有限公司 | C11: 广东省清远市高新技术产业开发区15号 | D11: 15050896011 | E11: 70gB5-★★ | F11: APP | G11: APP晴空蓝70gB5 | H11: 122.7 | I11: 10
A12: 11 | B12: 多林多(天津)电子商务有限公司 | C12: 天津市武清开发区旺源道10号1号办公楼102室 | D12: 15810070718 | E12: 70gB5-★★ | F12: 创世纪 | G12: 70gB5 | H12: 145 | I12: 11
A13: 12 | B13: 北京洁简天兴商贸有限责任公司 | C13: 北京市怀柔区杨宋镇凤翔一园53号001室 | D13: 13671221315 | E13: 70gB5-★★ | F13: 高品乐 | G13: 70gB5 | H13: 130 | I13: 12
A14: 13 | B14: 芬欧汇川（中国）有限公司 | C14: 江苏省常熟市沿江经济开发区 | D14: 13801578786 | E14: 70gB5-★★ | F14: UPM | G14: 70克 B5 8包/箱 500张/包 | H14: 130 | I14: 13
A15: 14 | B15: 北京洪烽信达科技有限公司 | C15: 北京市平谷区中关村科技园区平谷园马坊工业园1区150号 | D15: 18610478867 | E15: 70gB5-★★ | F15: 金色幻影 | G15: 70gB5 | H15: 137.5 | I15: 14
A16: 15 | B16: 天津汇通融合网络科技有限公司 | C16: 天津市红桥区咸阳北路48号银泰大厦A座605-2、606室 | D16: 13821365442 | E16: 70gB5-★★ | F16: 亮剑 | G16: 70gB5 | H16: 139 | I16: 15
A17: 16 | B17: 湖南省鑫湘锐纸品有限公司 | C17: 湖南省长沙县江背镇江背村1101009幢湖南华欣印务有限公司内 | D17: 15200910590 | E17: 70gB5-★★ | F17: 欧芬小秘书 | G17: 70gB5 | H17: 140 | I17: 16
A18: 17 | B18: 山西华诺纸业有限公司 | C18: 山西省运城市盐湖高新技术产业开发区振兴大道22号2号厂房 | D18: 18102182506 | E18: 70gB5-★★ | F18: 傲雪 | G18: 70gB5-8 | H18: 140 | I18: 17
A19: 18 | B19: 北京智诚金源办公设备有限公司 | C19: 北京市通州区漷县镇纪各庄村4号 | D19: 18518557339 | E19: 70gB5-★★ | F19: 懂微 | G19: 70gB5-8 | H19: 140 | I19: 18
A20: 19 | B20: 北京华腾鑫业科技有限公司 | C20: 北京市海淀区知春路罗庄西里13号楼4层505室 | D20: 17801021282 | E20: 70gB5-★★ | F20: 柘印 | G20: 70gB5 | H20: 141 | I20: 19
A21: 20 | B21: 北京兆雄薪火科技有限公司 | C21: 北京昌平区东小口镇天通中苑二区21号楼19层1906 010-53386663 | D21: 15633121725 | E21: 70gB5-★★ | F21: 默远 | G21: 70gB5 | H21: 144 | I21: 20
A22: 21 | B22: 北京康乐欣文化用品有限公司 | C22: 永定门外大街西革新里108号院2号楼1层16号 | D22: 13601165873 | E22: 70gB5-★★ | F22: 亚美 | G22: 70gB5 | H22: 144 | I22: 21
A23: 22 | B23: 北京中盛宏达科技有限公司 | C23: 北京市平谷区兴谷经济开发区6区305-211702 | D23: 13301266286 | E23: 70gB5-★★ | F23: 戴姆勒复印纸 | G23: 70gB5 | H23: 144 | I23: 22
A24: 23 | B24: 北京飞博宏达商贸有限公司 | C24: 石龙经济开发区永安路20号3幢B1-2805 | D24: 13521235372 | E24: 70gB5-★★ | F24: 智印 | G24: 70gB5 | H24: 148 | I24: 23
